Workbook

Sheet Instructions
B1: CALCUL DU TAUX SECTORIEL UNIFORMISÉ OU DU TAUX DE BASE UNIFORMISÉ
B2: VERSION DU 2025-04-22
B4: Terme | E4: Définition
B6: Taux sectoriel uniformisé (Taux unique appliqué à l'ensemble des immeubles du secteur) | D6: • | E6: Le taux sectoriel uniformisé correspond à la moyenne des taux sectoriels de la taxe foncière générale pondérés selon la proportion que représente la somme des valeurs imposables des immeubles situés dans le secteur auquel s’applique le taux sectoriel par rapport à la somme des valeurs imposables des immeubles situés dans l’ensemble du territoire de la municipalité.
B7: Taux sectoriel (Taux unique appliqué à l'ensemble des immeubles du secteur) | D7: • | E7: Taux appliqué à l'ensemble des immeubles d'un secteur.
D8: • | E8: Les taux sectoriels doivent être entre 66,6 % et 133,3 % du taux sectoriel uniformisé.
B9: Taux de base uniformisé (Régime d'impôt à taux variés) | D9: • | E9: Lors de l'utilisation du régime d'impôt à taux variés, le taux de base uniformisé correspond à la moyenne des taux de base sectoriels pondérés selon la proportion que représente la somme des valeurs imposables des immeubles situés dans le secteur auquel s’applique le taux de base sectoriel par rapport à la somme des valeurs imposables des immeubles situés dans l’ensemble du territoire de la municipalité.
B10: Taux de base sectoriel (Régime d'impôt à taux variés) | D10: • | E10: Le taux de base sectoriel est le taux appliqué à la catégorie ou à la sous-catégorie résiduelle du secteur dans le cas où il y a des sous-catégories d'immeubles résidentiels.
B11: Valeur imposable pour les secteurs | D11: • | E11: Outre son sens ordinaire, les valeurs imposables des secteurs incluent les valeurs non imposables dans le cas où : a) les taxes foncières doivent être payées à l’égard d’un immeuble conformément au premier alinéa de l’article 208; b) une somme correspondant au montant des taxes foncières municipales qui seraient payables à l’égard d’un immeuble, si celui-ci était imposable, doit être versée soit par le gouvernement conformément au deuxième alinéa de l’article 210 ou au premier alinéa des articles 254 et 255, soit par la Couronne du chef du Canada ou l’un de ses mandataires.
B13: ** AVERTISSEMENT **
B14: Toutes les parties du territoire de la municipalité doivent être comprises dans un secteur.
B15: Le fichier calcule des taux sectoriels uniformisés ou des taux de base uniformisés uniquement lorsqu'il y a une assiette de valeur imposable et un taux.
B16: Chaque secteur doit avoir un taux sectoriel ou un taux de base sectoriel afin d'avoir un taux uniformisé valable.
B18: Étape | C18: Onglet | E18: Instructions
B20: 1 | C20: Sommaire de rôle | D20: • | E20: Il s'agit de la section 9 « Assiettes d'application des taux de la taxe foncière générale » du sommaire de rôle qui représente l'ensemble de la municipalité, soit celui qui est transmis au MAMH. Cet onglet permet de déterminer si l'ensemble du territoire de la municipalité est compris dans un secteur. Il n'est pas obligatoire de remplir cet onglet pour obtenir des résultats.
D21: • | E21: Cliquer sur le bouton « Réinitialisation » (s'il y a lieu).
D22: • | E22: Remplir les cellules vertes à partir des données de votre sommaire de rôle.
B24: 2 | C24: Assiette par secteur | D24: • | E24: Il s'agit de la section 10 « Assiettes d'application des taux de la taxe foncière générale » du sommaire de rôle qui represente l'ensemble de la municipalité, soit celui qui est transmis au MAMH.
D25: • | E25: Cliquer sur le bouton « Réinitialisation » (s'il y a lieu).
D26: • | E26: Inscrire le nom des secteurs et les assiettes dans les cases appropriées. La colonne « Total » doit être obligatoirement remplie.
B28: 3 | C28: Taxe foncière générale | D28: • | E28: Cliquer sur le bouton « Réinitialisation » (s'il y a lieu) pour réinitialiser les taux. Les assiettes d'application proviennent de l'onglet « Assiette par secteur ».
D29: • | E29: Pour la taxe foncière générale, inscrire les taux sectoriels ou, dans le cas de l'utilisation du régime d'impôt à taux variés, les taux de base sectoriels.
D30: • | E30: Un secteur n'ayant pas de taux base sectoriel sera réputé avoir le taux sectoriel uniformisé ou le taux de base uniformisé. Veuillez inscrire son assiette sans indiquer de taux.
D31: • | E31: Pour la taxe foncière générale, une validation indique si les taux sectoriels ou les taux de base sectoriels respectent les balises de la Loi sur la Fiscalité municipale.
B33: 4 | C33: Taxes sp-Service de dette | D33: • | E33: Cliquer sur le bouton « Réinitialisation » (s'il y a lieu) pour réinitialiser les taux. Les assiettes d'application proviennent de l'onglet « Assiette par secteur ».
D34: • | E34: Pour les taxes spéciales du service de la dette applicables sur l'ensemble du territoire et basées sur la valeur foncière, inscrire les taux sectoriels ou, dans le cas de l'utilisation du régime d'impôt à taux variés, les taux de base sectoriels.
B36: 5 | C36: Taxes sp- Act de fonctionnement | D36: • | E36: Cliquer sur le bouton « Réinitialisation » (s'il y a lieu) pour réinitialiser les taux. Les assiettes d'application proviennent de l'onglet « Assiette par secteur ».
D37: • | E37: Pour les taxes spéciales des activités de fonctionnement applicables sur l'ensemble du territoire et basées sur la valeur foncière, inscrire les taux sectoriels ou, dans le cas de l'utilisation du régime d'impôt à taux variés, les taux de base sectoriels.
B39: 6 | C39: Taxes sp-Act d'investissement | D39: • | E39: Cliquer sur le bouton « Réinitialisation » (s'il y a lieu) pour réinitialiser les taux. Les assiettes d'application proviennent de l'onglet « Assiette par secteur ».
D40: • | E40: Pour les taxes spéciales des activités de fonctionnement applicables sur l'ensemble du territoire et basées sur la valeur foncière, inscrire les taux sectoriels ou, dans le cas de l'utilisation du régime d'impôt à taux variés, les taux de base sectoriels.
B42: 7 | C42: Taux uniformisé | D42: • | E42: Calcul des taux sectoriels uniformisés ou des taux de base uniformisés selon les informations rentrées dans les autres onglets.
D43: • | E43: Optionnel : Choisir entre « Taux sectoriel uniformisé » (taux unique) ou « Taux de base uniformisé » (régime d'impôt à taux variés).
B45: 8 | C45: S65 | D45: • | E45: Si l'onglet « Taux uniformisé » contient les informations concernant « Taux sectoriel uniformisé » ou « Taux de base uniformisé », les lignes 15 à 22 de la page S65 des « Données prévisionnelles » sont remplies automatiquement.

Sheet Sommaire de rôle
B3: Sommaire de l'ensemble de la municipalité (Tous les secteurs)
B4: ASSIETTES D'APPLICATION DES TAUX DE LA TAXE FONCIÈRE GÉNÉRALE 9
B5: TAUX APPLICABLES | F5: TAUX NON RÉSIDENTIEL | H5: TAUX INDUSTRIEL (CLASSE 2) | J5: TAUX IND. (SAUF CL.1 ET 2) | L5: TAUX AGRICOLE | N5: TAUX FORESTIER | P5: TAUX CATÉGORIE RÉSIDUELLE
B6: NOMBRE DE SECTEURS
B7: CLASSE NON RÉSIDENTIELLE ET | F7: VAL. NR À 100 % ET IND. CL. 2 À 50 % | H7: VALEUR À 50 % | J7: VALEUR À 100 % | L7: VALEURS À 100 % IMPOSABLES | N7: VALEURS À 100 % IMPOSABLES | P7: VALEUR À 100 %
B8: POURCENTAGE DE TAXATION | F8: IMPOSABLES | G8: COMPENSABLES | H8: IMPOSABLES | I8: COMPENSABLES | J8: IMPOSABLES | K8: COMPENSABLES | P8: IMPOSABLES | Q8: COMPENSABLES
B9: 1A | C9: : 0,1 % | E9: 901 | O9: 99,9 %
B10: 1B | C10: : 0,5 % | E10: 902 | O10: 99,5 %
B11: 1C | C11: : 1 % | E11: 903 | O11: 99 %
B12: 2 | C12: : 3 % | E12: 904 | O12: 97 %
B13: 3 | C13: : 6 % | E13: 905 | O13: 94 %
B14: 4 | C14: : 12 % | E14: 906 | O14: 88 %
B15: 5 | C15: : 22 % | E15: 907 | O15: 78 %
B16: 6 | C16: : 40 % | E16: 908 | O16: 60 %
B17: 7 | C17: : 60 % | E17: 909 | O17: 40 %
B18: 8 | C18: : 85 % | E18: 910 | O18: 15 %
B19: 9 | C19: : 100 % | E19: 911 | L19: TAUX TERRAINS VAGUES DESSERVIS
B20: 10 | C20: : 100 % | E20: 912
B21: 11 | C21: : Cours de triage 100 % | E21: 913 | L21: VALEURS À 100 %
B22: 12 | C22: : CHSLD 20 % | E22: 914 | L22: IMPOSABLES | N22: COMPENSABLES | O22: 80 %
B23: 13 | C23: : Cours de triage 40 % | E23: 915 | G23: CFIL (chemin de fer d'intérêt local) | O23: 60 %
B24: APPLICATION DU TNR QUAND TTVD | E24: 916 | I24: (TTVD − TAUX DE BASE) x
B25: ASSIETTES D'APPLICATION | E25: 917 | K25: (TTVD) x
B27: Assiette imposable | D27: = | E27: =F25+I25+L25+N25+L8+N8+P25 -> 0

Sheet Assiette par secteur
D2: =IF(D3="","","Assiette sans secteur") -> 
D3: =IF(AND('Sommaire de rôle'!E27>0,'Sommaire de rôle'!E27-'Assiette par secteur'!E2009>0),'Sommaire de rôle'!E27-'Assiette par secteur'!E2009,"") -> 
B4: Sommaire de Rôle | E4: =IF(E9=0,"Remplir cette colonne","") -> Remplir cette colonne
B5: ASSIETTES D'APPLICATION DES TAUX DE LA TAXE FONCIÈRE GÉNÉRALE par secteur 10
B6: SECTEUR | C6: ASSIETTES D'APPLICATION
C7: IMPOSABLES | D7: COMPENSABLES | E7: TOTAL
B8: 100001 | C8: 100002 | D8: 100003 | E8: 100004
A9: 1
A10: =A9+1 -> 2
A11: =A10+1 -> 3
A12: 4
A13: 5
A14: 6
A15: 7
A16: 8
A17: 9
A18: 10
A19: 11
A20: 12
A21: 13
A22: 14
A23: 15
A24: 16
A25: 17
A26: 18
A27: 19
A28: 20
A29: 21
A30: 22
A31: 23
A32: 24
A33: 25
A34: 26
A35: 27
A36: 28
A37: 29
A38: 30
A39: 31
A40: 32
A41: 33
A42: 34
A43: 35
A44: 36
A45: 37
A46: 38
A47: 39
A48: 40
A49: 41
A50: 42
A51: 43
A52: 44
A53: 45
A54: 46
A55: 47
A56: 48
A57: 49
A58: 50
A59: 51
A60: 52
A61: 53
A62: 54
A63: 55
A64: 56
A65: 57
A66: 58
A67: 59
A68: 60
A69: 61
A70: 62
A71: 63
A72: 64
A73: 65
A74: 66
A75: =A74+1 -> 67
A76: 68
A77: 69
A78: 70
A79: 71
A80: 72
A81: 73
A82: 74
A83: 75
A84: 76
A85: 77
A86: 78
A87: 79
A88: 80
A89: 81
A90: 82
A91: 83
A92: 84
A93: 85
A94: 86
A95: 87
A96: 88
A97: 89
A98: 90
A99: 91
A100: 92
A101: 93
A102: 94
A103: 95
A104: 96
A105: 97
A106: 98
A107: 99
A108: 100
A109: 101
A110: 102
A111: 103
A112: 104
A113: 105
A114: 106
A115: 107
A116: 108
A117: 109
A118: 110
A119: 111
A120: 112
A121: 113
A122: 114
A123: 115
A124: 116
A125: 117
A126: 118
A127: 119
A128: 120
A129: 121
A130: 122
A131: 123
A132: 124
A133: 125
A134: 126
A135: 127
A136: 128
A137: 129
A138: 130
A139: =A138+1 -> 131
A140: 132
A141: 133
A142: 134
A143: 135
A144: 136
A145: 137
A146: 138
A147: 139
A148: 140
A149: 141
A150: 142
A151: 143
A152: 144
A153: 145
A154: 146
A155: 147
A156: 148
A157: 149
A158: 150
A159: 151
A160: 152
A161: 153
A162: 154
A163: 155
A164: 156
A165: 157
A166: 158
A167: 159
A168: 160
A169: 161
A170: 162
A171: 163
A172: 164
A173: 165
A174: 166
A175: 167
A176: 168
A177: 169
A178: 170
A179: 171
A180: 172
A181: 173
A182: 174
A183: 175
A184: 176
A185: 177
A186: 178
A187: 179
A188: 180
A189: 181
A190: 182
A191: 183
A192: 184
A193: 185
A194: 186
A195: 187
A196: 188
A197: 189
A198: 190
A199: 191
A200: 192
A201: 193
... 1808 more rows

Sheet Taxe foncière générale
D1: =IF('Taux uniformisé'!C4=0,"-","Balises à respecter pour les taux") -> - | F1: =IF(F2="-","-","Nombre de taux qui ne respectent pas les balises") -> -
D2: =IF('Taux uniformisé'!C4>0,"Minimum","-") -> - | E2: =IF('Taux uniformisé'!C4>0,'Taux uniformisé'!C4*0.666,"-") -> - | F2: =IF(J2007=0,"-",J2007) -> -
D3: =IF('Taux uniformisé'!C4>0,"Maximum","-") -> - | E3: =IF('Taux uniformisé'!C4>0,'Taux uniformisé'!C4*1.333,"-") -> - | F3: =IF(K2007>0,"Nombre de secteurs sans taux sectoriel ou taux de base sectoriel","") -> 
B4: Taxe foncière générale | E4: =IF(D7=0,"Remplir cette colonne","") -> Remplir cette colonne | F4: =IF(K2007>0,K2007,"") -> 
B5: Secteur | C5: Assiette d'application ($) | D5: Taux sectoriel ou taux de base sectoriel ($/100 $ d'évaluation) | E5: Validation par rapport au taux sectoriel uniformisé ou au taux de base uniformisé | F5: Explication
A7: 1 | B7: =IF('Assiette par secteur'!B9="","",'Assiette par secteur'!B9) ->  | C7: =IF('Assiette par secteur'!E9="","",'Assiette par secteur'!E9) ->  | E7: =IF(D7>0,IF(AND($E$2<=D7,'Taxe foncière générale'!D7<=$E$3),"-","INVALIDE"),"-") -> - | F7: =IF('Taxe foncière générale'!E7="-","-",IF(E7="Invalide",IF(D7<0.666*'Taux uniformisé'!$C$4,"Inférieur au minimum","Supérieur au maximum"))) -> - | G7: =IF(AND(C7>0,I7=0),"PAS DE TAUX SECTORIEL","") ->  | H7: =IF(D7>0,C7,"") ->  | I7: =IF(C7="","",IF(D7>0,D7*C7/$H$2007,0)) ->  | J7: =IF(E7="-",0,1) -> 0 | K7: =IF(G7="","",1) -> 
A8: =A7+1 -> 2 | B8: =IF('Assiette par secteur'!B10="","",'Assiette par secteur'!B10) ->  | C8: =IF('Assiette par secteur'!E10="","",'Assiette par secteur'!E10) ->  | E8: =IF(D8>0,IF(AND($E$2<=D8,'Taxe foncière générale'!D8<=$E$3),"-","INVALIDE"),"-") -> - | F8: =IF('Taxe foncière générale'!E8="-","-",IF(E8="Invalide",IF(D8<0.666*'Taux uniformisé'!$C$4,"Inférieur au minimum","Supérieur au maximum"))) -> - | G8: =IF(AND(C8>0,I8=0),"PAS DE TAUX SECTORIEL","") ->  | J8: =IF(E8="-",0,1) -> 0 | K8: =IF(G8="","",1) -> 
A9: =A8+1 -> 3 | B9: =IF('Assiette par secteur'!B11="","",'Assiette par secteur'!B11) ->  | C9: =IF('Assiette par secteur'!E11="","",'Assiette par secteur'!E11) ->  | E9: =IF(D9>0,IF(AND($E$2<=D9,'Taxe foncière générale'!D9<=$E$3),"-","INVALIDE"),"-") -> - | F9: =IF('Taxe foncière générale'!E9="-","-",IF(E9="Invalide",IF(D9<0.666*'Taux uniformisé'!$C$4,"Inférieur au minimum","Supérieur au maximum"))) -> - | J9: 0
A10: 4 | B10: =IF('Assiette par secteur'!B12="","",'Assiette par secteur'!B12) ->  | C10: =IF('Assiette par secteur'!E12="","",'Assiette par secteur'!E12) ->  | E10: =IF(D10>0,IF(AND($E$2<=D10,'Taxe foncière générale'!D10<=$E$3),"-","INVALIDE"),"-") -> - | F10: =IF('Taxe foncière générale'!E10="-","-",IF(E10="Invalide",IF(D10<0.666*'Taux uniformisé'!$C$4,"Inférieur au minimum","Supérieur au maximum"))) -> - | J10: 0
A11: 5 | B11: =IF('Assiette par secteur'!B13="","",'Assiette par secteur'!B13) ->  | C11: =IF('Assiette par secteur'!E13="","",'Assiette par secteur'!E13) ->  | E11: =IF(D11>0,IF(AND($E$2<=D11,'Taxe foncière générale'!D11<=$E$3),"-","INVALIDE"),"-") -> - | F11: =IF('Taxe foncière générale'!E11="-","-",IF(E11="Invalide",IF(D11<0.666*'Taux uniformisé'!$C$4,"Inférieur au minimum","Supérieur au maximum"))) -> - | J11: 0
A12: 6 | B12: =IF('Assiette par secteur'!B14="","",'Assiette par secteur'!B14) ->  | C12: =IF('Assiette par secteur'!E14="","",'Assiette par secteur'!E14) ->  | E12: =IF(D12>0,IF(AND($E$2<=D12,'Taxe foncière générale'!D12<=$E$3),"-","INVALIDE"),"-") -> - | F12: =IF('Taxe foncière générale'!E12="-","-",IF(E12="Invalide",IF(D12<0.666*'Taux uniformisé'!$C$4,"Inférieur au minimum","Supérieur au maximum"))) -> - | J12: 0
A13: 7 | B13: =IF('Assiette par secteur'!B15="","",'Assiette par secteur'!B15) ->  | C13: =IF('Assiette par secteur'!E15="","",'Assiette par secteur'!E15) ->  | E13: =IF(D13>0,IF(AND($E$2<=D13,'Taxe foncière générale'!D13<=$E$3),"-","INVALIDE"),"-") -> - | F13: =IF('Taxe foncière générale'!E13="-","-",IF(E13="Invalide",IF(D13<0.666*'Taux uniformisé'!$C$4,"Inférieur au minimum","Supérieur au maximum"))) -> - | J13: 0
A14: 8 | B14: =IF('Assiette par secteur'!B16="","",'Assiette par secteur'!B16) ->  | C14: =IF('Assiette par secteur'!E16="","",'Assiette par secteur'!E16) ->  | E14: =IF(D14>0,IF(AND($E$2<=D14,'Taxe foncière générale'!D14<=$E$3),"-","INVALIDE"),"-") -> - | F14: =IF('Taxe foncière générale'!E14="-","-",IF(E14="Invalide",IF(D14<0.666*'Taux uniformisé'!$C$4,"Inférieur au minimum","Supérieur au maximum"))) -> - | J14: 0
A15: 9 | B15: =IF('Assiette par secteur'!B17="","",'Assiette par secteur'!B17) ->  | C15: =IF('Assiette par secteur'!E17="","",'Assiette par secteur'!E17) ->  | E15: =IF(D15>0,IF(AND($E$2<=D15,'Taxe foncière générale'!D15<=$E$3),"-","INVALIDE"),"-") -> - | F15: =IF('Taxe foncière générale'!E15="-","-",IF(E15="Invalide",IF(D15<0.666*'Taux uniformisé'!$C$4,"Inférieur au minimum","Supérieur au maximum"))) -> - | J15: 0
A16: 10 | B16: =IF('Assiette par secteur'!B18="","",'Assiette par secteur'!B18) ->  | C16: =IF('Assiette par secteur'!E18="","",'Assiette par secteur'!E18) ->  | E16: =IF(D16>0,IF(AND($E$2<=D16,'Taxe foncière générale'!D16<=$E$3),"-","INVALIDE"),"-") -> - | F16: =IF('Taxe foncière générale'!E16="-","-",IF(E16="Invalide",IF(D16<0.666*'Taux uniformisé'!$C$4,"Inférieur au minimum","Supérieur au maximum"))) -> - | J16: 0
A17: 11 | B17: =IF('Assiette par secteur'!B19="","",'Assiette par secteur'!B19) ->  | C17: =IF('Assiette par secteur'!E19="","",'Assiette par secteur'!E19) ->  | E17: =IF(D17>0,IF(AND($E$2<=D17,'Taxe foncière générale'!D17<=$E$3),"-","INVALIDE"),"-") -> - | F17: =IF('Taxe foncière générale'!E17="-","-",IF(E17="Invalide",IF(D17<0.666*'Taux uniformisé'!$C$4,"Inférieur au minimum","Supérieur au maximum"))) -> - | J17: 0
A18: 12 | B18: =IF('Assiette par secteur'!B20="","",'Assiette par secteur'!B20) ->  | C18: =IF('Assiette par secteur'!E20="","",'Assiette par secteur'!E20) ->  | E18: =IF(D18>0,IF(AND($E$2<=D18,'Taxe foncière générale'!D18<=$E$3),"-","INVALIDE"),"-") -> - | F18: =IF('Taxe foncière générale'!E18="-","-",IF(E18="Invalide",IF(D18<0.666*'Taux uniformisé'!$C$4,"Inférieur au minimum","Supérieur au maximum"))) -> - | J18: 0
A19: 13 | B19: =IF('Assiette par secteur'!B21="","",'Assiette par secteur'!B21) ->  | C19: =IF('Assiette par secteur'!E21="","",'Assiette par secteur'!E21) ->  | E19: =IF(D19>0,IF(AND($E$2<=D19,'Taxe foncière générale'!D19<=$E$3),"-","INVALIDE"),"-") -> - | F19: =IF('Taxe foncière générale'!E19="-","-",IF(E19="Invalide",IF(D19<0.666*'Taux uniformisé'!$C$4,"Inférieur au minimum","Supérieur au maximum"))) -> - | J19: 0
A20: 14 | B20: =IF('Assiette par secteur'!B22="","",'Assiette par secteur'!B22) ->  | C20: =IF('Assiette par secteur'!E22="","",'Assiette par secteur'!E22) ->  | E20: =IF(D20>0,IF(AND($E$2<=D20,'Taxe foncière générale'!D20<=$E$3),"-","INVALIDE"),"-") -> - | F20: =IF('Taxe foncière générale'!E20="-","-",IF(E20="Invalide",IF(D20<0.666*'Taux uniformisé'!$C$4,"Inférieur au minimum","Supérieur au maximum"))) -> - | J20: 0
A21: 15 | B21: =IF('Assiette par secteur'!B23="","",'Assiette par secteur'!B23) ->  | C21: =IF('Assiette par secteur'!E23="","",'Assiette par secteur'!E23) ->  | E21: =IF(D21>0,IF(AND($E$2<=D21,'Taxe foncière générale'!D21<=$E$3),"-","INVALIDE"),"-") -> - | F21: =IF('Taxe foncière générale'!E21="-","-",IF(E21="Invalide",IF(D21<0.666*'Taux uniformisé'!$C$4,"Inférieur au minimum","Supérieur au maximum"))) -> - | J21: 0
A22: 16 | B22: =IF('Assiette par secteur'!B24="","",'Assiette par secteur'!B24) ->  | C22: =IF('Assiette par secteur'!E24="","",'Assiette par secteur'!E24) ->  | E22: =IF(D22>0,IF(AND($E$2<=D22,'Taxe foncière générale'!D22<=$E$3),"-","INVALIDE"),"-") -> - | F22: =IF('Taxe foncière générale'!E22="-","-",IF(E22="Invalide",IF(D22<0.666*'Taux uniformisé'!$C$4,"Inférieur au minimum","Supérieur au maximum"))) -> - | J22: 0
A23: 17 | B23: =IF('Assiette par secteur'!B25="","",'Assiette par secteur'!B25) ->  | C23: =IF('Assiette par secteur'!E25="","",'Assiette par secteur'!E25) ->  | E23: =IF(D23>0,IF(AND($E$2<=D23,'Taxe foncière générale'!D23<=$E$3),"-","INVALIDE"),"-") -> - | F23: =IF('Taxe foncière générale'!E23="-","-",IF(E23="Invalide",IF(D23<0.666*'Taux uniformisé'!$C$4,"Inférieur au minimum","Supérieur au maximum"))) -> - | J23: 0
A24: 18 | B24: =IF('Assiette par secteur'!B26="","",'Assiette par secteur'!B26) ->  | C24: =IF('Assiette par secteur'!E26="","",'Assiette par secteur'!E26) ->  | E24: =IF(D24>0,IF(AND($E$2<=D24,'Taxe foncière générale'!D24<=$E$3),"-","INVALIDE"),"-") -> - | F24: =IF('Taxe foncière générale'!E24="-","-",IF(E24="Invalide",IF(D24<0.666*'Taux uniformisé'!$C$4,"Inférieur au minimum","Supérieur au maximum"))) -> - | J24: 0
A25: 19 | B25: =IF('Assiette par secteur'!B27="","",'Assiette par secteur'!B27) ->  | C25: =IF('Assiette par secteur'!E27="","",'Assiette par secteur'!E27) ->  | E25: =IF(D25>0,IF(AND($E$2<=D25,'Taxe foncière générale'!D25<=$E$3),"-","INVALIDE"),"-") -> - | F25: =IF('Taxe foncière générale'!E25="-","-",IF(E25="Invalide",IF(D25<0.666*'Taux uniformisé'!$C$4,"Inférieur au minimum","Supérieur au maximum"))) -> - | J25: 0
A26: 20 | B26: =IF('Assiette par secteur'!B28="","",'Assiette par secteur'!B28) ->  | C26: =IF('Assiette par secteur'!E28="","",'Assiette par secteur'!E28) ->  | E26: =IF(D26>0,IF(AND($E$2<=D26,'Taxe foncière générale'!D26<=$E$3),"-","INVALIDE"),"-") -> - | F26: =IF('Taxe foncière générale'!E26="-","-",IF(E26="Invalide",IF(D26<0.666*'Taux uniformisé'!$C$4,"Inférieur au minimum","Supérieur au maximum"))) -> - | J26: 0
A27: 21 | B27: =IF('Assiette par secteur'!B29="","",'Assiette par secteur'!B29) ->  | C27: =IF('Assiette par secteur'!E29="","",'Assiette par secteur'!E29) ->  | E27: =IF(D27>0,IF(AND($E$2<=D27,'Taxe foncière générale'!D27<=$E$3),"-","INVALIDE"),"-") -> - | F27: =IF('Taxe foncière générale'!E27="-","-",IF(E27="Invalide",IF(D27<0.666*'Taux uniformisé'!$C$4,"Inférieur au minimum","Supérieur au maximum"))) -> - | J27: 0
A28: 22 | B28: =IF('Assiette par secteur'!B30="","",'Assiette par secteur'!B30) ->  | C28: =IF('Assiette par secteur'!E30="","",'Assiette par secteur'!E30) ->  | E28: =IF(D28>0,IF(AND($E$2<=D28,'Taxe foncière générale'!D28<=$E$3),"-","INVALIDE"),"-") -> - | F28: =IF('Taxe foncière générale'!E28="-","-",IF(E28="Invalide",IF(D28<0.666*'Taux uniformisé'!$C$4,"Inférieur au minimum","Supérieur au maximum"))) -> - | J28: 0
A29: 23 | B29: =IF('Assiette par secteur'!B31="","",'Assiette par secteur'!B31) ->  | C29: =IF('Assiette par secteur'!E31="","",'Assiette par secteur'!E31) ->  | E29: =IF(D29>0,IF(AND($E$2<=D29,'Taxe foncière générale'!D29<=$E$3),"-","INVALIDE"),"-") -> - | F29: =IF('Taxe foncière générale'!E29="-","-",IF(E29="Invalide",IF(D29<0.666*'Taux uniformisé'!$C$4,"Inférieur au minimum","Supérieur au maximum"))) -> - | J29: 0
A30: 24 | B30: =IF('Assiette par secteur'!B32="","",'Assiette par secteur'!B32) ->  | C30: =IF('Assiette par secteur'!E32="","",'Assiette par secteur'!E32) ->  | E30: =IF(D30>0,IF(AND($E$2<=D30,'Taxe foncière générale'!D30<=$E$3),"-","INVALIDE"),"-") -> - | F30: =IF('Taxe foncière générale'!E30="-","-",IF(E30="Invalide",IF(D30<0.666*'Taux uniformisé'!$C$4,"Inférieur au minimum","Supérieur au maximum"))) -> - | J30: 0
A31: 25 | B31: =IF('Assiette par secteur'!B33="","",'Assiette par secteur'!B33) ->  | C31: =IF('Assiette par secteur'!E33="","",'Assiette par secteur'!E33) ->  | E31: =IF(D31>0,IF(AND($E$2<=D31,'Taxe foncière générale'!D31<=$E$3),"-","INVALIDE"),"-") -> - | F31: =IF('Taxe foncière générale'!E31="-","-",IF(E31="Invalide",IF(D31<0.666*'Taux uniformisé'!$C$4,"Inférieur au minimum","Supérieur au maximum"))) -> - | J31: 0
A32: 26 | B32: =IF('Assiette par secteur'!B34="","",'Assiette par secteur'!B34) ->  | C32: =IF('Assiette par secteur'!E34="","",'Assiette par secteur'!E34) ->  | E32: =IF(D32>0,IF(AND($E$2<=D32,'Taxe foncière générale'!D32<=$E$3),"-","INVALIDE"),"-") -> - | F32: =IF('Taxe foncière générale'!E32="-","-",IF(E32="Invalide",IF(D32<0.666*'Taux uniformisé'!$C$4,"Inférieur au minimum","Supérieur au maximum"))) -> - | J32: 0
A33: 27 | B33: =IF('Assiette par secteur'!B35="","",'Assiette par secteur'!B35) ->  | C33: =IF('Assiette par secteur'!E35="","",'Assiette par secteur'!E35) ->  | E33: =IF(D33>0,IF(AND($E$2<=D33,'Taxe foncière générale'!D33<=$E$3),"-","INVALIDE"),"-") -> - | F33: =IF('Taxe foncière générale'!E33="-","-",IF(E33="Invalide",IF(D33<0.666*'Taux uniformisé'!$C$4,"Inférieur au minimum","Supérieur au maximum"))) -> - | J33: 0
A34: 28 | B34: =IF('Assiette par secteur'!B36="","",'Assiette par secteur'!B36) ->  | C34: =IF('Assiette par secteur'!E36="","",'Assiette par secteur'!E36) ->  | E34: =IF(D34>0,IF(AND($E$2<=D34,'Taxe foncière générale'!D34<=$E$3),"-","INVALIDE"),"-") -> - | F34: =IF('Taxe foncière générale'!E34="-","-",IF(E34="Invalide",IF(D34<0.666*'Taux uniformisé'!$C$4,"Inférieur au minimum","Supérieur au maximum"))) -> - | J34: 0
A35: 29 | B35: =IF('Assiette par secteur'!B37="","",'Assiette par secteur'!B37) ->  | C35: =IF('Assiette par secteur'!E37="","",'Assiette par secteur'!E37) ->  | E35: =IF(D35>0,IF(AND($E$2<=D35,'Taxe foncière générale'!D35<=$E$3),"-","INVALIDE"),"-") -> - | F35: =IF('Taxe foncière générale'!E35="-","-",IF(E35="Invalide",IF(D35<0.666*'Taux uniformisé'!$C$4,"Inférieur au minimum","Supérieur au maximum"))) -> - | J35: 0
A36: 30 | B36: =IF('Assiette par secteur'!B38="","",'Assiette par secteur'!B38) ->  | C36: =IF('Assiette par secteur'!E38="","",'Assiette par secteur'!E38) ->  | E36: =IF(D36>0,IF(AND($E$2<=D36,'Taxe foncière générale'!D36<=$E$3),"-","INVALIDE"),"-") -> - | F36: =IF('Taxe foncière générale'!E36="-","-",IF(E36="Invalide",IF(D36<0.666*'Taux uniformisé'!$C$4,"Inférieur au minimum","Supérieur au maximum"))) -> - | J36: 0
A37: 31 | B37: =IF('Assiette par secteur'!B39="","",'Assiette par secteur'!B39) ->  | C37: =IF('Assiette par secteur'!E39="","",'Assiette par secteur'!E39) ->  | E37: =IF(D37>0,IF(AND($E$2<=D37,'Taxe foncière générale'!D37<=$E$3),"-","INVALIDE"),"-") -> - | F37: =IF('Taxe foncière générale'!E37="-","-",IF(E37="Invalide",IF(D37<0.666*'Taux uniformisé'!$C$4,"Inférieur au minimum","Supérieur au maximum"))) -> - | J37: 0
A38: 32 | B38: =IF('Assiette par secteur'!B40="","",'Assiette par secteur'!B40) ->  | C38: =IF('Assiette par secteur'!E40="","",'Assiette par secteur'!E40) ->  | E38: =IF(D38>0,IF(AND($E$2<=D38,'Taxe foncière générale'!D38<=$E$3),"-","INVALIDE"),"-") -> - | F38: =IF('Taxe foncière générale'!E38="-","-",IF(E38="Invalide",IF(D38<0.666*'Taux uniformisé'!$C$4,"Inférieur au minimum","Supérieur au maximum"))) -> - | J38: 0
A39: 33 | B39: =IF('Assiette par secteur'!B41="","",'Assiette par secteur'!B41) ->  | C39: =IF('Assiette par secteur'!E41="","",'Assiette par secteur'!E41) ->  | E39: =IF(D39>0,IF(AND($E$2<=D39,'Taxe foncière générale'!D39<=$E$3),"-","INVALIDE"),"-") -> - | F39: =IF('Taxe foncière générale'!E39="-","-",IF(E39="Invalide",IF(D39<0.666*'Taux uniformisé'!$C$4,"Inférieur au minimum","Supérieur au maximum"))) -> - | J39: 0
A40: 34 | B40: =IF('Assiette par secteur'!B42="","",'Assiette par secteur'!B42) ->  | C40: =IF('Assiette par secteur'!E42="","",'Assiette par secteur'!E42) ->  | E40: =IF(D40>0,IF(AND($E$2<=D40,'Taxe foncière générale'!D40<=$E$3),"-","INVALIDE"),"-") -> - | F40: =IF('Taxe foncière générale'!E40="-","-",IF(E40="Invalide",IF(D40<0.666*'Taux uniformisé'!$C$4,"Inférieur au minimum","Supérieur au maximum"))) -> - | J40: 0
A41: 35 | B41: =IF('Assiette par secteur'!B43="","",'Assiette par secteur'!B43) ->  | C41: =IF('Assiette par secteur'!E43="","",'Assiette par secteur'!E43) ->  | E41: =IF(D41>0,IF(AND($E$2<=D41,'Taxe foncière générale'!D41<=$E$3),"-","INVALIDE"),"-") -> - | F41: =IF('Taxe foncière générale'!E41="-","-",IF(E41="Invalide",IF(D41<0.666*'Taux uniformisé'!$C$4,"Inférieur au minimum","Supérieur au maximum"))) -> - | J41: 0
A42: 36 | B42: =IF('Assiette par secteur'!B44="","",'Assiette par secteur'!B44) ->  | C42: =IF('Assiette par secteur'!E44="","",'Assiette par secteur'!E44) ->  | E42: =IF(D42>0,IF(AND($E$2<=D42,'Taxe foncière générale'!D42<=$E$3),"-","INVALIDE"),"-") -> - | F42: =IF('Taxe foncière générale'!E42="-","-",IF(E42="Invalide",IF(D42<0.666*'Taux uniformisé'!$C$4,"Inférieur au minimum","Supérieur au maximum"))) -> - | J42: 0
A43: 37 | B43: =IF('Assiette par secteur'!B45="","",'Assiette par secteur'!B45) ->  | C43: =IF('Assiette par secteur'!E45="","",'Assiette par secteur'!E45) ->  | E43: =IF(D43>0,IF(AND($E$2<=D43,'Taxe foncière générale'!D43<=$E$3),"-","INVALIDE"),"-") -> - | F43: =IF('Taxe foncière générale'!E43="-","-",IF(E43="Invalide",IF(D43<0.666*'Taux uniformisé'!$C$4,"Inférieur au minimum","Supérieur au maximum"))) -> - | J43: 0
A44: 38 | B44: =IF('Assiette par secteur'!B46="","",'Assiette par secteur'!B46) ->  | C44: =IF('Assiette par secteur'!E46="","",'Assiette par secteur'!E46) ->  | E44: =IF(D44>0,IF(AND($E$2<=D44,'Taxe foncière générale'!D44<=$E$3),"-","INVALIDE"),"-") -> - | F44: =IF('Taxe foncière générale'!E44="-","-",IF(E44="Invalide",IF(D44<0.666*'Taux uniformisé'!$C$4,"Inférieur au minimum","Supérieur au maximum"))) -> - | J44: 0
A45: 39 | B45: =IF('Assiette par secteur'!B47="","",'Assiette par secteur'!B47) ->  | C45: =IF('Assiette par secteur'!E47="","",'Assiette par secteur'!E47) ->  | E45: =IF(D45>0,IF(AND($E$2<=D45,'Taxe foncière générale'!D45<=$E$3),"-","INVALIDE"),"-") -> - | F45: =IF('Taxe foncière générale'!E45="-","-",IF(E45="Invalide",IF(D45<0.666*'Taux uniformisé'!$C$4,"Inférieur au minimum","Supérieur au maximum"))) -> - | J45: 0
A46: 40 | B46: =IF('Assiette par secteur'!B48="","",'Assiette par secteur'!B48) ->  | C46: =IF('Assiette par secteur'!E48="","",'Assiette par secteur'!E48) ->  | E46: =IF(D46>0,IF(AND($E$2<=D46,'Taxe foncière générale'!D46<=$E$3),"-","INVALIDE"),"-") -> - | F46: =IF('Taxe foncière générale'!E46="-","-",IF(E46="Invalide",IF(D46<0.666*'Taux uniformisé'!$C$4,"Inférieur au minimum","Supérieur au maximum"))) -> - | J46: 0
A47: 41 | B47: =IF('Assiette par secteur'!B49="","",'Assiette par secteur'!B49) ->  | C47: =IF('Assiette par secteur'!E49="","",'Assiette par secteur'!E49) ->  | E47: =IF(D47>0,IF(AND($E$2<=D47,'Taxe foncière générale'!D47<=$E$3),"-","INVALIDE"),"-") -> - | F47: =IF('Taxe foncière générale'!E47="-","-",IF(E47="Invalide",IF(D47<0.666*'Taux uniformisé'!$C$4,"Inférieur au minimum","Supérieur au maximum"))) -> - | J47: 0
A48: 42 | B48: =IF('Assiette par secteur'!B50="","",'Assiette par secteur'!B50) ->  | C48: =IF('Assiette par secteur'!E50="","",'Assiette par secteur'!E50) ->  | E48: =IF(D48>0,IF(AND($E$2<=D48,'Taxe foncière générale'!D48<=$E$3),"-","INVALIDE"),"-") -> - | F48: =IF('Taxe foncière générale'!E48="-","-",IF(E48="Invalide",IF(D48<0.666*'Taux uniformisé'!$C$4,"Inférieur au minimum","Supérieur au maximum"))) -> - | J48: 0
A49: 43 | B49: =IF('Assiette par secteur'!B51="","",'Assiette par secteur'!B51) ->  | C49: =IF('Assiette par secteur'!E51="","",'Assiette par secteur'!E51) ->  | E49: =IF(D49>0,IF(AND($E$2<=D49,'Taxe foncière générale'!D49<=$E$3),"-","INVALIDE"),"-") -> - | F49: =IF('Taxe foncière générale'!E49="-","-",IF(E49="Invalide",IF(D49<0.666*'Taux uniformisé'!$C$4,"Inférieur au minimum","Supérieur au maximum"))) -> - | J49: 0
A50: 44 | B50: =IF('Assiette par secteur'!B52="","",'Assiette par secteur'!B52) ->  | C50: =IF('Assiette par secteur'!E52="","",'Assiette par secteur'!E52) ->  | E50: =IF(D50>0,IF(AND($E$2<=D50,'Taxe foncière générale'!D50<=$E$3),"-","INVALIDE"),"-") -> - | F50: =IF('Taxe foncière générale'!E50="-","-",IF(E50="Invalide",IF(D50<0.666*'Taux uniformisé'!$C$4,"Inférieur au minimum","Supérieur au maximum"))) -> - | J50: 0
A51: 45 | B51: =IF('Assiette par secteur'!B53="","",'Assiette par secteur'!B53) ->  | C51: =IF('Assiette par secteur'!E53="","",'Assiette par secteur'!E53) ->  | E51: =IF(D51>0,IF(AND($E$2<=D51,'Taxe foncière générale'!D51<=$E$3),"-","INVALIDE"),"-") -> - | F51: =IF('Taxe foncière générale'!E51="-","-",IF(E51="Invalide",IF(D51<0.666*'Taux uniformisé'!$C$4,"Inférieur au minimum","Supérieur au maximum"))) -> - | J51: 0
A52: 46 | B52: =IF('Assiette par secteur'!B54="","",'Assiette par secteur'!B54) ->  | C52: =IF('Assiette par secteur'!E54="","",'Assiette par secteur'!E54) ->  | E52: =IF(D52>0,IF(AND($E$2<=D52,'Taxe foncière générale'!D52<=$E$3),"-","INVALIDE"),"-") -> - | F52: =IF('Taxe foncière générale'!E52="-","-",IF(E52="Invalide",IF(D52<0.666*'Taux uniformisé'!$C$4,"Inférieur au minimum","Supérieur au maximum"))) -> - | J52: 0
A53: 47 | B53: =IF('Assiette par secteur'!B55="","",'Assiette par secteur'!B55) ->  | C53: =IF('Assiette par secteur'!E55="","",'Assiette par secteur'!E55) ->  | E53: =IF(D53>0,IF(AND($E$2<=D53,'Taxe foncière générale'!D53<=$E$3),"-","INVALIDE"),"-") -> - | F53: =IF('Taxe foncière générale'!E53="-","-",IF(E53="Invalide",IF(D53<0.666*'Taux uniformisé'!$C$4,"Inférieur au minimum","Supérieur au maximum"))) -> - | J53: 0
A54: 48 | B54: =IF('Assiette par secteur'!B56="","",'Assiette par secteur'!B56) ->  | C54: =IF('Assiette par secteur'!E56="","",'Assiette par secteur'!E56) ->  | E54: =IF(D54>0,IF(AND($E$2<=D54,'Taxe foncière générale'!D54<=$E$3),"-","INVALIDE"),"-") -> - | F54: =IF('Taxe foncière générale'!E54="-","-",IF(E54="Invalide",IF(D54<0.666*'Taux uniformisé'!$C$4,"Inférieur au minimum","Supérieur au maximum"))) -> - | J54: 0
A55: 49 | B55: =IF('Assiette par secteur'!B57="","",'Assiette par secteur'!B57) ->  | C55: =IF('Assiette par secteur'!E57="","",'Assiette par secteur'!E57) ->  | E55: =IF(D55>0,IF(AND($E$2<=D55,'Taxe foncière générale'!D55<=$E$3),"-","INVALIDE"),"-") -> - | F55: =IF('Taxe foncière générale'!E55="-","-",IF(E55="Invalide",IF(D55<0.666*'Taux uniformisé'!$C$4,"Inférieur au minimum","Supérieur au maximum"))) -> - | J55: 0
A56: 50 | B56: =IF('Assiette par secteur'!B58="","",'Assiette par secteur'!B58) ->  | C56: =IF('Assiette par secteur'!E58="","",'Assiette par secteur'!E58) ->  | E56: =IF(D56>0,IF(AND($E$2<=D56,'Taxe foncière générale'!D56<=$E$3),"-","INVALIDE"),"-") -> - | F56: =IF('Taxe foncière générale'!E56="-","-",IF(E56="Invalide",IF(D56<0.666*'Taux uniformisé'!$C$4,"Inférieur au minimum","Supérieur au maximum"))) -> - | J56: 0
A57: 51 | B57: =IF('Assiette par secteur'!B59="","",'Assiette par secteur'!B59) ->  | C57: =IF('Assiette par secteur'!E59="","",'Assiette par secteur'!E59) ->  | E57: =IF(D57>0,IF(AND($E$2<=D57,'Taxe foncière générale'!D57<=$E$3),"-","INVALIDE"),"-") -> - | F57: =IF('Taxe foncière générale'!E57="-","-",IF(E57="Invalide",IF(D57<0.666*'Taux uniformisé'!$C$4,"Inférieur au minimum","Supérieur au maximum"))) -> - | J57: 0
A58: 52 | B58: =IF('Assiette par secteur'!B60="","",'Assiette par secteur'!B60) ->  | C58: =IF('Assiette par secteur'!E60="","",'Assiette par secteur'!E60) ->  | E58: =IF(D58>0,IF(AND($E$2<=D58,'Taxe foncière générale'!D58<=$E$3),"-","INVALIDE"),"-") -> - | F58: =IF('Taxe foncière générale'!E58="-","-",IF(E58="Invalide",IF(D58<0.666*'Taux uniformisé'!$C$4,"Inférieur au minimum","Supérieur au maximum"))) -> - | J58: 0
A59: 53 | B59: =IF('Assiette par secteur'!B61="","",'Assiette par secteur'!B61) ->  | C59: =IF('Assiette par secteur'!E61="","",'Assiette par secteur'!E61) ->  | E59: =IF(D59>0,IF(AND($E$2<=D59,'Taxe foncière générale'!D59<=$E$3),"-","INVALIDE"),"-") -> - | F59: =IF('Taxe foncière générale'!E59="-","-",IF(E59="Invalide",IF(D59<0.666*'Taux uniformisé'!$C$4,"Inférieur au minimum","Supérieur au maximum"))) -> - | J59: 0
A60: 54 | B60: =IF('Assiette par secteur'!B62="","",'Assiette par secteur'!B62) ->  | C60: =IF('Assiette par secteur'!E62="","",'Assiette par secteur'!E62) ->  | E60: =IF(D60>0,IF(AND($E$2<=D60,'Taxe foncière générale'!D60<=$E$3),"-","INVALIDE"),"-") -> - | F60: =IF('Taxe foncière générale'!E60="-","-",IF(E60="Invalide",IF(D60<0.666*'Taux uniformisé'!$C$4,"Inférieur au minimum","Supérieur au maximum"))) -> - | J60: 0
A61: 55 | B61: =IF('Assiette par secteur'!B63="","",'Assiette par secteur'!B63) ->  | C61: =IF('Assiette par secteur'!E63="","",'Assiette par secteur'!E63) ->  | E61: =IF(D61>0,IF(AND($E$2<=D61,'Taxe foncière générale'!D61<=$E$3),"-","INVALIDE"),"-") -> - | F61: =IF('Taxe foncière générale'!E61="-","-",IF(E61="Invalide",IF(D61<0.666*'Taux uniformisé'!$C$4,"Inférieur au minimum","Supérieur au maximum"))) -> - | J61: 0
A62: 56 | B62: =IF('Assiette par secteur'!B64="","",'Assiette par secteur'!B64) ->  | C62: =IF('Assiette par secteur'!E64="","",'Assiette par secteur'!E64) ->  | E62: =IF(D62>0,IF(AND($E$2<=D62,'Taxe foncière générale'!D62<=$E$3),"-","INVALIDE"),"-") -> - | F62: =IF('Taxe foncière générale'!E62="-","-",IF(E62="Invalide",IF(D62<0.666*'Taux uniformisé'!$C$4,"Inférieur au minimum","Supérieur au maximum"))) -> - | J62: 0
A63: 57 | B63: =IF('Assiette par secteur'!B65="","",'Assiette par secteur'!B65) ->  | C63: =IF('Assiette par secteur'!E65="","",'Assiette par secteur'!E65) ->  | E63: =IF(D63>0,IF(AND($E$2<=D63,'Taxe foncière générale'!D63<=$E$3),"-","INVALIDE"),"-") -> - | F63: =IF('Taxe foncière générale'!E63="-","-",IF(E63="Invalide",IF(D63<0.666*'Taux uniformisé'!$C$4,"Inférieur au minimum","Supérieur au maximum"))) -> - | J63: 0
A64: 58 | B64: =IF('Assiette par secteur'!B66="","",'Assiette par secteur'!B66) ->  | C64: =IF('Assiette par secteur'!E66="","",'Assiette par secteur'!E66) ->  | E64: =IF(D64>0,IF(AND($E$2<=D64,'Taxe foncière générale'!D64<=$E$3),"-","INVALIDE"),"-") -> - | F64: =IF('Taxe foncière générale'!E64="-","-",IF(E64="Invalide",IF(D64<0.666*'Taux uniformisé'!$C$4,"Inférieur au minimum","Supérieur au maximum"))) -> - | J64: 0
A65: 59 | B65: =IF('Assiette par secteur'!B67="","",'Assiette par secteur'!B67) ->  | C65: =IF('Assiette par secteur'!E67="","",'Assiette par secteur'!E67) ->  | E65: =IF(D65>0,IF(AND($E$2<=D65,'Taxe foncière générale'!D65<=$E$3),"-","INVALIDE"),"-") -> - | F65: =IF('Taxe foncière générale'!E65="-","-",IF(E65="Invalide",IF(D65<0.666*'Taux uniformisé'!$C$4,"Inférieur au minimum","Supérieur au maximum"))) -> - | J65: 0
A66: 60 | B66: =IF('Assiette par secteur'!B68="","",'Assiette par secteur'!B68) ->  | C66: =IF('Assiette par secteur'!E68="","",'Assiette par secteur'!E68) ->  | E66: =IF(D66>0,IF(AND($E$2<=D66,'Taxe foncière générale'!D66<=$E$3),"-","INVALIDE"),"-") -> - | F66: =IF('Taxe foncière générale'!E66="-","-",IF(E66="Invalide",IF(D66<0.666*'Taux uniformisé'!$C$4,"Inférieur au minimum","Supérieur au maximum"))) -> - | J66: 0
A67: 61 | B67: =IF('Assiette par secteur'!B69="","",'Assiette par secteur'!B69) ->  | C67: =IF('Assiette par secteur'!E69="","",'Assiette par secteur'!E69) ->  | E67: =IF(D67>0,IF(AND($E$2<=D67,'Taxe foncière générale'!D67<=$E$3),"-","INVALIDE"),"-") -> - | F67: =IF('Taxe foncière générale'!E67="-","-",IF(E67="Invalide",IF(D67<0.666*'Taux uniformisé'!$C$4,"Inférieur au minimum","Supérieur au maximum"))) -> - | J67: 0
A68: 62 | B68: =IF('Assiette par secteur'!B70="","",'Assiette par secteur'!B70) ->  | C68: =IF('Assiette par secteur'!E70="","",'Assiette par secteur'!E70) ->  | E68: =IF(D68>0,IF(AND($E$2<=D68,'Taxe foncière générale'!D68<=$E$3),"-","INVALIDE"),"-") -> - | F68: =IF('Taxe foncière générale'!E68="-","-",IF(E68="Invalide",IF(D68<0.666*'Taux uniformisé'!$C$4,"Inférieur au minimum","Supérieur au maximum"))) -> - | J68: 0
A69: 63 | B69: =IF('Assiette par secteur'!B71="","",'Assiette par secteur'!B71) ->  | C69: =IF('Assiette par secteur'!E71="","",'Assiette par secteur'!E71) ->  | E69: =IF(D69>0,IF(AND($E$2<=D69,'Taxe foncière générale'!D69<=$E$3),"-","INVALIDE"),"-") -> - | F69: =IF('Taxe foncière générale'!E69="-","-",IF(E69="Invalide",IF(D69<0.666*'Taux uniformisé'!$C$4,"Inférieur au minimum","Supérieur au maximum"))) -> - | J69: 0
A70: 64 | B70: =IF('Assiette par secteur'!B72="","",'Assiette par secteur'!B72) ->  | C70: =IF('Assiette par secteur'!E72="","",'Assiette par secteur'!E72) ->  | E70: =IF(D70>0,IF(AND($E$2<=D70,'Taxe foncière générale'!D70<=$E$3),"-","INVALIDE"),"-") -> - | F70: =IF('Taxe foncière générale'!E70="-","-",IF(E70="Invalide",IF(D70<0.666*'Taux uniformisé'!$C$4,"Inférieur au minimum","Supérieur au maximum"))) -> - | J70: 0
A71: 65 | B71: =IF('Assiette par secteur'!B73="","",'Assiette par secteur'!B73) ->  | C71: =IF('Assiette par secteur'!E73="","",'Assiette par secteur'!E73) ->  | E71: =IF(D71>0,IF(AND($E$2<=D71,'Taxe foncière générale'!D71<=$E$3),"-","INVALIDE"),"-") -> - | F71: =IF('Taxe foncière générale'!E71="-","-",IF(E71="Invalide",IF(D71<0.666*'Taux uniformisé'!$C$4,"Inférieur au minimum","Supérieur au maximum"))) -> - | H71: =IF(D71>0,C71,"") ->  | I71: =IF(C71="","",IF(D71>0,D71*C71/$H$2007,0)) ->  | J71: 0
A72: 66 | B72: =IF('Assiette par secteur'!B74="","",'Assiette par secteur'!B74) ->  | C72: =IF('Assiette par secteur'!E74="","",'Assiette par secteur'!E74) ->  | E72: =IF(D72>0,IF(AND($E$2<=D72,'Taxe foncière générale'!D72<=$E$3),"-","INVALIDE"),"-") -> - | F72: =IF('Taxe foncière générale'!E72="-","-",IF(E72="Invalide",IF(D72<0.666*'Taux uniformisé'!$C$4,"Inférieur au minimum","Supérieur au maximum"))) -> - | G72: =IF(AND(C72>0,I72=0),"PAS DE TAUX SECTORIEL","") ->  | J72: =IF(E72="-",0,1) -> 0 | K72: =IF(G72="","",1) -> 
A73: =A72+1 -> 67 | B73: =IF('Assiette par secteur'!B75="","",'Assiette par secteur'!B75) ->  | C73: =IF('Assiette par secteur'!E75="","",'Assiette par secteur'!E75) ->  | E73: =IF(D73>0,IF(AND($E$2<=D73,'Taxe foncière générale'!D73<=$E$3),"-","INVALIDE"),"-") -> - | F73: =IF('Taxe foncière générale'!E73="-","-",IF(E73="Invalide",IF(D73<0.666*'Taux uniformisé'!$C$4,"Inférieur au minimum","Supérieur au maximum"))) -> - | J73: 0
A74: 68 | B74: =IF('Assiette par secteur'!B76="","",'Assiette par secteur'!B76) ->  | C74: =IF('Assiette par secteur'!E76="","",'Assiette par secteur'!E76) ->  | E74: =IF(D74>0,IF(AND($E$2<=D74,'Taxe foncière générale'!D74<=$E$3),"-","INVALIDE"),"-") -> - | F74: =IF('Taxe foncière générale'!E74="-","-",IF(E74="Invalide",IF(D74<0.666*'Taux uniformisé'!$C$4,"Inférieur au minimum","Supérieur au maximum"))) -> - | J74: 0
A75: 69 | B75: =IF('Assiette par secteur'!B77="","",'Assiette par secteur'!B77) ->  | C75: =IF('Assiette par secteur'!E77="","",'Assiette par secteur'!E77) ->  | E75: =IF(D75>0,IF(AND($E$2<=D75,'Taxe foncière générale'!D75<=$E$3),"-","INVALIDE"),"-") -> - | F75: =IF('Taxe foncière générale'!E75="-","-",IF(E75="Invalide",IF(D75<0.666*'Taux uniformisé'!$C$4,"Inférieur au minimum","Supérieur au maximum"))) -> - | J75: 0
A76: 70 | B76: =IF('Assiette par secteur'!B78="","",'Assiette par secteur'!B78) ->  | C76: =IF('Assiette par secteur'!E78="","",'Assiette par secteur'!E78) ->  | E76: =IF(D76>0,IF(AND($E$2<=D76,'Taxe foncière générale'!D76<=$E$3),"-","INVALIDE"),"-") -> - | F76: =IF('Taxe foncière générale'!E76="-","-",IF(E76="Invalide",IF(D76<0.666*'Taux uniformisé'!$C$4,"Inférieur au minimum","Supérieur au maximum"))) -> - | J76: 0
A77: 71 | B77: =IF('Assiette par secteur'!B79="","",'Assiette par secteur'!B79) ->  | C77: =IF('Assiette par secteur'!E79="","",'Assiette par secteur'!E79) ->  | E77: =IF(D77>0,IF(AND($E$2<=D77,'Taxe foncière générale'!D77<=$E$3),"-","INVALIDE"),"-") -> - | F77: =IF('Taxe foncière générale'!E77="-","-",IF(E77="Invalide",IF(D77<0.666*'Taux uniformisé'!$C$4,"Inférieur au minimum","Supérieur au maximum"))) -> - | J77: 0
A78: 72 | B78: =IF('Assiette par secteur'!B80="","",'Assiette par secteur'!B80) ->  | C78: =IF('Assiette par secteur'!E80="","",'Assiette par secteur'!E80) ->  | E78: =IF(D78>0,IF(AND($E$2<=D78,'Taxe foncière générale'!D78<=$E$3),"-","INVALIDE"),"-") -> - | F78: =IF('Taxe foncière générale'!E78="-","-",IF(E78="Invalide",IF(D78<0.666*'Taux uniformisé'!$C$4,"Inférieur au minimum","Supérieur au maximum"))) -> - | J78: 0
A79: 73 | B79: =IF('Assiette par secteur'!B81="","",'Assiette par secteur'!B81) ->  | C79: =IF('Assiette par secteur'!E81="","",'Assiette par secteur'!E81) ->  | E79: =IF(D79>0,IF(AND($E$2<=D79,'Taxe foncière générale'!D79<=$E$3),"-","INVALIDE"),"-") -> - | F79: =IF('Taxe foncière générale'!E79="-","-",IF(E79="Invalide",IF(D79<0.666*'Taux uniformisé'!$C$4,"Inférieur au minimum","Supérieur au maximum"))) -> - | J79: 0
A80: 74 | B80: =IF('Assiette par secteur'!B82="","",'Assiette par secteur'!B82) ->  | C80: =IF('Assiette par secteur'!E82="","",'Assiette par secteur'!E82) ->  | E80: =IF(D80>0,IF(AND($E$2<=D80,'Taxe foncière générale'!D80<=$E$3),"-","INVALIDE"),"-") -> - | F80: =IF('Taxe foncière générale'!E80="-","-",IF(E80="Invalide",IF(D80<0.666*'Taux uniformisé'!$C$4,"Inférieur au minimum","Supérieur au maximum"))) -> - | J80: 0
A81: 75 | B81: =IF('Assiette par secteur'!B83="","",'Assiette par secteur'!B83) ->  | C81: =IF('Assiette par secteur'!E83="","",'Assiette par secteur'!E83) ->  | E81: =IF(D81>0,IF(AND($E$2<=D81,'Taxe foncière générale'!D81<=$E$3),"-","INVALIDE"),"-") -> - | F81: =IF('Taxe foncière générale'!E81="-","-",IF(E81="Invalide",IF(D81<0.666*'Taux uniformisé'!$C$4,"Inférieur au minimum","Supérieur au maximum"))) -> - | J81: 0
A82: 76 | B82: =IF('Assiette par secteur'!B84="","",'Assiette par secteur'!B84) ->  | C82: =IF('Assiette par secteur'!E84="","",'Assiette par secteur'!E84) ->  | E82: =IF(D82>0,IF(AND($E$2<=D82,'Taxe foncière générale'!D82<=$E$3),"-","INVALIDE"),"-") -> - | F82: =IF('Taxe foncière générale'!E82="-","-",IF(E82="Invalide",IF(D82<0.666*'Taux uniformisé'!$C$4,"Inférieur au minimum","Supérieur au maximum"))) -> - | J82: 0
A83: 77 | B83: =IF('Assiette par secteur'!B85="","",'Assiette par secteur'!B85) ->  | C83: =IF('Assiette par secteur'!E85="","",'Assiette par secteur'!E85) ->  | E83: =IF(D83>0,IF(AND($E$2<=D83,'Taxe foncière générale'!D83<=$E$3),"-","INVALIDE"),"-") -> - | F83: =IF('Taxe foncière générale'!E83="-","-",IF(E83="Invalide",IF(D83<0.666*'Taux uniformisé'!$C$4,"Inférieur au minimum","Supérieur au maximum"))) -> - | J83: 0
A84: 78 | B84: =IF('Assiette par secteur'!B86="","",'Assiette par secteur'!B86) ->  | C84: =IF('Assiette par secteur'!E86="","",'Assiette par secteur'!E86) ->  | E84: =IF(D84>0,IF(AND($E$2<=D84,'Taxe foncière générale'!D84<=$E$3),"-","INVALIDE"),"-") -> - | F84: =IF('Taxe foncière générale'!E84="-","-",IF(E84="Invalide",IF(D84<0.666*'Taux uniformisé'!$C$4,"Inférieur au minimum","Supérieur au maximum"))) -> - | J84: 0
A85: 79 | B85: =IF('Assiette par secteur'!B87="","",'Assiette par secteur'!B87) ->  | C85: =IF('Assiette par secteur'!E87="","",'Assiette par secteur'!E87) ->  | E85: =IF(D85>0,IF(AND($E$2<=D85,'Taxe foncière générale'!D85<=$E$3),"-","INVALIDE"),"-") -> - | F85: =IF('Taxe foncière générale'!E85="-","-",IF(E85="Invalide",IF(D85<0.666*'Taux uniformisé'!$C$4,"Inférieur au minimum","Supérieur au maximum"))) -> - | J85: 0
A86: 80 | B86: =IF('Assiette par secteur'!B88="","",'Assiette par secteur'!B88) ->  | C86: =IF('Assiette par secteur'!E88="","",'Assiette par secteur'!E88) ->  | E86: =IF(D86>0,IF(AND($E$2<=D86,'Taxe foncière générale'!D86<=$E$3),"-","INVALIDE"),"-") -> - | F86: =IF('Taxe foncière générale'!E86="-","-",IF(E86="Invalide",IF(D86<0.666*'Taux uniformisé'!$C$4,"Inférieur au minimum","Supérieur au maximum"))) -> - | J86: 0
A87: 81 | B87: =IF('Assiette par secteur'!B89="","",'Assiette par secteur'!B89) ->  | C87: =IF('Assiette par secteur'!E89="","",'Assiette par secteur'!E89) ->  | E87: =IF(D87>0,IF(AND($E$2<=D87,'Taxe foncière générale'!D87<=$E$3),"-","INVALIDE"),"-") -> - | F87: =IF('Taxe foncière générale'!E87="-","-",IF(E87="Invalide",IF(D87<0.666*'Taux uniformisé'!$C$4,"Inférieur au minimum","Supérieur au maximum"))) -> - | J87: 0
A88: 82 | B88: =IF('Assiette par secteur'!B90="","",'Assiette par secteur'!B90) ->  | C88: =IF('Assiette par secteur'!E90="","",'Assiette par secteur'!E90) ->  | E88: =IF(D88>0,IF(AND($E$2<=D88,'Taxe foncière générale'!D88<=$E$3),"-","INVALIDE"),"-") -> - | F88: =IF('Taxe foncière générale'!E88="-","-",IF(E88="Invalide",IF(D88<0.666*'Taux uniformisé'!$C$4,"Inférieur au minimum","Supérieur au maximum"))) -> - | J88: 0
A89: 83 | B89: =IF('Assiette par secteur'!B91="","",'Assiette par secteur'!B91) ->  | C89: =IF('Assiette par secteur'!E91="","",'Assiette par secteur'!E91) ->  | E89: =IF(D89>0,IF(AND($E$2<=D89,'Taxe foncière générale'!D89<=$E$3),"-","INVALIDE"),"-") -> - | F89: =IF('Taxe foncière générale'!E89="-","-",IF(E89="Invalide",IF(D89<0.666*'Taux uniformisé'!$C$4,"Inférieur au minimum","Supérieur au maximum"))) -> - | J89: 0
A90: 84 | B90: =IF('Assiette par secteur'!B92="","",'Assiette par secteur'!B92) ->  | C90: =IF('Assiette par secteur'!E92="","",'Assiette par secteur'!E92) ->  | E90: =IF(D90>0,IF(AND($E$2<=D90,'Taxe foncière générale'!D90<=$E$3),"-","INVALIDE"),"-") -> - | F90: =IF('Taxe foncière générale'!E90="-","-",IF(E90="Invalide",IF(D90<0.666*'Taux uniformisé'!$C$4,"Inférieur au minimum","Supérieur au maximum"))) -> - | J90: 0
A91: 85 | B91: =IF('Assiette par secteur'!B93="","",'Assiette par secteur'!B93) ->  | C91: =IF('Assiette par secteur'!E93="","",'Assiette par secteur'!E93) ->  | E91: =IF(D91>0,IF(AND($E$2<=D91,'Taxe foncière générale'!D91<=$E$3),"-","INVALIDE"),"-") -> - | F91: =IF('Taxe foncière générale'!E91="-","-",IF(E91="Invalide",IF(D91<0.666*'Taux uniformisé'!$C$4,"Inférieur au minimum","Supérieur au maximum"))) -> - | J91: 0
A92: 86 | B92: =IF('Assiette par secteur'!B94="","",'Assiette par secteur'!B94) ->  | C92: =IF('Assiette par secteur'!E94="","",'Assiette par secteur'!E94) ->  | E92: =IF(D92>0,IF(AND($E$2<=D92,'Taxe foncière générale'!D92<=$E$3),"-","INVALIDE"),"-") -> - | F92: =IF('Taxe foncière générale'!E92="-","-",IF(E92="Invalide",IF(D92<0.666*'Taux uniformisé'!$C$4,"Inférieur au minimum","Supérieur au maximum"))) -> - | J92: 0
A93: 87 | B93: =IF('Assiette par secteur'!B95="","",'Assiette par secteur'!B95) ->  | C93: =IF('Assiette par secteur'!E95="","",'Assiette par secteur'!E95) ->  | E93: =IF(D93>0,IF(AND($E$2<=D93,'Taxe foncière générale'!D93<=$E$3),"-","INVALIDE"),"-") -> - | F93: =IF('Taxe foncière générale'!E93="-","-",IF(E93="Invalide",IF(D93<0.666*'Taux uniformisé'!$C$4,"Inférieur au minimum","Supérieur au maximum"))) -> - | J93: 0
A94: 88 | B94: =IF('Assiette par secteur'!B96="","",'Assiette par secteur'!B96) ->  | C94: =IF('Assiette par secteur'!E96="","",'Assiette par secteur'!E96) ->  | E94: =IF(D94>0,IF(AND($E$2<=D94,'Taxe foncière générale'!D94<=$E$3),"-","INVALIDE"),"-") -> - | F94: =IF('Taxe foncière générale'!E94="-","-",IF(E94="Invalide",IF(D94<0.666*'Taux uniformisé'!$C$4,"Inférieur au minimum","Supérieur au maximum"))) -> - | J94: 0
A95: 89 | B95: =IF('Assiette par secteur'!B97="","",'Assiette par secteur'!B97) ->  | C95: =IF('Assiette par secteur'!E97="","",'Assiette par secteur'!E97) ->  | E95: =IF(D95>0,IF(AND($E$2<=D95,'Taxe foncière générale'!D95<=$E$3),"-","INVALIDE"),"-") -> - | F95: =IF('Taxe foncière générale'!E95="-","-",IF(E95="Invalide",IF(D95<0.666*'Taux uniformisé'!$C$4,"Inférieur au minimum","Supérieur au maximum"))) -> - | J95: 0
A96: 90 | B96: =IF('Assiette par secteur'!B98="","",'Assiette par secteur'!B98) ->  | C96: =IF('Assiette par secteur'!E98="","",'Assiette par secteur'!E98) ->  | E96: =IF(D96>0,IF(AND($E$2<=D96,'Taxe foncière générale'!D96<=$E$3),"-","INVALIDE"),"-") -> - | F96: =IF('Taxe foncière générale'!E96="-","-",IF(E96="Invalide",IF(D96<0.666*'Taux uniformisé'!$C$4,"Inférieur au minimum","Supérieur au maximum"))) -> - | J96: 0
A97: 91 | B97: =IF('Assiette par secteur'!B99="","",'Assiette par secteur'!B99) ->  | C97: =IF('Assiette par secteur'!E99="","",'Assiette par secteur'!E99) ->  | E97: =IF(D97>0,IF(AND($E$2<=D97,'Taxe foncière générale'!D97<=$E$3),"-","INVALIDE"),"-") -> - | F97: =IF('Taxe foncière générale'!E97="-","-",IF(E97="Invalide",IF(D97<0.666*'Taux uniformisé'!$C$4,"Inférieur au minimum","Supérieur au maximum"))) -> - | J97: 0
A98: 92 | B98: =IF('Assiette par secteur'!B100="","",'Assiette par secteur'!B100) ->  | C98: =IF('Assiette par secteur'!E100="","",'Assiette par secteur'!E100) ->  | E98: =IF(D98>0,IF(AND($E$2<=D98,'Taxe foncière générale'!D98<=$E$3),"-","INVALIDE"),"-") -> - | F98: =IF('Taxe foncière générale'!E98="-","-",IF(E98="Invalide",IF(D98<0.666*'Taux uniformisé'!$C$4,"Inférieur au minimum","Supérieur au maximum"))) -> - | J98: 0
A99: 93 | B99: =IF('Assiette par secteur'!B101="","",'Assiette par secteur'!B101) ->  | C99: =IF('Assiette par secteur'!E101="","",'Assiette par secteur'!E101) ->  | E99: =IF(D99>0,IF(AND($E$2<=D99,'Taxe foncière générale'!D99<=$E$3),"-","INVALIDE"),"-") -> - | F99: =IF('Taxe foncière générale'!E99="-","-",IF(E99="Invalide",IF(D99<0.666*'Taux uniformisé'!$C$4,"Inférieur au minimum","Supérieur au maximum"))) -> - | J99: 0
A100: 94 | B100: =IF('Assiette par secteur'!B102="","",'Assiette par secteur'!B102) ->  | C100: =IF('Assiette par secteur'!E102="","",'Assiette par secteur'!E102) ->  | E100: =IF(D100>0,IF(AND($E$2<=D100,'Taxe foncière générale'!D100<=$E$3),"-","INVALIDE"),"-") -> - | F100: =IF('Taxe foncière générale'!E100="-","-",IF(E100="Invalide",IF(D100<0.666*'Taux uniformisé'!$C$4,"Inférieur au minimum","Supérieur au maximum"))) -> - | J100: 0
A101: 95 | B101: =IF('Assiette par secteur'!B103="","",'Assiette par secteur'!B103) ->  | C101: =IF('Assiette par secteur'!E103="","",'Assiette par secteur'!E103) ->  | E101: =IF(D101>0,IF(AND($E$2<=D101,'Taxe foncière générale'!D101<=$E$3),"-","INVALIDE"),"-") -> - | F101: =IF('Taxe foncière générale'!E101="-","-",IF(E101="Invalide",IF(D101<0.666*'Taux uniformisé'!$C$4,"Inférieur au minimum","Supérieur au maximum"))) -> - | J101: 0
A102: 96 | B102: =IF('Assiette par secteur'!B104="","",'Assiette par secteur'!B104) ->  | C102: =IF('Assiette par secteur'!E104="","",'Assiette par secteur'!E104) ->  | E102: =IF(D102>0,IF(AND($E$2<=D102,'Taxe foncière générale'!D102<=$E$3),"-","INVALIDE"),"-") -> - | F102: =IF('Taxe foncière générale'!E102="-","-",IF(E102="Invalide",IF(D102<0.666*'Taux uniformisé'!$C$4,"Inférieur au minimum","Supérieur au maximum"))) -> - | J102: 0
A103: 97 | B103: =IF('Assiette par secteur'!B105="","",'Assiette par secteur'!B105) ->  | C103: =IF('Assiette par secteur'!E105="","",'Assiette par secteur'!E105) ->  | E103: =IF(D103>0,IF(AND($E$2<=D103,'Taxe foncière générale'!D103<=$E$3),"-","INVALIDE"),"-") -> - | F103: =IF('Taxe foncière générale'!E103="-","-",IF(E103="Invalide",IF(D103<0.666*'Taux uniformisé'!$C$4,"Inférieur au minimum","Supérieur au maximum"))) -> - | J103: 0
A104: 98 | B104: =IF('Assiette par secteur'!B106="","",'Assiette par secteur'!B106) ->  | C104: =IF('Assiette par secteur'!E106="","",'Assiette par secteur'!E106) ->  | E104: =IF(D104>0,IF(AND($E$2<=D104,'Taxe foncière générale'!D104<=$E$3),"-","INVALIDE"),"-") -> - | F104: =IF('Taxe foncière générale'!E104="-","-",IF(E104="Invalide",IF(D104<0.666*'Taux uniformisé'!$C$4,"Inférieur au minimum","Supérieur au maximum"))) -> - | J104: 0
A105: 99 | B105: =IF('Assiette par secteur'!B107="","",'Assiette par secteur'!B107) ->  | C105: =IF('Assiette par secteur'!E107="","",'Assiette par secteur'!E107) ->  | E105: =IF(D105>0,IF(AND($E$2<=D105,'Taxe foncière générale'!D105<=$E$3),"-","INVALIDE"),"-") -> - | F105: =IF('Taxe foncière générale'!E105="-","-",IF(E105="Invalide",IF(D105<0.666*'Taux uniformisé'!$C$4,"Inférieur au minimum","Supérieur au maximum"))) -> - | J105: 0
A106: 100 | B106: =IF('Assiette par secteur'!B108="","",'Assiette par secteur'!B108) ->  | C106: =IF('Assiette par secteur'!E108="","",'Assiette par secteur'!E108) ->  | E106: =IF(D106>0,IF(AND($E$2<=D106,'Taxe foncière générale'!D106<=$E$3),"-","INVALIDE"),"-") -> - | F106: =IF('Taxe foncière générale'!E106="-","-",IF(E106="Invalide",IF(D106<0.666*'Taux uniformisé'!$C$4,"Inférieur au minimum","Supérieur au maximum"))) -> - | J106: 0
A107: 101 | B107: =IF('Assiette par secteur'!B109="","",'Assiette par secteur'!B109) ->  | C107: =IF('Assiette par secteur'!E109="","",'Assiette par secteur'!E109) ->  | E107: =IF(D107>0,IF(AND($E$2<=D107,'Taxe foncière générale'!D107<=$E$3),"-","INVALIDE"),"-") -> - | F107: =IF('Taxe foncière générale'!E107="-","-",IF(E107="Invalide",IF(D107<0.666*'Taux uniformisé'!$C$4,"Inférieur au minimum","Supérieur au maximum"))) -> - | J107: 0
A108: 102 | B108: =IF('Assiette par secteur'!B110="","",'Assiette par secteur'!B110) ->  | C108: =IF('Assiette par secteur'!E110="","",'Assiette par secteur'!E110) ->  | E108: =IF(D108>0,IF(AND($E$2<=D108,'Taxe foncière générale'!D108<=$E$3),"-","INVALIDE"),"-") -> - | F108: =IF('Taxe foncière générale'!E108="-","-",IF(E108="Invalide",IF(D108<0.666*'Taux uniformisé'!$C$4,"Inférieur au minimum","Supérieur au maximum"))) -> - | J108: 0
A109: 103 | B109: =IF('Assiette par secteur'!B111="","",'Assiette par secteur'!B111) ->  | C109: =IF('Assiette par secteur'!E111="","",'Assiette par secteur'!E111) ->  | E109: =IF(D109>0,IF(AND($E$2<=D109,'Taxe foncière générale'!D109<=$E$3),"-","INVALIDE"),"-") -> - | F109: =IF('Taxe foncière générale'!E109="-","-",IF(E109="Invalide",IF(D109<0.666*'Taux uniformisé'!$C$4,"Inférieur au minimum","Supérieur au maximum"))) -> - | J109: 0
A110: 104 | B110: =IF('Assiette par secteur'!B112="","",'Assiette par secteur'!B112) ->  | C110: =IF('Assiette par secteur'!E112="","",'Assiette par secteur'!E112) ->  | E110: =IF(D110>0,IF(AND($E$2<=D110,'Taxe foncière générale'!D110<=$E$3),"-","INVALIDE"),"-") -> - | F110: =IF('Taxe foncière générale'!E110="-","-",IF(E110="Invalide",IF(D110<0.666*'Taux uniformisé'!$C$4,"Inférieur au minimum","Supérieur au maximum"))) -> - | J110: 0
A111: 105 | B111: =IF('Assiette par secteur'!B113="","",'Assiette par secteur'!B113) ->  | C111: =IF('Assiette par secteur'!E113="","",'Assiette par secteur'!E113) ->  | E111: =IF(D111>0,IF(AND($E$2<=D111,'Taxe foncière générale'!D111<=$E$3),"-","INVALIDE"),"-") -> - | F111: =IF('Taxe foncière générale'!E111="-","-",IF(E111="Invalide",IF(D111<0.666*'Taux uniformisé'!$C$4,"Inférieur au minimum","Supérieur au maximum"))) -> - | J111: 0
A112: 106 | B112: =IF('Assiette par secteur'!B114="","",'Assiette par secteur'!B114) ->  | C112: =IF('Assiette par secteur'!E114="","",'Assiette par secteur'!E114) ->  | E112: =IF(D112>0,IF(AND($E$2<=D112,'Taxe foncière générale'!D112<=$E$3),"-","INVALIDE"),"-") -> - | F112: =IF('Taxe foncière générale'!E112="-","-",IF(E112="Invalide",IF(D112<0.666*'Taux uniformisé'!$C$4,"Inférieur au minimum","Supérieur au maximum"))) -> - | J112: 0
A113: 107 | B113: =IF('Assiette par secteur'!B115="","",'Assiette par secteur'!B115) ->  | C113: =IF('Assiette par secteur'!E115="","",'Assiette par secteur'!E115) ->  | E113: =IF(D113>0,IF(AND($E$2<=D113,'Taxe foncière générale'!D113<=$E$3),"-","INVALIDE"),"-") -> - | F113: =IF('Taxe foncière générale'!E113="-","-",IF(E113="Invalide",IF(D113<0.666*'Taux uniformisé'!$C$4,"Inférieur au minimum","Supérieur au maximum"))) -> - | J113: 0
A114: 108 | B114: =IF('Assiette par secteur'!B116="","",'Assiette par secteur'!B116) ->  | C114: =IF('Assiette par secteur'!E116="","",'Assiette par secteur'!E116) ->  | E114: =IF(D114>0,IF(AND($E$2<=D114,'Taxe foncière générale'!D114<=$E$3),"-","INVALIDE"),"-") -> - | F114: =IF('Taxe foncière générale'!E114="-","-",IF(E114="Invalide",IF(D114<0.666*'Taux uniformisé'!$C$4,"Inférieur au minimum","Supérieur au maximum"))) -> - | J114: 0
A115: 109 | B115: =IF('Assiette par secteur'!B117="","",'Assiette par secteur'!B117) ->  | C115: =IF('Assiette par secteur'!E117="","",'Assiette par secteur'!E117) ->  | E115: =IF(D115>0,IF(AND($E$2<=D115,'Taxe foncière générale'!D115<=$E$3),"-","INVALIDE"),"-") -> - | F115: =IF('Taxe foncière générale'!E115="-","-",IF(E115="Invalide",IF(D115<0.666*'Taux uniformisé'!$C$4,"Inférieur au minimum","Supérieur au maximum"))) -> - | J115: 0
A116: 110 | B116: =IF('Assiette par secteur'!B118="","",'Assiette par secteur'!B118) ->  | C116: =IF('Assiette par secteur'!E118="","",'Assiette par secteur'!E118) ->  | E116: =IF(D116>0,IF(AND($E$2<=D116,'Taxe foncière générale'!D116<=$E$3),"-","INVALIDE"),"-") -> - | F116: =IF('Taxe foncière générale'!E116="-","-",IF(E116="Invalide",IF(D116<0.666*'Taux uniformisé'!$C$4,"Inférieur au minimum","Supérieur au maximum"))) -> - | J116: 0
A117: 111 | B117: =IF('Assiette par secteur'!B119="","",'Assiette par secteur'!B119) ->  | C117: =IF('Assiette par secteur'!E119="","",'Assiette par secteur'!E119) ->  | E117: =IF(D117>0,IF(AND($E$2<=D117,'Taxe foncière générale'!D117<=$E$3),"-","INVALIDE"),"-") -> - | F117: =IF('Taxe foncière générale'!E117="-","-",IF(E117="Invalide",IF(D117<0.666*'Taux uniformisé'!$C$4,"Inférieur au minimum","Supérieur au maximum"))) -> - | J117: 0
A118: 112 | B118: =IF('Assiette par secteur'!B120="","",'Assiette par secteur'!B120) ->  | C118: =IF('Assiette par secteur'!E120="","",'Assiette par secteur'!E120) ->  | E118: =IF(D118>0,IF(AND($E$2<=D118,'Taxe foncière générale'!D118<=$E$3),"-","INVALIDE"),"-") -> - | F118: =IF('Taxe foncière générale'!E118="-","-",IF(E118="Invalide",IF(D118<0.666*'Taux uniformisé'!$C$4,"Inférieur au minimum","Supérieur au maximum"))) -> - | J118: 0
A119: 113 | B119: =IF('Assiette par secteur'!B121="","",'Assiette par secteur'!B121) ->  | C119: =IF('Assiette par secteur'!E121="","",'Assiette par secteur'!E121) ->  | E119: =IF(D119>0,IF(AND($E$2<=D119,'Taxe foncière générale'!D119<=$E$3),"-","INVALIDE"),"-") -> - | F119: =IF('Taxe foncière générale'!E119="-","-",IF(E119="Invalide",IF(D119<0.666*'Taux uniformisé'!$C$4,"Inférieur au minimum","Supérieur au maximum"))) -> - | J119: 0
A120: 114 | B120: =IF('Assiette par secteur'!B122="","",'Assiette par secteur'!B122) ->  | C120: =IF('Assiette par secteur'!E122="","",'Assiette par secteur'!E122) ->  | E120: =IF(D120>0,IF(AND($E$2<=D120,'Taxe foncière générale'!D120<=$E$3),"-","INVALIDE"),"-") -> - | F120: =IF('Taxe foncière générale'!E120="-","-",IF(E120="Invalide",IF(D120<0.666*'Taux uniformisé'!$C$4,"Inférieur au minimum","Supérieur au maximum"))) -> - | J120: 0
A121: 115 | B121: =IF('Assiette par secteur'!B123="","",'Assiette par secteur'!B123) ->  | C121: =IF('Assiette par secteur'!E123="","",'Assiette par secteur'!E123) ->  | E121: =IF(D121>0,IF(AND($E$2<=D121,'Taxe foncière générale'!D121<=$E$3),"-","INVALIDE"),"-") -> - | F121: =IF('Taxe foncière générale'!E121="-","-",IF(E121="Invalide",IF(D121<0.666*'Taux uniformisé'!$C$4,"Inférieur au minimum","Supérieur au maximum"))) -> - | J121: 0
A122: 116 | B122: =IF('Assiette par secteur'!B124="","",'Assiette par secteur'!B124) ->  | C122: =IF('Assiette par secteur'!E124="","",'Assiette par secteur'!E124) ->  | E122: =IF(D122>0,IF(AND($E$2<=D122,'Taxe foncière générale'!D122<=$E$3),"-","INVALIDE"),"-") -> - | F122: =IF('Taxe foncière générale'!E122="-","-",IF(E122="Invalide",IF(D122<0.666*'Taux uniformisé'!$C$4,"Inférieur au minimum","Supérieur au maximum"))) -> - | J122: 0
A123: 117 | B123: =IF('Assiette par secteur'!B125="","",'Assiette par secteur'!B125) ->  | C123: =IF('Assiette par secteur'!E125="","",'Assiette par secteur'!E125) ->  | E123: =IF(D123>0,IF(AND($E$2<=D123,'Taxe foncière générale'!D123<=$E$3),"-","INVALIDE"),"-") -> - | F123: =IF('Taxe foncière générale'!E123="-","-",IF(E123="Invalide",IF(D123<0.666*'Taux uniformisé'!$C$4,"Inférieur au minimum","Supérieur au maximum"))) -> - | J123: 0
A124: 118 | B124: =IF('Assiette par secteur'!B126="","",'Assiette par secteur'!B126) ->  | C124: =IF('Assiette par secteur'!E126="","",'Assiette par secteur'!E126) ->  | E124: =IF(D124>0,IF(AND($E$2<=D124,'Taxe foncière générale'!D124<=$E$3),"-","INVALIDE"),"-") -> - | F124: =IF('Taxe foncière générale'!E124="-","-",IF(E124="Invalide",IF(D124<0.666*'Taux uniformisé'!$C$4,"Inférieur au minimum","Supérieur au maximum"))) -> - | J124: 0
A125: 119 | B125: =IF('Assiette par secteur'!B127="","",'Assiette par secteur'!B127) ->  | C125: =IF('Assiette par secteur'!E127="","",'Assiette par secteur'!E127) ->  | E125: =IF(D125>0,IF(AND($E$2<=D125,'Taxe foncière générale'!D125<=$E$3),"-","INVALIDE"),"-") -> - | F125: =IF('Taxe foncière générale'!E125="-","-",IF(E125="Invalide",IF(D125<0.666*'Taux uniformisé'!$C$4,"Inférieur au minimum","Supérieur au maximum"))) -> - | J125: 0
A126: 120 | B126: =IF('Assiette par secteur'!B128="","",'Assiette par secteur'!B128) ->  | C126: =IF('Assiette par secteur'!E128="","",'Assiette par secteur'!E128) ->  | E126: =IF(D126>0,IF(AND($E$2<=D126,'Taxe foncière générale'!D126<=$E$3),"-","INVALIDE"),"-") -> - | F126: =IF('Taxe foncière générale'!E126="-","-",IF(E126="Invalide",IF(D126<0.666*'Taux uniformisé'!$C$4,"Inférieur au minimum","Supérieur au maximum"))) -> - | J126: 0
A127: 121 | B127: =IF('Assiette par secteur'!B129="","",'Assiette par secteur'!B129) ->  | C127: =IF('Assiette par secteur'!E129="","",'Assiette par secteur'!E129) ->  | E127: =IF(D127>0,IF(AND($E$2<=D127,'Taxe foncière générale'!D127<=$E$3),"-","INVALIDE"),"-") -> - | F127: =IF('Taxe foncière générale'!E127="-","-",IF(E127="Invalide",IF(D127<0.666*'Taux uniformisé'!$C$4,"Inférieur au minimum","Supérieur au maximum"))) -> - | J127: 0
A128: 122 | B128: =IF('Assiette par secteur'!B130="","",'Assiette par secteur'!B130) ->  | C128: =IF('Assiette par secteur'!E130="","",'Assiette par secteur'!E130) ->  | E128: =IF(D128>0,IF(AND($E$2<=D128,'Taxe foncière générale'!D128<=$E$3),"-","INVALIDE"),"-") -> - | F128: =IF('Taxe foncière générale'!E128="-","-",IF(E128="Invalide",IF(D128<0.666*'Taux uniformisé'!$C$4,"Inférieur au minimum","Supérieur au maximum"))) -> - | J128: 0
A129: 123 | B129: =IF('Assiette par secteur'!B131="","",'Assiette par secteur'!B131) ->  | C129: =IF('Assiette par secteur'!E131="","",'Assiette par secteur'!E131) ->  | E129: =IF(D129>0,IF(AND($E$2<=D129,'Taxe foncière générale'!D129<=$E$3),"-","INVALIDE"),"-") -> - | F129: =IF('Taxe foncière générale'!E129="-","-",IF(E129="Invalide",IF(D129<0.666*'Taux uniformisé'!$C$4,"Inférieur au minimum","Supérieur au maximum"))) -> - | J129: 0
A130: 124 | B130: =IF('Assiette par secteur'!B132="","",'Assiette par secteur'!B132) ->  | C130: =IF('Assiette par secteur'!E132="","",'Assiette par secteur'!E132) ->  | E130: =IF(D130>0,IF(AND($E$2<=D130,'Taxe foncière générale'!D130<=$E$3),"-","INVALIDE"),"-") -> - | F130: =IF('Taxe foncière générale'!E130="-","-",IF(E130="Invalide",IF(D130<0.666*'Taux uniformisé'!$C$4,"Inférieur au minimum","Supérieur au maximum"))) -> - | J130: 0
A131: 125 | B131: =IF('Assiette par secteur'!B133="","",'Assiette par secteur'!B133) ->  | C131: =IF('Assiette par secteur'!E133="","",'Assiette par secteur'!E133) ->  | E131: =IF(D131>0,IF(AND($E$2<=D131,'Taxe foncière générale'!D131<=$E$3),"-","INVALIDE"),"-") -> - | F131: =IF('Taxe foncière générale'!E131="-","-",IF(E131="Invalide",IF(D131<0.666*'Taux uniformisé'!$C$4,"Inférieur au minimum","Supérieur au maximum"))) -> - | J131: 0
A132: 126 | B132: =IF('Assiette par secteur'!B134="","",'Assiette par secteur'!B134) ->  | C132: =IF('Assiette par secteur'!E134="","",'Assiette par secteur'!E134) ->  | E132: =IF(D132>0,IF(AND($E$2<=D132,'Taxe foncière générale'!D132<=$E$3),"-","INVALIDE"),"-") -> - | F132: =IF('Taxe foncière générale'!E132="-","-",IF(E132="Invalide",IF(D132<0.666*'Taux uniformisé'!$C$4,"Inférieur au minimum","Supérieur au maximum"))) -> - | J132: 0
A133: 127 | B133: =IF('Assiette par secteur'!B135="","",'Assiette par secteur'!B135) ->  | C133: =IF('Assiette par secteur'!E135="","",'Assiette par secteur'!E135) ->  | E133: =IF(D133>0,IF(AND($E$2<=D133,'Taxe foncière générale'!D133<=$E$3),"-","INVALIDE"),"-") -> - | F133: =IF('Taxe foncière générale'!E133="-","-",IF(E133="Invalide",IF(D133<0.666*'Taux uniformisé'!$C$4,"Inférieur au minimum","Supérieur au maximum"))) -> - | J133: 0
A134: 128 | B134: =IF('Assiette par secteur'!B136="","",'Assiette par secteur'!B136) ->  | C134: =IF('Assiette par secteur'!E136="","",'Assiette par secteur'!E136) ->  | E134: =IF(D134>0,IF(AND($E$2<=D134,'Taxe foncière générale'!D134<=$E$3),"-","INVALIDE"),"-") -> - | F134: =IF('Taxe foncière générale'!E134="-","-",IF(E134="Invalide",IF(D134<0.666*'Taux uniformisé'!$C$4,"Inférieur au minimum","Supérieur au maximum"))) -> - | J134: 0
A135: 129 | B135: =IF('Assiette par secteur'!B137="","",'Assiette par secteur'!B137) ->  | C135: =IF('Assiette par secteur'!E137="","",'Assiette par secteur'!E137) ->  | E135: =IF(D135>0,IF(AND($E$2<=D135,'Taxe foncière générale'!D135<=$E$3),"-","INVALIDE"),"-") -> - | F135: =IF('Taxe foncière générale'!E135="-","-",IF(E135="Invalide",IF(D135<0.666*'Taux uniformisé'!$C$4,"Inférieur au minimum","Supérieur au maximum"))) -> - | H135: =IF(D135>0,C135,"") ->  | I135: =IF(C135="","",IF(D135>0,D135*C135/$H$2007,0)) ->  | J135: 0
A136: 130 | B136: =IF('Assiette par secteur'!B138="","",'Assiette par secteur'!B138) ->  | C136: =IF('Assiette par secteur'!E138="","",'Assiette par secteur'!E138) ->  | E136: =IF(D136>0,IF(AND($E$2<=D136,'Taxe foncière générale'!D136<=$E$3),"-","INVALIDE"),"-") -> - | F136: =IF('Taxe foncière générale'!E136="-","-",IF(E136="Invalide",IF(D136<0.666*'Taux uniformisé'!$C$4,"Inférieur au minimum","Supérieur au maximum"))) -> - | G136: =IF(AND(C136>0,I136=0),"PAS DE TAUX SECTORIEL","") ->  | J136: =IF(E136="-",0,1) -> 0 | K136: =IF(G136="","",1) -> 
A137: =A136+1 -> 131 | B137: =IF('Assiette par secteur'!B139="","",'Assiette par secteur'!B139) ->  | C137: =IF('Assiette par secteur'!E139="","",'Assiette par secteur'!E139) ->  | E137: =IF(D137>0,IF(AND($E$2<=D137,'Taxe foncière générale'!D137<=$E$3),"-","INVALIDE"),"-") -> - | F137: =IF('Taxe foncière générale'!E137="-","-",IF(E137="Invalide",IF(D137<0.666*'Taux uniformisé'!$C$4,"Inférieur au minimum","Supérieur au maximum"))) -> - | J137: 0
A138: 132 | B138: =IF('Assiette par secteur'!B140="","",'Assiette par secteur'!B140) ->  | C138: =IF('Assiette par secteur'!E140="","",'Assiette par secteur'!E140) ->  | E138: =IF(D138>0,IF(AND($E$2<=D138,'Taxe foncière générale'!D138<=$E$3),"-","INVALIDE"),"-") -> - | F138: =IF('Taxe foncière générale'!E138="-","-",IF(E138="Invalide",IF(D138<0.666*'Taux uniformisé'!$C$4,"Inférieur au minimum","Supérieur au maximum"))) -> - | J138: 0
A139: 133 | B139: =IF('Assiette par secteur'!B141="","",'Assiette par secteur'!B141) ->  | C139: =IF('Assiette par secteur'!E141="","",'Assiette par secteur'!E141) ->  | E139: =IF(D139>0,IF(AND($E$2<=D139,'Taxe foncière générale'!D139<=$E$3),"-","INVALIDE"),"-") -> - | F139: =IF('Taxe foncière générale'!E139="-","-",IF(E139="Invalide",IF(D139<0.666*'Taux uniformisé'!$C$4,"Inférieur au minimum","Supérieur au maximum"))) -> - | J139: 0
A140: 134 | B140: =IF('Assiette par secteur'!B142="","",'Assiette par secteur'!B142) ->  | C140: =IF('Assiette par secteur'!E142="","",'Assiette par secteur'!E142) ->  | E140: =IF(D140>0,IF(AND($E$2<=D140,'Taxe foncière générale'!D140<=$E$3),"-","INVALIDE"),"-") -> - | F140: =IF('Taxe foncière générale'!E140="-","-",IF(E140="Invalide",IF(D140<0.666*'Taux uniformisé'!$C$4,"Inférieur au minimum","Supérieur au maximum"))) -> - | J140: 0
A141: 135 | B141: =IF('Assiette par secteur'!B143="","",'Assiette par secteur'!B143) ->  | C141: =IF('Assiette par secteur'!E143="","",'Assiette par secteur'!E143) ->  | E141: =IF(D141>0,IF(AND($E$2<=D141,'Taxe foncière générale'!D141<=$E$3),"-","INVALIDE"),"-") -> - | F141: =IF('Taxe foncière générale'!E141="-","-",IF(E141="Invalide",IF(D141<0.666*'Taux uniformisé'!$C$4,"Inférieur au minimum","Supérieur au maximum"))) -> - | J141: 0
A142: 136 | B142: =IF('Assiette par secteur'!B144="","",'Assiette par secteur'!B144) ->  | C142: =IF('Assiette par secteur'!E144="","",'Assiette par secteur'!E144) ->  | E142: =IF(D142>0,IF(AND($E$2<=D142,'Taxe foncière générale'!D142<=$E$3),"-","INVALIDE"),"-") -> - | F142: =IF('Taxe foncière générale'!E142="-","-",IF(E142="Invalide",IF(D142<0.666*'Taux uniformisé'!$C$4,"Inférieur au minimum","Supérieur au maximum"))) -> - | J142: 0
A143: 137 | B143: =IF('Assiette par secteur'!B145="","",'Assiette par secteur'!B145) ->  | C143: =IF('Assiette par secteur'!E145="","",'Assiette par secteur'!E145) ->  | E143: =IF(D143>0,IF(AND($E$2<=D143,'Taxe foncière générale'!D143<=$E$3),"-","INVALIDE"),"-") -> - | F143: =IF('Taxe foncière générale'!E143="-","-",IF(E143="Invalide",IF(D143<0.666*'Taux uniformisé'!$C$4,"Inférieur au minimum","Supérieur au maximum"))) -> - | J143: 0
A144: 138 | B144: =IF('Assiette par secteur'!B146="","",'Assiette par secteur'!B146) ->  | C144: =IF('Assiette par secteur'!E146="","",'Assiette par secteur'!E146) ->  | E144: =IF(D144>0,IF(AND($E$2<=D144,'Taxe foncière générale'!D144<=$E$3),"-","INVALIDE"),"-") -> - | F144: =IF('Taxe foncière générale'!E144="-","-",IF(E144="Invalide",IF(D144<0.666*'Taux uniformisé'!$C$4,"Inférieur au minimum","Supérieur au maximum"))) -> - | J144: 0
A145: 139 | B145: =IF('Assiette par secteur'!B147="","",'Assiette par secteur'!B147) ->  | C145: =IF('Assiette par secteur'!E147="","",'Assiette par secteur'!E147) ->  | E145: =IF(D145>0,IF(AND($E$2<=D145,'Taxe foncière générale'!D145<=$E$3),"-","INVALIDE"),"-") -> - | F145: =IF('Taxe foncière générale'!E145="-","-",IF(E145="Invalide",IF(D145<0.666*'Taux uniformisé'!$C$4,"Inférieur au minimum","Supérieur au maximum"))) -> - | J145: 0
A146: 140 | B146: =IF('Assiette par secteur'!B148="","",'Assiette par secteur'!B148) ->  | C146: =IF('Assiette par secteur'!E148="","",'Assiette par secteur'!E148) ->  | E146: =IF(D146>0,IF(AND($E$2<=D146,'Taxe foncière générale'!D146<=$E$3),"-","INVALIDE"),"-") -> - | F146: =IF('Taxe foncière générale'!E146="-","-",IF(E146="Invalide",IF(D146<0.666*'Taux uniformisé'!$C$4,"Inférieur au minimum","Supérieur au maximum"))) -> - | J146: 0
A147: 141 | B147: =IF('Assiette par secteur'!B149="","",'Assiette par secteur'!B149) ->  | C147: =IF('Assiette par secteur'!E149="","",'Assiette par secteur'!E149) ->  | E147: =IF(D147>0,IF(AND($E$2<=D147,'Taxe foncière générale'!D147<=$E$3),"-","INVALIDE"),"-") -> - | F147: =IF('Taxe foncière générale'!E147="-","-",IF(E147="Invalide",IF(D147<0.666*'Taux uniformisé'!$C$4,"Inférieur au minimum","Supérieur au maximum"))) -> - | J147: 0
A148: 142 | B148: =IF('Assiette par secteur'!B150="","",'Assiette par secteur'!B150) ->  | C148: =IF('Assiette par secteur'!E150="","",'Assiette par secteur'!E150) ->  | E148: =IF(D148>0,IF(AND($E$2<=D148,'Taxe foncière générale'!D148<=$E$3),"-","INVALIDE"),"-") -> - | F148: =IF('Taxe foncière générale'!E148="-","-",IF(E148="Invalide",IF(D148<0.666*'Taux uniformisé'!$C$4,"Inférieur au minimum","Supérieur au maximum"))) -> - | J148: 0
A149: 143 | B149: =IF('Assiette par secteur'!B151="","",'Assiette par secteur'!B151) ->  | C149: =IF('Assiette par secteur'!E151="","",'Assiette par secteur'!E151) ->  | E149: =IF(D149>0,IF(AND($E$2<=D149,'Taxe foncière générale'!D149<=$E$3),"-","INVALIDE"),"-") -> - | F149: =IF('Taxe foncière générale'!E149="-","-",IF(E149="Invalide",IF(D149<0.666*'Taux uniformisé'!$C$4,"Inférieur au minimum","Supérieur au maximum"))) -> - | J149: 0
A150: 144 | B150: =IF('Assiette par secteur'!B152="","",'Assiette par secteur'!B152) ->  | C150: =IF('Assiette par secteur'!E152="","",'Assiette par secteur'!E152) ->  | E150: =IF(D150>0,IF(AND($E$2<=D150,'Taxe foncière générale'!D150<=$E$3),"-","INVALIDE"),"-") -> - | F150: =IF('Taxe foncière générale'!E150="-","-",IF(E150="Invalide",IF(D150<0.666*'Taux uniformisé'!$C$4,"Inférieur au minimum","Supérieur au maximum"))) -> - | J150: 0
A151: 145 | B151: =IF('Assiette par secteur'!B153="","",'Assiette par secteur'!B153) ->  | C151: =IF('Assiette par secteur'!E153="","",'Assiette par secteur'!E153) ->  | E151: =IF(D151>0,IF(AND($E$2<=D151,'Taxe foncière générale'!D151<=$E$3),"-","INVALIDE"),"-") -> - | F151: =IF('Taxe foncière générale'!E151="-","-",IF(E151="Invalide",IF(D151<0.666*'Taux uniformisé'!$C$4,"Inférieur au minimum","Supérieur au maximum"))) -> - | J151: 0
A152: 146 | B152: =IF('Assiette par secteur'!B154="","",'Assiette par secteur'!B154) ->  | C152: =IF('Assiette par secteur'!E154="","",'Assiette par secteur'!E154) ->  | E152: =IF(D152>0,IF(AND($E$2<=D152,'Taxe foncière générale'!D152<=$E$3),"-","INVALIDE"),"-") -> - | F152: =IF('Taxe foncière générale'!E152="-","-",IF(E152="Invalide",IF(D152<0.666*'Taux uniformisé'!$C$4,"Inférieur au minimum","Supérieur au maximum"))) -> - | J152: 0
A153: 147 | B153: =IF('Assiette par secteur'!B155="","",'Assiette par secteur'!B155) ->  | C153: =IF('Assiette par secteur'!E155="","",'Assiette par secteur'!E155) ->  | E153: =IF(D153>0,IF(AND($E$2<=D153,'Taxe foncière générale'!D153<=$E$3),"-","INVALIDE"),"-") -> - | F153: =IF('Taxe foncière générale'!E153="-","-",IF(E153="Invalide",IF(D153<0.666*'Taux uniformisé'!$C$4,"Inférieur au minimum","Supérieur au maximum"))) -> - | J153: 0
A154: 148 | B154: =IF('Assiette par secteur'!B156="","",'Assiette par secteur'!B156) ->  | C154: =IF('Assiette par secteur'!E156="","",'Assiette par secteur'!E156) ->  | E154: =IF(D154>0,IF(AND($E$2<=D154,'Taxe foncière générale'!D154<=$E$3),"-","INVALIDE"),"-") -> - | F154: =IF('Taxe foncière générale'!E154="-","-",IF(E154="Invalide",IF(D154<0.666*'Taux uniformisé'!$C$4,"Inférieur au minimum","Supérieur au maximum"))) -> - | J154: 0
A155: 149 | B155: =IF('Assiette par secteur'!B157="","",'Assiette par secteur'!B157) ->  | C155: =IF('Assiette par secteur'!E157="","",'Assiette par secteur'!E157) ->  | E155: =IF(D155>0,IF(AND($E$2<=D155,'Taxe foncière générale'!D155<=$E$3),"-","INVALIDE"),"-") -> - | F155: =IF('Taxe foncière générale'!E155="-","-",IF(E155="Invalide",IF(D155<0.666*'Taux uniformisé'!$C$4,"Inférieur au minimum","Supérieur au maximum"))) -> - | J155: 0
A156: 150 | B156: =IF('Assiette par secteur'!B158="","",'Assiette par secteur'!B158) ->  | C156: =IF('Assiette par secteur'!E158="","",'Assiette par secteur'!E158) ->  | E156: =IF(D156>0,IF(AND($E$2<=D156,'Taxe foncière générale'!D156<=$E$3),"-","INVALIDE"),"-") -> - | F156: =IF('Taxe foncière générale'!E156="-","-",IF(E156="Invalide",IF(D156<0.666*'Taux uniformisé'!$C$4,"Inférieur au minimum","Supérieur au maximum"))) -> - | J156: 0
A157: 151 | B157: =IF('Assiette par secteur'!B159="","",'Assiette par secteur'!B159) ->  | C157: =IF('Assiette par secteur'!E159="","",'Assiette par secteur'!E159) ->  | E157: =IF(D157>0,IF(AND($E$2<=D157,'Taxe foncière générale'!D157<=$E$3),"-","INVALIDE"),"-") -> - | F157: =IF('Taxe foncière générale'!E157="-","-",IF(E157="Invalide",IF(D157<0.666*'Taux uniformisé'!$C$4,"Inférieur au minimum","Supérieur au maximum"))) -> - | J157: 0
A158: 152 | B158: =IF('Assiette par secteur'!B160="","",'Assiette par secteur'!B160) ->  | C158: =IF('Assiette par secteur'!E160="","",'Assiette par secteur'!E160) ->  | E158: =IF(D158>0,IF(AND($E$2<=D158,'Taxe foncière générale'!D158<=$E$3),"-","INVALIDE"),"-") -> - | F158: =IF('Taxe foncière générale'!E158="-","-",IF(E158="Invalide",IF(D158<0.666*'Taux uniformisé'!$C$4,"Inférieur au minimum","Supérieur au maximum"))) -> - | J158: 0
A159: 153 | B159: =IF('Assiette par secteur'!B161="","",'Assiette par secteur'!B161) ->  | C159: =IF('Assiette par secteur'!E161="","",'Assiette par secteur'!E161) ->  | E159: =IF(D159>0,IF(AND($E$2<=D159,'Taxe foncière générale'!D159<=$E$3),"-","INVALIDE"),"-") -> - | F159: =IF('Taxe foncière générale'!E159="-","-",IF(E159="Invalide",IF(D159<0.666*'Taux uniformisé'!$C$4,"Inférieur au minimum","Supérieur au maximum"))) -> - | J159: 0
A160: 154 | B160: =IF('Assiette par secteur'!B162="","",'Assiette par secteur'!B162) ->  | C160: =IF('Assiette par secteur'!E162="","",'Assiette par secteur'!E162) ->  | E160: =IF(D160>0,IF(AND($E$2<=D160,'Taxe foncière générale'!D160<=$E$3),"-","INVALIDE"),"-") -> - | F160: =IF('Taxe foncière générale'!E160="-","-",IF(E160="Invalide",IF(D160<0.666*'Taux uniformisé'!$C$4,"Inférieur au minimum","Supérieur au maximum"))) -> - | J160: 0
A161: 155 | B161: =IF('Assiette par secteur'!B163="","",'Assiette par secteur'!B163) ->  | C161: =IF('Assiette par secteur'!E163="","",'Assiette par secteur'!E163) ->  | E161: =IF(D161>0,IF(AND($E$2<=D161,'Taxe foncière générale'!D161<=$E$3),"-","INVALIDE"),"-") -> - | F161: =IF('Taxe foncière générale'!E161="-","-",IF(E161="Invalide",IF(D161<0.666*'Taux uniformisé'!$C$4,"Inférieur au minimum","Supérieur au maximum"))) -> - | J161: 0
A162: 156 | B162: =IF('Assiette par secteur'!B164="","",'Assiette par secteur'!B164) ->  | C162: =IF('Assiette par secteur'!E164="","",'Assiette par secteur'!E164) ->  | E162: =IF(D162>0,IF(AND($E$2<=D162,'Taxe foncière générale'!D162<=$E$3),"-","INVALIDE"),"-") -> - | F162: =IF('Taxe foncière générale'!E162="-","-",IF(E162="Invalide",IF(D162<0.666*'Taux uniformisé'!$C$4,"Inférieur au minimum","Supérieur au maximum"))) -> - | J162: 0
A163: 157 | B163: =IF('Assiette par secteur'!B165="","",'Assiette par secteur'!B165) ->  | C163: =IF('Assiette par secteur'!E165="","",'Assiette par secteur'!E165) ->  | E163: =IF(D163>0,IF(AND($E$2<=D163,'Taxe foncière générale'!D163<=$E$3),"-","INVALIDE"),"-") -> - | F163: =IF('Taxe foncière générale'!E163="-","-",IF(E163="Invalide",IF(D163<0.666*'Taux uniformisé'!$C$4,"Inférieur au minimum","Supérieur au maximum"))) -> - | J163: 0
A164: 158 | B164: =IF('Assiette par secteur'!B166="","",'Assiette par secteur'!B166) ->  | C164: =IF('Assiette par secteur'!E166="","",'Assiette par secteur'!E166) ->  | E164: =IF(D164>0,IF(AND($E$2<=D164,'Taxe foncière générale'!D164<=$E$3),"-","INVALIDE"),"-") -> - | F164: =IF('Taxe foncière générale'!E164="-","-",IF(E164="Invalide",IF(D164<0.666*'Taux uniformisé'!$C$4,"Inférieur au minimum","Supérieur au maximum"))) -> - | J164: 0
A165: 159 | B165: =IF('Assiette par secteur'!B167="","",'Assiette par secteur'!B167) ->  | C165: =IF('Assiette par secteur'!E167="","",'Assiette par secteur'!E167) ->  | E165: =IF(D165>0,IF(AND($E$2<=D165,'Taxe foncière générale'!D165<=$E$3),"-","INVALIDE"),"-") -> - | F165: =IF('Taxe foncière générale'!E165="-","-",IF(E165="Invalide",IF(D165<0.666*'Taux uniformisé'!$C$4,"Inférieur au minimum","Supérieur au maximum"))) -> - | J165: 0
A166: 160 | B166: =IF('Assiette par secteur'!B168="","",'Assiette par secteur'!B168) ->  | C166: =IF('Assiette par secteur'!E168="","",'Assiette par secteur'!E168) ->  | E166: =IF(D166>0,IF(AND($E$2<=D166,'Taxe foncière générale'!D166<=$E$3),"-","INVALIDE"),"-") -> - | F166: =IF('Taxe foncière générale'!E166="-","-",IF(E166="Invalide",IF(D166<0.666*'Taux uniformisé'!$C$4,"Inférieur au minimum","Supérieur au maximum"))) -> - | J166: 0
A167: 161 | B167: =IF('Assiette par secteur'!B169="","",'Assiette par secteur'!B169) ->  | C167: =IF('Assiette par secteur'!E169="","",'Assiette par secteur'!E169) ->  | E167: =IF(D167>0,IF(AND($E$2<=D167,'Taxe foncière générale'!D167<=$E$3),"-","INVALIDE"),"-") -> - | F167: =IF('Taxe foncière générale'!E167="-","-",IF(E167="Invalide",IF(D167<0.666*'Taux uniformisé'!$C$4,"Inférieur au minimum","Supérieur au maximum"))) -> - | J167: 0
A168: 162 | B168: =IF('Assiette par secteur'!B170="","",'Assiette par secteur'!B170) ->  | C168: =IF('Assiette par secteur'!E170="","",'Assiette par secteur'!E170) ->  | E168: =IF(D168>0,IF(AND($E$2<=D168,'Taxe foncière générale'!D168<=$E$3),"-","INVALIDE"),"-") -> - | F168: =IF('Taxe foncière générale'!E168="-","-",IF(E168="Invalide",IF(D168<0.666*'Taux uniformisé'!$C$4,"Inférieur au minimum","Supérieur au maximum"))) -> - | J168: 0
A169: 163 | B169: =IF('Assiette par secteur'!B171="","",'Assiette par secteur'!B171) ->  | C169: =IF('Assiette par secteur'!E171="","",'Assiette par secteur'!E171) ->  | E169: =IF(D169>0,IF(AND($E$2<=D169,'Taxe foncière générale'!D169<=$E$3),"-","INVALIDE"),"-") -> - | F169: =IF('Taxe foncière générale'!E169="-","-",IF(E169="Invalide",IF(D169<0.666*'Taux uniformisé'!$C$4,"Inférieur au minimum","Supérieur au maximum"))) -> - | J169: 0
A170: 164 | B170: =IF('Assiette par secteur'!B172="","",'Assiette par secteur'!B172) ->  | C170: =IF('Assiette par secteur'!E172="","",'Assiette par secteur'!E172) ->  | E170: =IF(D170>0,IF(AND($E$2<=D170,'Taxe foncière générale'!D170<=$E$3),"-","INVALIDE"),"-") -> - | F170: =IF('Taxe foncière générale'!E170="-","-",IF(E170="Invalide",IF(D170<0.666*'Taux uniformisé'!$C$4,"Inférieur au minimum","Supérieur au maximum"))) -> - | J170: 0
A171: 165 | B171: =IF('Assiette par secteur'!B173="","",'Assiette par secteur'!B173) ->  | C171: =IF('Assiette par secteur'!E173="","",'Assiette par secteur'!E173) ->  | E171: =IF(D171>0,IF(AND($E$2<=D171,'Taxe foncière générale'!D171<=$E$3),"-","INVALIDE"),"-") -> - | F171: =IF('Taxe foncière générale'!E171="-","-",IF(E171="Invalide",IF(D171<0.666*'Taux uniformisé'!$C$4,"Inférieur au minimum","Supérieur au maximum"))) -> - | J171: 0
A172: 166 | B172: =IF('Assiette par secteur'!B174="","",'Assiette par secteur'!B174) ->  | C172: =IF('Assiette par secteur'!E174="","",'Assiette par secteur'!E174) ->  | E172: =IF(D172>0,IF(AND($E$2<=D172,'Taxe foncière générale'!D172<=$E$3),"-","INVALIDE"),"-") -> - | F172: =IF('Taxe foncière générale'!E172="-","-",IF(E172="Invalide",IF(D172<0.666*'Taux uniformisé'!$C$4,"Inférieur au minimum","Supérieur au maximum"))) -> - | J172: 0
A173: 167 | B173: =IF('Assiette par secteur'!B175="","",'Assiette par secteur'!B175) ->  | C173: =IF('Assiette par secteur'!E175="","",'Assiette par secteur'!E175) ->  | E173: =IF(D173>0,IF(AND($E$2<=D173,'Taxe foncière générale'!D173<=$E$3),"-","INVALIDE"),"-") -> - | F173: =IF('Taxe foncière générale'!E173="-","-",IF(E173="Invalide",IF(D173<0.666*'Taux uniformisé'!$C$4,"Inférieur au minimum","Supérieur au maximum"))) -> - | J173: 0
A174: 168 | B174: =IF('Assiette par secteur'!B176="","",'Assiette par secteur'!B176) ->  | C174: =IF('Assiette par secteur'!E176="","",'Assiette par secteur'!E176) ->  | E174: =IF(D174>0,IF(AND($E$2<=D174,'Taxe foncière générale'!D174<=$E$3),"-","INVALIDE"),"-") -> - | F174: =IF('Taxe foncière générale'!E174="-","-",IF(E174="Invalide",IF(D174<0.666*'Taux uniformisé'!$C$4,"Inférieur au minimum","Supérieur au maximum"))) -> - | J174: 0
A175: 169 | B175: =IF('Assiette par secteur'!B177="","",'Assiette par secteur'!B177) ->  | C175: =IF('Assiette par secteur'!E177="","",'Assiette par secteur'!E177) ->  | E175: =IF(D175>0,IF(AND($E$2<=D175,'Taxe foncière générale'!D175<=$E$3),"-","INVALIDE"),"-") -> - | F175: =IF('Taxe foncière générale'!E175="-","-",IF(E175="Invalide",IF(D175<0.666*'Taux uniformisé'!$C$4,"Inférieur au minimum","Supérieur au maximum"))) -> - | J175: 0
A176: 170 | B176: =IF('Assiette par secteur'!B178="","",'Assiette par secteur'!B178) ->  | C176: =IF('Assiette par secteur'!E178="","",'Assiette par secteur'!E178) ->  | E176: =IF(D176>0,IF(AND($E$2<=D176,'Taxe foncière générale'!D176<=$E$3),"-","INVALIDE"),"-") -> - | F176: =IF('Taxe foncière générale'!E176="-","-",IF(E176="Invalide",IF(D176<0.666*'Taux uniformisé'!$C$4,"Inférieur au minimum","Supérieur au maximum"))) -> - | J176: 0
A177: 171 | B177: =IF('Assiette par secteur'!B179="","",'Assiette par secteur'!B179) ->  | C177: =IF('Assiette par secteur'!E179="","",'Assiette par secteur'!E179) ->  | E177: =IF(D177>0,IF(AND($E$2<=D177,'Taxe foncière générale'!D177<=$E$3),"-","INVALIDE"),"-") -> - | F177: =IF('Taxe foncière générale'!E177="-","-",IF(E177="Invalide",IF(D177<0.666*'Taux uniformisé'!$C$4,"Inférieur au minimum","Supérieur au maximum"))) -> - | J177: 0
A178: 172 | B178: =IF('Assiette par secteur'!B180="","",'Assiette par secteur'!B180) ->  | C178: =IF('Assiette par secteur'!E180="","",'Assiette par secteur'!E180) ->  | E178: =IF(D178>0,IF(AND($E$2<=D178,'Taxe foncière générale'!D178<=$E$3),"-","INVALIDE"),"-") -> - | F178: =IF('Taxe foncière générale'!E178="-","-",IF(E178="Invalide",IF(D178<0.666*'Taux uniformisé'!$C$4,"Inférieur au minimum","Supérieur au maximum"))) -> - | J178: 0
A179: 173 | B179: =IF('Assiette par secteur'!B181="","",'Assiette par secteur'!B181) ->  | C179: =IF('Assiette par secteur'!E181="","",'Assiette par secteur'!E181) ->  | E179: =IF(D179>0,IF(AND($E$2<=D179,'Taxe foncière générale'!D179<=$E$3),"-","INVALIDE"),"-") -> - | F179: =IF('Taxe foncière générale'!E179="-","-",IF(E179="Invalide",IF(D179<0.666*'Taux uniformisé'!$C$4,"Inférieur au minimum","Supérieur au maximum"))) -> - | J179: 0
A180: 174 | B180: =IF('Assiette par secteur'!B182="","",'Assiette par secteur'!B182) ->  | C180: =IF('Assiette par secteur'!E182="","",'Assiette par secteur'!E182) ->  | E180: =IF(D180>0,IF(AND($E$2<=D180,'Taxe foncière générale'!D180<=$E$3),"-","INVALIDE"),"-") -> - | F180: =IF('Taxe foncière générale'!E180="-","-",IF(E180="Invalide",IF(D180<0.666*'Taux uniformisé'!$C$4,"Inférieur au minimum","Supérieur au maximum"))) -> - | J180: 0
A181: 175 | B181: =IF('Assiette par secteur'!B183="","",'Assiette par secteur'!B183) ->  | C181: =IF('Assiette par secteur'!E183="","",'Assiette par secteur'!E183) ->  | E181: =IF(D181>0,IF(AND($E$2<=D181,'Taxe foncière générale'!D181<=$E$3),"-","INVALIDE"),"-") -> - | F181: =IF('Taxe foncière générale'!E181="-","-",IF(E181="Invalide",IF(D181<0.666*'Taux uniformisé'!$C$4,"Inférieur au minimum","Supérieur au maximum"))) -> - | J181: 0
A182: 176 | B182: =IF('Assiette par secteur'!B184="","",'Assiette par secteur'!B184) ->  | C182: =IF('Assiette par secteur'!E184="","",'Assiette par secteur'!E184) ->  | E182: =IF(D182>0,IF(AND($E$2<=D182,'Taxe foncière générale'!D182<=$E$3),"-","INVALIDE"),"-") -> - | F182: =IF('Taxe foncière générale'!E182="-","-",IF(E182="Invalide",IF(D182<0.666*'Taux uniformisé'!$C$4,"Inférieur au minimum","Supérieur au maximum"))) -> - | J182: 0
A183: 177 | B183: =IF('Assiette par secteur'!B185="","",'Assiette par secteur'!B185) ->  | C183: =IF('Assiette par secteur'!E185="","",'Assiette par secteur'!E185) ->  | E183: =IF(D183>0,IF(AND($E$2<=D183,'Taxe foncière générale'!D183<=$E$3),"-","INVALIDE"),"-") -> - | F183: =IF('Taxe foncière générale'!E183="-","-",IF(E183="Invalide",IF(D183<0.666*'Taux uniformisé'!$C$4,"Inférieur au minimum","Supérieur au maximum"))) -> - | J183: 0
A184: 178 | B184: =IF('Assiette par secteur'!B186="","",'Assiette par secteur'!B186) ->  | C184: =IF('Assiette par secteur'!E186="","",'Assiette par secteur'!E186) ->  | E184: =IF(D184>0,IF(AND($E$2<=D184,'Taxe foncière générale'!D184<=$E$3),"-","INVALIDE"),"-") -> - | F184: =IF('Taxe foncière générale'!E184="-","-",IF(E184="Invalide",IF(D184<0.666*'Taux uniformisé'!$C$4,"Inférieur au minimum","Supérieur au maximum"))) -> - | J184: 0
A185: 179 | B185: =IF('Assiette par secteur'!B187="","",'Assiette par secteur'!B187) ->  | C185: =IF('Assiette par secteur'!E187="","",'Assiette par secteur'!E187) ->  | E185: =IF(D185>0,IF(AND($E$2<=D185,'Taxe foncière générale'!D185<=$E$3),"-","INVALIDE"),"-") -> - | F185: =IF('Taxe foncière générale'!E185="-","-",IF(E185="Invalide",IF(D185<0.666*'Taux uniformisé'!$C$4,"Inférieur au minimum","Supérieur au maximum"))) -> - | J185: 0
A186: 180 | B186: =IF('Assiette par secteur'!B188="","",'Assiette par secteur'!B188) ->  | C186: =IF('Assiette par secteur'!E188="","",'Assiette par secteur'!E188) ->  | E186: =IF(D186>0,IF(AND($E$2<=D186,'Taxe foncière générale'!D186<=$E$3),"-","INVALIDE"),"-") -> - | F186: =IF('Taxe foncière générale'!E186="-","-",IF(E186="Invalide",IF(D186<0.666*'Taux uniformisé'!$C$4,"Inférieur au minimum","Supérieur au maximum"))) -> - | J186: 0
A187: 181 | B187: =IF('Assiette par secteur'!B189="","",'Assiette par secteur'!B189) ->  | C187: =IF('Assiette par secteur'!E189="","",'Assiette par secteur'!E189) ->  | E187: =IF(D187>0,IF(AND($E$2<=D187,'Taxe foncière générale'!D187<=$E$3),"-","INVALIDE"),"-") -> - | F187: =IF('Taxe foncière générale'!E187="-","-",IF(E187="Invalide",IF(D187<0.666*'Taux uniformisé'!$C$4,"Inférieur au minimum","Supérieur au maximum"))) -> - | J187: 0
A188: 182 | B188: =IF('Assiette par secteur'!B190="","",'Assiette par secteur'!B190) ->  | C188: =IF('Assiette par secteur'!E190="","",'Assiette par secteur'!E190) ->  | E188: =IF(D188>0,IF(AND($E$2<=D188,'Taxe foncière générale'!D188<=$E$3),"-","INVALIDE"),"-") -> - | F188: =IF('Taxe foncière générale'!E188="-","-",IF(E188="Invalide",IF(D188<0.666*'Taux uniformisé'!$C$4,"Inférieur au minimum","Supérieur au maximum"))) -> - | J188: 0
A189: 183 | B189: =IF('Assiette par secteur'!B191="","",'Assiette par secteur'!B191) ->  | C189: =IF('Assiette par secteur'!E191="","",'Assiette par secteur'!E191) ->  | E189: =IF(D189>0,IF(AND($E$2<=D189,'Taxe foncière générale'!D189<=$E$3),"-","INVALIDE"),"-") -> - | F189: =IF('Taxe foncière générale'!E189="-","-",IF(E189="Invalide",IF(D189<0.666*'Taux uniformisé'!$C$4,"Inférieur au minimum","Supérieur au maximum"))) -> - | J189: 0
A190: 184 | B190: =IF('Assiette par secteur'!B192="","",'Assiette par secteur'!B192) ->  | C190: =IF('Assiette par secteur'!E192="","",'Assiette par secteur'!E192) ->  | E190: =IF(D190>0,IF(AND($E$2<=D190,'Taxe foncière générale'!D190<=$E$3),"-","INVALIDE"),"-") -> - | F190: =IF('Taxe foncière générale'!E190="-","-",IF(E190="Invalide",IF(D190<0.666*'Taux uniformisé'!$C$4,"Inférieur au minimum","Supérieur au maximum"))) -> - | J190: 0
A191: 185 | B191: =IF('Assiette par secteur'!B193="","",'Assiette par secteur'!B193) ->  | C191: =IF('Assiette par secteur'!E193="","",'Assiette par secteur'!E193) ->  | E191: =IF(D191>0,IF(AND($E$2<=D191,'Taxe foncière générale'!D191<=$E$3),"-","INVALIDE"),"-") -> - | F191: =IF('Taxe foncière générale'!E191="-","-",IF(E191="Invalide",IF(D191<0.666*'Taux uniformisé'!$C$4,"Inférieur au minimum","Supérieur au maximum"))) -> - | J191: 0
A192: 186 | B192: =IF('Assiette par secteur'!B194="","",'Assiette par secteur'!B194) ->  | C192: =IF('Assiette par secteur'!E194="","",'Assiette par secteur'!E194) ->  | E192: =IF(D192>0,IF(AND($E$2<=D192,'Taxe foncière générale'!D192<=$E$3),"-","INVALIDE"),"-") -> - | F192: =IF('Taxe foncière générale'!E192="-","-",IF(E192="Invalide",IF(D192<0.666*'Taux uniformisé'!$C$4,"Inférieur au minimum","Supérieur au maximum"))) -> - | J192: 0
A193: 187 | B193: =IF('Assiette par secteur'!B195="","",'Assiette par secteur'!B195) ->  | C193: =IF('Assiette par secteur'!E195="","",'Assiette par secteur'!E195) ->  | E193: =IF(D193>0,IF(AND($E$2<=D193,'Taxe foncière générale'!D193<=$E$3),"-","INVALIDE"),"-") -> - | F193: =IF('Taxe foncière générale'!E193="-","-",IF(E193="Invalide",IF(D193<0.666*'Taux uniformisé'!$C$4,"Inférieur au minimum","Supérieur au maximum"))) -> - | J193: 0
A194: 188 | B194: =IF('Assiette par secteur'!B196="","",'Assiette par secteur'!B196) ->  | C194: =IF('Assiette par secteur'!E196="","",'Assiette par secteur'!E196) ->  | E194: =IF(D194>0,IF(AND($E$2<=D194,'Taxe foncière générale'!D194<=$E$3),"-","INVALIDE"),"-") -> - | F194: =IF('Taxe foncière générale'!E194="-","-",IF(E194="Invalide",IF(D194<0.666*'Taux uniformisé'!$C$4,"Inférieur au minimum","Supérieur au maximum"))) -> - | J194: 0
A195: 189 | B195: =IF('Assiette par secteur'!B197="","",'Assiette par secteur'!B197) ->  | C195: =IF('Assiette par secteur'!E197="","",'Assiette par secteur'!E197) ->  | E195: =IF(D195>0,IF(AND($E$2<=D195,'Taxe foncière générale'!D195<=$E$3),"-","INVALIDE"),"-") -> - | F195: =IF('Taxe foncière générale'!E195="-","-",IF(E195="Invalide",IF(D195<0.666*'Taux uniformisé'!$C$4,"Inférieur au minimum","Supérieur au maximum"))) -> - | J195: 0
A196: 190 | B196: =IF('Assiette par secteur'!B198="","",'Assiette par secteur'!B198) ->  | C196: =IF('Assiette par secteur'!E198="","",'Assiette par secteur'!E198) ->  | E196: =IF(D196>0,IF(AND($E$2<=D196,'Taxe foncière générale'!D196<=$E$3),"-","INVALIDE"),"-") -> - | F196: =IF('Taxe foncière générale'!E196="-","-",IF(E196="Invalide",IF(D196<0.666*'Taux uniformisé'!$C$4,"Inférieur au minimum","Supérieur au maximum"))) -> - | J196: 0
A197: 191 | B197: =IF('Assiette par secteur'!B199="","",'Assiette par secteur'!B199) ->  | C197: =IF('Assiette par secteur'!E199="","",'Assiette par secteur'!E199) ->  | E197: =IF(D197>0,IF(AND($E$2<=D197,'Taxe foncière générale'!D197<=$E$3),"-","INVALIDE"),"-") -> - | F197: =IF('Taxe foncière générale'!E197="-","-",IF(E197="Invalide",IF(D197<0.666*'Taux uniformisé'!$C$4,"Inférieur au minimum","Supérieur au maximum"))) -> - | J197: 0
A198: 192 | B198: =IF('Assiette par secteur'!B200="","",'Assiette par secteur'!B200) ->  | C198: =IF('Assiette par secteur'!E200="","",'Assiette par secteur'!E200) ->  | E198: =IF(D198>0,IF(AND($E$2<=D198,'Taxe foncière générale'!D198<=$E$3),"-","INVALIDE"),"-") -> - | F198: =IF('Taxe foncière générale'!E198="-","-",IF(E198="Invalide",IF(D198<0.666*'Taux uniformisé'!$C$4,"Inférieur au minimum","Supérieur au maximum"))) -> - | J198: 0
A199: 193 | B199: =IF('Assiette par secteur'!B201="","",'Assiette par secteur'!B201) ->  | C199: =IF('Assiette par secteur'!E201="","",'Assiette par secteur'!E201) ->  | E199: =IF(D199>0,IF(AND($E$2<=D199,'Taxe foncière générale'!D199<=$E$3),"-","INVALIDE"),"-") -> - | F199: =IF('Taxe foncière générale'!E199="-","-",IF(E199="Invalide",IF(D199<0.666*'Taux uniformisé'!$C$4,"Inférieur au minimum","Supérieur au maximum"))) -> - | H199: =IF(D199>0,C199,"") ->  | I199: =IF(C199="","",IF(D199>0,D199*C199/$H$2007,0)) ->  | J199: 0
A200: 194 | B200: =IF('Assiette par secteur'!B202="","",'Assiette par secteur'!B202) ->  | C200: =IF('Assiette par secteur'!E202="","",'Assiette par secteur'!E202) ->  | E200: =IF(D200>0,IF(AND($E$2<=D200,'Taxe foncière générale'!D200<=$E$3),"-","INVALIDE"),"-") -> - | F200: =IF('Taxe foncière générale'!E200="-","-",IF(E200="Invalide",IF(D200<0.666*'Taux uniformisé'!$C$4,"Inférieur au minimum","Supérieur au maximum"))) -> - | G200: =IF(AND(C200>0,I200=0),"PAS DE TAUX SECTORIEL","") ->  | J200: =IF(E200="-",0,1) -> 0 | K200: =IF(G200="","",1) -> 
A201: =A200+1 -> 195 | B201: =IF('Assiette par secteur'!B203="","",'Assiette par secteur'!B203) ->  | C201: =IF('Assiette par secteur'!E203="","",'Assiette par secteur'!E203) ->  | E201: =IF(D201>0,IF(AND($E$2<=D201,'Taxe foncière générale'!D201<=$E$3),"-","INVALIDE"),"-") -> - | F201: =IF('Taxe foncière générale'!E201="-","-",IF(E201="Invalide",IF(D201<0.666*'Taux uniformisé'!$C$4,"Inférieur au minimum","Supérieur au maximum"))) -> - | J201: 0
... 1806 more rows

Sheet Taxes sp-Service de dette
B4: Taxes spéciales – Service de dette | D4: =IF(D7=0,"Remplir cette colonne","") -> Remplir cette colonne
B5: Secteur | C5: Assiette d'application ($) | D5: Taux sectoriel ou taux de base sectoriel ($/100 $ d'évaluation)
A7: 1 | B7: =IF('Assiette par secteur'!B9="","",'Assiette par secteur'!B9) ->  | C7: =IF('Assiette par secteur'!E9="","",'Assiette par secteur'!E9) ->  | E7: =IF(D7>0,C7,"") ->  | F7: =IF(C7="","",IF(D7>0,D7*C7/$E$2007,0)) -> 
A8: =A7+1 -> 2 | B8: =IF('Assiette par secteur'!B10="","",'Assiette par secteur'!B10) ->  | C8: =IF('Assiette par secteur'!E10="","",'Assiette par secteur'!E10) -> 
A9: =A8+1 -> 3 | B9: =IF('Assiette par secteur'!B11="","",'Assiette par secteur'!B11) ->  | C9: =IF('Assiette par secteur'!E11="","",'Assiette par secteur'!E11) -> 
A10: 4 | B10: =IF('Assiette par secteur'!B12="","",'Assiette par secteur'!B12) ->  | C10: =IF('Assiette par secteur'!E12="","",'Assiette par secteur'!E12) -> 
A11: 5 | B11: =IF('Assiette par secteur'!B13="","",'Assiette par secteur'!B13) ->  | C11: =IF('Assiette par secteur'!E13="","",'Assiette par secteur'!E13) -> 
A12: 6 | B12: =IF('Assiette par secteur'!B14="","",'Assiette par secteur'!B14) ->  | C12: =IF('Assiette par secteur'!E14="","",'Assiette par secteur'!E14) -> 
A13: 7 | B13: =IF('Assiette par secteur'!B15="","",'Assiette par secteur'!B15) ->  | C13: =IF('Assiette par secteur'!E15="","",'Assiette par secteur'!E15) -> 
A14: 8 | B14: =IF('Assiette par secteur'!B16="","",'Assiette par secteur'!B16) ->  | C14: =IF('Assiette par secteur'!E16="","",'Assiette par secteur'!E16) -> 
A15: 9 | B15: =IF('Assiette par secteur'!B17="","",'Assiette par secteur'!B17) ->  | C15: =IF('Assiette par secteur'!E17="","",'Assiette par secteur'!E17) -> 
A16: 10 | B16: =IF('Assiette par secteur'!B18="","",'Assiette par secteur'!B18) ->  | C16: =IF('Assiette par secteur'!E18="","",'Assiette par secteur'!E18) -> 
A17: 11 | B17: =IF('Assiette par secteur'!B19="","",'Assiette par secteur'!B19) ->  | C17: =IF('Assiette par secteur'!E19="","",'Assiette par secteur'!E19) -> 
A18: 12 | B18: =IF('Assiette par secteur'!B20="","",'Assiette par secteur'!B20) ->  | C18: =IF('Assiette par secteur'!E20="","",'Assiette par secteur'!E20) -> 
A19: 13 | B19: =IF('Assiette par secteur'!B21="","",'Assiette par secteur'!B21) ->  | C19: =IF('Assiette par secteur'!E21="","",'Assiette par secteur'!E21) -> 
A20: 14 | B20: =IF('Assiette par secteur'!B22="","",'Assiette par secteur'!B22) ->  | C20: =IF('Assiette par secteur'!E22="","",'Assiette par secteur'!E22) -> 
A21: 15 | B21: =IF('Assiette par secteur'!B23="","",'Assiette par secteur'!B23) ->  | C21: =IF('Assiette par secteur'!E23="","",'Assiette par secteur'!E23) -> 
A22: 16 | B22: =IF('Assiette par secteur'!B24="","",'Assiette par secteur'!B24) ->  | C22: =IF('Assiette par secteur'!E24="","",'Assiette par secteur'!E24) -> 
A23: 17 | B23: =IF('Assiette par secteur'!B25="","",'Assiette par secteur'!B25) ->  | C23: =IF('Assiette par secteur'!E25="","",'Assiette par secteur'!E25) -> 
A24: 18 | B24: =IF('Assiette par secteur'!B26="","",'Assiette par secteur'!B26) ->  | C24: =IF('Assiette par secteur'!E26="","",'Assiette par secteur'!E26) -> 
A25: 19 | B25: =IF('Assiette par secteur'!B27="","",'Assiette par secteur'!B27) ->  | C25: =IF('Assiette par secteur'!E27="","",'Assiette par secteur'!E27) -> 
A26: 20 | B26: =IF('Assiette par secteur'!B28="","",'Assiette par secteur'!B28) ->  | C26: =IF('Assiette par secteur'!E28="","",'Assiette par secteur'!E28) -> 
A27: 21 | B27: =IF('Assiette par secteur'!B29="","",'Assiette par secteur'!B29) ->  | C27: =IF('Assiette par secteur'!E29="","",'Assiette par secteur'!E29) -> 
A28: 22 | B28: =IF('Assiette par secteur'!B30="","",'Assiette par secteur'!B30) ->  | C28: =IF('Assiette par secteur'!E30="","",'Assiette par secteur'!E30) -> 
A29: 23 | B29: =IF('Assiette par secteur'!B31="","",'Assiette par secteur'!B31) ->  | C29: =IF('Assiette par secteur'!E31="","",'Assiette par secteur'!E31) -> 
A30: 24 | B30: =IF('Assiette par secteur'!B32="","",'Assiette par secteur'!B32) ->  | C30: =IF('Assiette par secteur'!E32="","",'Assiette par secteur'!E32) -> 
A31: 25 | B31: =IF('Assiette par secteur'!B33="","",'Assiette par secteur'!B33) ->  | C31: =IF('Assiette par secteur'!E33="","",'Assiette par secteur'!E33) -> 
A32: 26 | B32: =IF('Assiette par secteur'!B34="","",'Assiette par secteur'!B34) ->  | C32: =IF('Assiette par secteur'!E34="","",'Assiette par secteur'!E34) -> 
A33: 27 | B33: =IF('Assiette par secteur'!B35="","",'Assiette par secteur'!B35) ->  | C33: =IF('Assiette par secteur'!E35="","",'Assiette par secteur'!E35) -> 
A34: 28 | B34: =IF('Assiette par secteur'!B36="","",'Assiette par secteur'!B36) ->  | C34: =IF('Assiette par secteur'!E36="","",'Assiette par secteur'!E36) -> 
A35: 29 | B35: =IF('Assiette par secteur'!B37="","",'Assiette par secteur'!B37) ->  | C35: =IF('Assiette par secteur'!E37="","",'Assiette par secteur'!E37) -> 
A36: 30 | B36: =IF('Assiette par secteur'!B38="","",'Assiette par secteur'!B38) ->  | C36: =IF('Assiette par secteur'!E38="","",'Assiette par secteur'!E38) -> 
A37: 31 | B37: =IF('Assiette par secteur'!B39="","",'Assiette par secteur'!B39) ->  | C37: =IF('Assiette par secteur'!E39="","",'Assiette par secteur'!E39) -> 
A38: 32 | B38: =IF('Assiette par secteur'!B40="","",'Assiette par secteur'!B40) ->  | C38: =IF('Assiette par secteur'!E40="","",'Assiette par secteur'!E40) -> 
A39: 33 | B39: =IF('Assiette par secteur'!B41="","",'Assiette par secteur'!B41) ->  | C39: =IF('Assiette par secteur'!E41="","",'Assiette par secteur'!E41) -> 
A40: 34 | B40: =IF('Assiette par secteur'!B42="","",'Assiette par secteur'!B42) ->  | C40: =IF('Assiette par secteur'!E42="","",'Assiette par secteur'!E42) -> 
A41: 35 | B41: =IF('Assiette par secteur'!B43="","",'Assiette par secteur'!B43) ->  | C41: =IF('Assiette par secteur'!E43="","",'Assiette par secteur'!E43) -> 
A42: 36 | B42: =IF('Assiette par secteur'!B44="","",'Assiette par secteur'!B44) ->  | C42: =IF('Assiette par secteur'!E44="","",'Assiette par secteur'!E44) -> 
A43: 37 | B43: =IF('Assiette par secteur'!B45="","",'Assiette par secteur'!B45) ->  | C43: =IF('Assiette par secteur'!E45="","",'Assiette par secteur'!E45) -> 
A44: 38 | B44: =IF('Assiette par secteur'!B46="","",'Assiette par secteur'!B46) ->  | C44: =IF('Assiette par secteur'!E46="","",'Assiette par secteur'!E46) -> 
A45: 39 | B45: =IF('Assiette par secteur'!B47="","",'Assiette par secteur'!B47) ->  | C45: =IF('Assiette par secteur'!E47="","",'Assiette par secteur'!E47) -> 
A46: 40 | B46: =IF('Assiette par secteur'!B48="","",'Assiette par secteur'!B48) ->  | C46: =IF('Assiette par secteur'!E48="","",'Assiette par secteur'!E48) -> 
A47: 41 | B47: =IF('Assiette par secteur'!B49="","",'Assiette par secteur'!B49) ->  | C47: =IF('Assiette par secteur'!E49="","",'Assiette par secteur'!E49) -> 
A48: 42 | B48: =IF('Assiette par secteur'!B50="","",'Assiette par secteur'!B50) ->  | C48: =IF('Assiette par secteur'!E50="","",'Assiette par secteur'!E50) -> 
A49: 43 | B49: =IF('Assiette par secteur'!B51="","",'Assiette par secteur'!B51) ->  | C49: =IF('Assiette par secteur'!E51="","",'Assiette par secteur'!E51) -> 
A50: 44 | B50: =IF('Assiette par secteur'!B52="","",'Assiette par secteur'!B52) ->  | C50: =IF('Assiette par secteur'!E52="","",'Assiette par secteur'!E52) -> 
A51: 45 | B51: =IF('Assiette par secteur'!B53="","",'Assiette par secteur'!B53) ->  | C51: =IF('Assiette par secteur'!E53="","",'Assiette par secteur'!E53) -> 
A52: 46 | B52: =IF('Assiette par secteur'!B54="","",'Assiette par secteur'!B54) ->  | C52: =IF('Assiette par secteur'!E54="","",'Assiette par secteur'!E54) -> 
A53: 47 | B53: =IF('Assiette par secteur'!B55="","",'Assiette par secteur'!B55) ->  | C53: =IF('Assiette par secteur'!E55="","",'Assiette par secteur'!E55) -> 
A54: 48 | B54: =IF('Assiette par secteur'!B56="","",'Assiette par secteur'!B56) ->  | C54: =IF('Assiette par secteur'!E56="","",'Assiette par secteur'!E56) -> 
A55: 49 | B55: =IF('Assiette par secteur'!B57="","",'Assiette par secteur'!B57) ->  | C55: =IF('Assiette par secteur'!E57="","",'Assiette par secteur'!E57) -> 
A56: 50 | B56: =IF('Assiette par secteur'!B58="","",'Assiette par secteur'!B58) ->  | C56: =IF('Assiette par secteur'!E58="","",'Assiette par secteur'!E58) -> 
A57: 51 | B57: =IF('Assiette par secteur'!B59="","",'Assiette par secteur'!B59) ->  | C57: =IF('Assiette par secteur'!E59="","",'Assiette par secteur'!E59) -> 
A58: 52 | B58: =IF('Assiette par secteur'!B60="","",'Assiette par secteur'!B60) ->  | C58: =IF('Assiette par secteur'!E60="","",'Assiette par secteur'!E60) -> 
A59: 53 | B59: =IF('Assiette par secteur'!B61="","",'Assiette par secteur'!B61) ->  | C59: =IF('Assiette par secteur'!E61="","",'Assiette par secteur'!E61) -> 
A60: 54 | B60: =IF('Assiette par secteur'!B62="","",'Assiette par secteur'!B62) ->  | C60: =IF('Assiette par secteur'!E62="","",'Assiette par secteur'!E62) -> 
A61: 55 | B61: =IF('Assiette par secteur'!B63="","",'Assiette par secteur'!B63) ->  | C61: =IF('Assiette par secteur'!E63="","",'Assiette par secteur'!E63) -> 
A62: 56 | B62: =IF('Assiette par secteur'!B64="","",'Assiette par secteur'!B64) ->  | C62: =IF('Assiette par secteur'!E64="","",'Assiette par secteur'!E64) -> 
A63: 57 | B63: =IF('Assiette par secteur'!B65="","",'Assiette par secteur'!B65) ->  | C63: =IF('Assiette par secteur'!E65="","",'Assiette par secteur'!E65) -> 
A64: 58 | B64: =IF('Assiette par secteur'!B66="","",'Assiette par secteur'!B66) ->  | C64: =IF('Assiette par secteur'!E66="","",'Assiette par secteur'!E66) -> 
A65: 59 | B65: =IF('Assiette par secteur'!B67="","",'Assiette par secteur'!B67) ->  | C65: =IF('Assiette par secteur'!E67="","",'Assiette par secteur'!E67) -> 
A66: 60 | B66: =IF('Assiette par secteur'!B68="","",'Assiette par secteur'!B68) ->  | C66: =IF('Assiette par secteur'!E68="","",'Assiette par secteur'!E68) -> 
A67: 61 | B67: =IF('Assiette par secteur'!B69="","",'Assiette par secteur'!B69) ->  | C67: =IF('Assiette par secteur'!E69="","",'Assiette par secteur'!E69) -> 
A68: 62 | B68: =IF('Assiette par secteur'!B70="","",'Assiette par secteur'!B70) ->  | C68: =IF('Assiette par secteur'!E70="","",'Assiette par secteur'!E70) -> 
A69: 63 | B69: =IF('Assiette par secteur'!B71="","",'Assiette par secteur'!B71) ->  | C69: =IF('Assiette par secteur'!E71="","",'Assiette par secteur'!E71) -> 
A70: 64 | B70: =IF('Assiette par secteur'!B72="","",'Assiette par secteur'!B72) ->  | C70: =IF('Assiette par secteur'!E72="","",'Assiette par secteur'!E72) -> 
A71: 65 | B71: =IF('Assiette par secteur'!B73="","",'Assiette par secteur'!B73) ->  | C71: =IF('Assiette par secteur'!E73="","",'Assiette par secteur'!E73) ->  | E71: =IF(D71>0,C71,"") ->  | F71: =IF(C71="","",IF(D71>0,D71*C71/$E$2007,0)) -> 
A72: 66 | B72: =IF('Assiette par secteur'!B74="","",'Assiette par secteur'!B74) ->  | C72: =IF('Assiette par secteur'!E74="","",'Assiette par secteur'!E74) -> 
A73: =A72+1 -> 67 | B73: =IF('Assiette par secteur'!B75="","",'Assiette par secteur'!B75) ->  | C73: =IF('Assiette par secteur'!E75="","",'Assiette par secteur'!E75) -> 
A74: 68 | B74: =IF('Assiette par secteur'!B76="","",'Assiette par secteur'!B76) ->  | C74: =IF('Assiette par secteur'!E76="","",'Assiette par secteur'!E76) -> 
A75: 69 | B75: =IF('Assiette par secteur'!B77="","",'Assiette par secteur'!B77) ->  | C75: =IF('Assiette par secteur'!E77="","",'Assiette par secteur'!E77) -> 
A76: 70 | B76: =IF('Assiette par secteur'!B78="","",'Assiette par secteur'!B78) ->  | C76: =IF('Assiette par secteur'!E78="","",'Assiette par secteur'!E78) -> 
A77: 71 | B77: =IF('Assiette par secteur'!B79="","",'Assiette par secteur'!B79) ->  | C77: =IF('Assiette par secteur'!E79="","",'Assiette par secteur'!E79) -> 
A78: 72 | B78: =IF('Assiette par secteur'!B80="","",'Assiette par secteur'!B80) ->  | C78: =IF('Assiette par secteur'!E80="","",'Assiette par secteur'!E80) -> 
A79: 73 | B79: =IF('Assiette par secteur'!B81="","",'Assiette par secteur'!B81) ->  | C79: =IF('Assiette par secteur'!E81="","",'Assiette par secteur'!E81) -> 
A80: 74 | B80: =IF('Assiette par secteur'!B82="","",'Assiette par secteur'!B82) ->  | C80: =IF('Assiette par secteur'!E82="","",'Assiette par secteur'!E82) -> 
A81: 75 | B81: =IF('Assiette par secteur'!B83="","",'Assiette par secteur'!B83) ->  | C81: =IF('Assiette par secteur'!E83="","",'Assiette par secteur'!E83) -> 
A82: 76 | B82: =IF('Assiette par secteur'!B84="","",'Assiette par secteur'!B84) ->  | C82: =IF('Assiette par secteur'!E84="","",'Assiette par secteur'!E84) -> 
A83: 77 | B83: =IF('Assiette par secteur'!B85="","",'Assiette par secteur'!B85) ->  | C83: =IF('Assiette par secteur'!E85="","",'Assiette par secteur'!E85) -> 
A84: 78 | B84: =IF('Assiette par secteur'!B86="","",'Assiette par secteur'!B86) ->  | C84: =IF('Assiette par secteur'!E86="","",'Assiette par secteur'!E86) -> 
A85: 79 | B85: =IF('Assiette par secteur'!B87="","",'Assiette par secteur'!B87) ->  | C85: =IF('Assiette par secteur'!E87="","",'Assiette par secteur'!E87) -> 
A86: 80 | B86: =IF('Assiette par secteur'!B88="","",'Assiette par secteur'!B88) ->  | C86: =IF('Assiette par secteur'!E88="","",'Assiette par secteur'!E88) -> 
A87: 81 | B87: =IF('Assiette par secteur'!B89="","",'Assiette par secteur'!B89) ->  | C87: =IF('Assiette par secteur'!E89="","",'Assiette par secteur'!E89) -> 
A88: 82 | B88: =IF('Assiette par secteur'!B90="","",'Assiette par secteur'!B90) ->  | C88: =IF('Assiette par secteur'!E90="","",'Assiette par secteur'!E90) -> 
A89: 83 | B89: =IF('Assiette par secteur'!B91="","",'Assiette par secteur'!B91) ->  | C89: =IF('Assiette par secteur'!E91="","",'Assiette par secteur'!E91) -> 
A90: 84 | B90: =IF('Assiette par secteur'!B92="","",'Assiette par secteur'!B92) ->  | C90: =IF('Assiette par secteur'!E92="","",'Assiette par secteur'!E92) -> 
A91: 85 | B91: =IF('Assiette par secteur'!B93="","",'Assiette par secteur'!B93) ->  | C91: =IF('Assiette par secteur'!E93="","",'Assiette par secteur'!E93) -> 
A92: 86 | B92: =IF('Assiette par secteur'!B94="","",'Assiette par secteur'!B94) ->  | C92: =IF('Assiette par secteur'!E94="","",'Assiette par secteur'!E94) -> 
A93: 87 | B93: =IF('Assiette par secteur'!B95="","",'Assiette par secteur'!B95) ->  | C93: =IF('Assiette par secteur'!E95="","",'Assiette par secteur'!E95) -> 
A94: 88 | B94: =IF('Assiette par secteur'!B96="","",'Assiette par secteur'!B96) ->  | C94: =IF('Assiette par secteur'!E96="","",'Assiette par secteur'!E96) -> 
A95: 89 | B95: =IF('Assiette par secteur'!B97="","",'Assiette par secteur'!B97) ->  | C95: =IF('Assiette par secteur'!E97="","",'Assiette par secteur'!E97) -> 
A96: 90 | B96: =IF('Assiette par secteur'!B98="","",'Assiette par secteur'!B98) ->  | C96: =IF('Assiette par secteur'!E98="","",'Assiette par secteur'!E98) -> 
A97: 91 | B97: =IF('Assiette par secteur'!B99="","",'Assiette par secteur'!B99) ->  | C97: =IF('Assiette par secteur'!E99="","",'Assiette par secteur'!E99) -> 
A98: 92 | B98: =IF('Assiette par secteur'!B100="","",'Assiette par secteur'!B100) ->  | C98: =IF('Assiette par secteur'!E100="","",'Assiette par secteur'!E100) -> 
A99: 93 | B99: =IF('Assiette par secteur'!B101="","",'Assiette par secteur'!B101) ->  | C99: =IF('Assiette par secteur'!E101="","",'Assiette par secteur'!E101) -> 
A100: 94 | B100: =IF('Assiette par secteur'!B102="","",'Assiette par secteur'!B102) ->  | C100: =IF('Assiette par secteur'!E102="","",'Assiette par secteur'!E102) -> 
A101: 95 | B101: =IF('Assiette par secteur'!B103="","",'Assiette par secteur'!B103) ->  | C101: =IF('Assiette par secteur'!E103="","",'Assiette par secteur'!E103) -> 
A102: 96 | B102: =IF('Assiette par secteur'!B104="","",'Assiette par secteur'!B104) ->  | C102: =IF('Assiette par secteur'!E104="","",'Assiette par secteur'!E104) -> 
A103: 97 | B103: =IF('Assiette par secteur'!B105="","",'Assiette par secteur'!B105) ->  | C103: =IF('Assiette par secteur'!E105="","",'Assiette par secteur'!E105) -> 
A104: 98 | B104: =IF('Assiette par secteur'!B106="","",'Assiette par secteur'!B106) ->  | C104: =IF('Assiette par secteur'!E106="","",'Assiette par secteur'!E106) -> 
A105: 99 | B105: =IF('Assiette par secteur'!B107="","",'Assiette par secteur'!B107) ->  | C105: =IF('Assiette par secteur'!E107="","",'Assiette par secteur'!E107) -> 
A106: 100 | B106: =IF('Assiette par secteur'!B108="","",'Assiette par secteur'!B108) ->  | C106: =IF('Assiette par secteur'!E108="","",'Assiette par secteur'!E108) -> 
A107: 101 | B107: =IF('Assiette par secteur'!B109="","",'Assiette par secteur'!B109) ->  | C107: =IF('Assiette par secteur'!E109="","",'Assiette par secteur'!E109) -> 
A108: 102 | B108: =IF('Assiette par secteur'!B110="","",'Assiette par secteur'!B110) ->  | C108: =IF('Assiette par secteur'!E110="","",'Assiette par secteur'!E110) -> 
A109: 103 | B109: =IF('Assiette par secteur'!B111="","",'Assiette par secteur'!B111) ->  | C109: =IF('Assiette par secteur'!E111="","",'Assiette par secteur'!E111) -> 
A110: 104 | B110: =IF('Assiette par secteur'!B112="","",'Assiette par secteur'!B112) ->  | C110: =IF('Assiette par secteur'!E112="","",'Assiette par secteur'!E112) -> 
A111: 105 | B111: =IF('Assiette par secteur'!B113="","",'Assiette par secteur'!B113) ->  | C111: =IF('Assiette par secteur'!E113="","",'Assiette par secteur'!E113) -> 
A112: 106 | B112: =IF('Assiette par secteur'!B114="","",'Assiette par secteur'!B114) ->  | C112: =IF('Assiette par secteur'!E114="","",'Assiette par secteur'!E114) -> 
A113: 107 | B113: =IF('Assiette par secteur'!B115="","",'Assiette par secteur'!B115) ->  | C113: =IF('Assiette par secteur'!E115="","",'Assiette par secteur'!E115) -> 
A114: 108 | B114: =IF('Assiette par secteur'!B116="","",'Assiette par secteur'!B116) ->  | C114: =IF('Assiette par secteur'!E116="","",'Assiette par secteur'!E116) -> 
A115: 109 | B115: =IF('Assiette par secteur'!B117="","",'Assiette par secteur'!B117) ->  | C115: =IF('Assiette par secteur'!E117="","",'Assiette par secteur'!E117) -> 
A116: 110 | B116: =IF('Assiette par secteur'!B118="","",'Assiette par secteur'!B118) ->  | C116: =IF('Assiette par secteur'!E118="","",'Assiette par secteur'!E118) -> 
A117: 111 | B117: =IF('Assiette par secteur'!B119="","",'Assiette par secteur'!B119) ->  | C117: =IF('Assiette par secteur'!E119="","",'Assiette par secteur'!E119) -> 
A118: 112 | B118: =IF('Assiette par secteur'!B120="","",'Assiette par secteur'!B120) ->  | C118: =IF('Assiette par secteur'!E120="","",'Assiette par secteur'!E120) -> 
A119: 113 | B119: =IF('Assiette par secteur'!B121="","",'Assiette par secteur'!B121) ->  | C119: =IF('Assiette par secteur'!E121="","",'Assiette par secteur'!E121) -> 
A120: 114 | B120: =IF('Assiette par secteur'!B122="","",'Assiette par secteur'!B122) ->  | C120: =IF('Assiette par secteur'!E122="","",'Assiette par secteur'!E122) -> 
A121: 115 | B121: =IF('Assiette par secteur'!B123="","",'Assiette par secteur'!B123) ->  | C121: =IF('Assiette par secteur'!E123="","",'Assiette par secteur'!E123) -> 
A122: 116 | B122: =IF('Assiette par secteur'!B124="","",'Assiette par secteur'!B124) ->  | C122: =IF('Assiette par secteur'!E124="","",'Assiette par secteur'!E124) -> 
A123: 117 | B123: =IF('Assiette par secteur'!B125="","",'Assiette par secteur'!B125) ->  | C123: =IF('Assiette par secteur'!E125="","",'Assiette par secteur'!E125) -> 
A124: 118 | B124: =IF('Assiette par secteur'!B126="","",'Assiette par secteur'!B126) ->  | C124: =IF('Assiette par secteur'!E126="","",'Assiette par secteur'!E126) -> 
A125: 119 | B125: =IF('Assiette par secteur'!B127="","",'Assiette par secteur'!B127) ->  | C125: =IF('Assiette par secteur'!E127="","",'Assiette par secteur'!E127) -> 
A126: 120 | B126: =IF('Assiette par secteur'!B128="","",'Assiette par secteur'!B128) ->  | C126: =IF('Assiette par secteur'!E128="","",'Assiette par secteur'!E128) -> 
A127: 121 | B127: =IF('Assiette par secteur'!B129="","",'Assiette par secteur'!B129) ->  | C127: =IF('Assiette par secteur'!E129="","",'Assiette par secteur'!E129) -> 
A128: 122 | B128: =IF('Assiette par secteur'!B130="","",'Assiette par secteur'!B130) ->  | C128: =IF('Assiette par secteur'!E130="","",'Assiette par secteur'!E130) -> 
A129: 123 | B129: =IF('Assiette par secteur'!B131="","",'Assiette par secteur'!B131) ->  | C129: =IF('Assiette par secteur'!E131="","",'Assiette par secteur'!E131) -> 
A130: 124 | B130: =IF('Assiette par secteur'!B132="","",'Assiette par secteur'!B132) ->  | C130: =IF('Assiette par secteur'!E132="","",'Assiette par secteur'!E132) -> 
A131: 125 | B131: =IF('Assiette par secteur'!B133="","",'Assiette par secteur'!B133) ->  | C131: =IF('Assiette par secteur'!E133="","",'Assiette par secteur'!E133) -> 
A132: 126 | B132: =IF('Assiette par secteur'!B134="","",'Assiette par secteur'!B134) ->  | C132: =IF('Assiette par secteur'!E134="","",'Assiette par secteur'!E134) -> 
A133: 127 | B133: =IF('Assiette par secteur'!B135="","",'Assiette par secteur'!B135) ->  | C133: =IF('Assiette par secteur'!E135="","",'Assiette par secteur'!E135) -> 
A134: 128 | B134: =IF('Assiette par secteur'!B136="","",'Assiette par secteur'!B136) ->  | C134: =IF('Assiette par secteur'!E136="","",'Assiette par secteur'!E136) -> 
A135: 129 | B135: =IF('Assiette par secteur'!B137="","",'Assiette par secteur'!B137) ->  | C135: =IF('Assiette par secteur'!E137="","",'Assiette par secteur'!E137) ->  | E135: =IF(D135>0,C135,"") ->  | F135: =IF(C135="","",IF(D135>0,D135*C135/$E$2007,0)) -> 
A136: 130 | B136: =IF('Assiette par secteur'!B138="","",'Assiette par secteur'!B138) ->  | C136: =IF('Assiette par secteur'!E138="","",'Assiette par secteur'!E138) -> 
A137: =A136+1 -> 131 | B137: =IF('Assiette par secteur'!B139="","",'Assiette par secteur'!B139) ->  | C137: =IF('Assiette par secteur'!E139="","",'Assiette par secteur'!E139) -> 
A138: 132 | B138: =IF('Assiette par secteur'!B140="","",'Assiette par secteur'!B140) ->  | C138: =IF('Assiette par secteur'!E140="","",'Assiette par secteur'!E140) -> 
A139: 133 | B139: =IF('Assiette par secteur'!B141="","",'Assiette par secteur'!B141) ->  | C139: =IF('Assiette par secteur'!E141="","",'Assiette par secteur'!E141) -> 
A140: 134 | B140: =IF('Assiette par secteur'!B142="","",'Assiette par secteur'!B142) ->  | C140: =IF('Assiette par secteur'!E142="","",'Assiette par secteur'!E142) -> 
A141: 135 | B141: =IF('Assiette par secteur'!B143="","",'Assiette par secteur'!B143) ->  | C141: =IF('Assiette par secteur'!E143="","",'Assiette par secteur'!E143) -> 
A142: 136 | B142: =IF('Assiette par secteur'!B144="","",'Assiette par secteur'!B144) ->  | C142: =IF('Assiette par secteur'!E144="","",'Assiette par secteur'!E144) -> 
A143: 137 | B143: =IF('Assiette par secteur'!B145="","",'Assiette par secteur'!B145) ->  | C143: =IF('Assiette par secteur'!E145="","",'Assiette par secteur'!E145) -> 
A144: 138 | B144: =IF('Assiette par secteur'!B146="","",'Assiette par secteur'!B146) ->  | C144: =IF('Assiette par secteur'!E146="","",'Assiette par secteur'!E146) -> 
A145: 139 | B145: =IF('Assiette par secteur'!B147="","",'Assiette par secteur'!B147) ->  | C145: =IF('Assiette par secteur'!E147="","",'Assiette par secteur'!E147) -> 
A146: 140 | B146: =IF('Assiette par secteur'!B148="","",'Assiette par secteur'!B148) ->  | C146: =IF('Assiette par secteur'!E148="","",'Assiette par secteur'!E148) -> 
A147: 141 | B147: =IF('Assiette par secteur'!B149="","",'Assiette par secteur'!B149) ->  | C147: =IF('Assiette par secteur'!E149="","",'Assiette par secteur'!E149) -> 
A148: 142 | B148: =IF('Assiette par secteur'!B150="","",'Assiette par secteur'!B150) ->  | C148: =IF('Assiette par secteur'!E150="","",'Assiette par secteur'!E150) -> 
A149: 143 | B149: =IF('Assiette par secteur'!B151="","",'Assiette par secteur'!B151) ->  | C149: =IF('Assiette par secteur'!E151="","",'Assiette par secteur'!E151) -> 
A150: 144 | B150: =IF('Assiette par secteur'!B152="","",'Assiette par secteur'!B152) ->  | C150: =IF('Assiette par secteur'!E152="","",'Assiette par secteur'!E152) -> 
A151: 145 | B151: =IF('Assiette par secteur'!B153="","",'Assiette par secteur'!B153) ->  | C151: =IF('Assiette par secteur'!E153="","",'Assiette par secteur'!E153) -> 
A152: 146 | B152: =IF('Assiette par secteur'!B154="","",'Assiette par secteur'!B154) ->  | C152: =IF('Assiette par secteur'!E154="","",'Assiette par secteur'!E154) -> 
A153: 147 | B153: =IF('Assiette par secteur'!B155="","",'Assiette par secteur'!B155) ->  | C153: =IF('Assiette par secteur'!E155="","",'Assiette par secteur'!E155) -> 
A154: 148 | B154: =IF('Assiette par secteur'!B156="","",'Assiette par secteur'!B156) ->  | C154: =IF('Assiette par secteur'!E156="","",'Assiette par secteur'!E156) -> 
A155: 149 | B155: =IF('Assiette par secteur'!B157="","",'Assiette par secteur'!B157) ->  | C155: =IF('Assiette par secteur'!E157="","",'Assiette par secteur'!E157) -> 
A156: 150 | B156: =IF('Assiette par secteur'!B158="","",'Assiette par secteur'!B158) ->  | C156: =IF('Assiette par secteur'!E158="","",'Assiette par secteur'!E158) -> 
A157: 151 | B157: =IF('Assiette par secteur'!B159="","",'Assiette par secteur'!B159) ->  | C157: =IF('Assiette par secteur'!E159="","",'Assiette par secteur'!E159) -> 
A158: 152 | B158: =IF('Assiette par secteur'!B160="","",'Assiette par secteur'!B160) ->  | C158: =IF('Assiette par secteur'!E160="","",'Assiette par secteur'!E160) -> 
A159: 153 | B159: =IF('Assiette par secteur'!B161="","",'Assiette par secteur'!B161) ->  | C159: =IF('Assiette par secteur'!E161="","",'Assiette par secteur'!E161) -> 
A160: 154 | B160: =IF('Assiette par secteur'!B162="","",'Assiette par secteur'!B162) ->  | C160: =IF('Assiette par secteur'!E162="","",'Assiette par secteur'!E162) -> 
A161: 155 | B161: =IF('Assiette par secteur'!B163="","",'Assiette par secteur'!B163) ->  | C161: =IF('Assiette par secteur'!E163="","",'Assiette par secteur'!E163) -> 
A162: 156 | B162: =IF('Assiette par secteur'!B164="","",'Assiette par secteur'!B164) ->  | C162: =IF('Assiette par secteur'!E164="","",'Assiette par secteur'!E164) -> 
A163: 157 | B163: =IF('Assiette par secteur'!B165="","",'Assiette par secteur'!B165) ->  | C163: =IF('Assiette par secteur'!E165="","",'Assiette par secteur'!E165) -> 
A164: 158 | B164: =IF('Assiette par secteur'!B166="","",'Assiette par secteur'!B166) ->  | C164: =IF('Assiette par secteur'!E166="","",'Assiette par secteur'!E166) -> 
A165: 159 | B165: =IF('Assiette par secteur'!B167="","",'Assiette par secteur'!B167) ->  | C165: =IF('Assiette par secteur'!E167="","",'Assiette par secteur'!E167) -> 
A166: 160 | B166: =IF('Assiette par secteur'!B168="","",'Assiette par secteur'!B168) ->  | C166: =IF('Assiette par secteur'!E168="","",'Assiette par secteur'!E168) -> 
A167: 161 | B167: =IF('Assiette par secteur'!B169="","",'Assiette par secteur'!B169) ->  | C167: =IF('Assiette par secteur'!E169="","",'Assiette par secteur'!E169) -> 
A168: 162 | B168: =IF('Assiette par secteur'!B170="","",'Assiette par secteur'!B170) ->  | C168: =IF('Assiette par secteur'!E170="","",'Assiette par secteur'!E170) -> 
A169: 163 | B169: =IF('Assiette par secteur'!B171="","",'Assiette par secteur'!B171) ->  | C169: =IF('Assiette par secteur'!E171="","",'Assiette par secteur'!E171) -> 
A170: 164 | B170: =IF('Assiette par secteur'!B172="","",'Assiette par secteur'!B172) ->  | C170: =IF('Assiette par secteur'!E172="","",'Assiette par secteur'!E172) -> 
A171: 165 | B171: =IF('Assiette par secteur'!B173="","",'Assiette par secteur'!B173) ->  | C171: =IF('Assiette par secteur'!E173="","",'Assiette par secteur'!E173) -> 
A172: 166 | B172: =IF('Assiette par secteur'!B174="","",'Assiette par secteur'!B174) ->  | C172: =IF('Assiette par secteur'!E174="","",'Assiette par secteur'!E174) -> 
A173: 167 | B173: =IF('Assiette par secteur'!B175="","",'Assiette par secteur'!B175) ->  | C173: =IF('Assiette par secteur'!E175="","",'Assiette par secteur'!E175) -> 
A174: 168 | B174: =IF('Assiette par secteur'!B176="","",'Assiette par secteur'!B176) ->  | C174: =IF('Assiette par secteur'!E176="","",'Assiette par secteur'!E176) -> 
A175: 169 | B175: =IF('Assiette par secteur'!B177="","",'Assiette par secteur'!B177) ->  | C175: =IF('Assiette par secteur'!E177="","",'Assiette par secteur'!E177) -> 
A176: 170 | B176: =IF('Assiette par secteur'!B178="","",'Assiette par secteur'!B178) ->  | C176: =IF('Assiette par secteur'!E178="","",'Assiette par secteur'!E178) -> 
A177: 171 | B177: =IF('Assiette par secteur'!B179="","",'Assiette par secteur'!B179) ->  | C177: =IF('Assiette par secteur'!E179="","",'Assiette par secteur'!E179) -> 
A178: 172 | B178: =IF('Assiette par secteur'!B180="","",'Assiette par secteur'!B180) ->  | C178: =IF('Assiette par secteur'!E180="","",'Assiette par secteur'!E180) -> 
A179: 173 | B179: =IF('Assiette par secteur'!B181="","",'Assiette par secteur'!B181) ->  | C179: =IF('Assiette par secteur'!E181="","",'Assiette par secteur'!E181) -> 
A180: 174 | B180: =IF('Assiette par secteur'!B182="","",'Assiette par secteur'!B182) ->  | C180: =IF('Assiette par secteur'!E182="","",'Assiette par secteur'!E182) -> 
A181: 175 | B181: =IF('Assiette par secteur'!B183="","",'Assiette par secteur'!B183) ->  | C181: =IF('Assiette par secteur'!E183="","",'Assiette par secteur'!E183) -> 
A182: 176 | B182: =IF('Assiette par secteur'!B184="","",'Assiette par secteur'!B184) ->  | C182: =IF('Assiette par secteur'!E184="","",'Assiette par secteur'!E184) -> 
A183: 177 | B183: =IF('Assiette par secteur'!B185="","",'Assiette par secteur'!B185) ->  | C183: =IF('Assiette par secteur'!E185="","",'Assiette par secteur'!E185) -> 
A184: 178 | B184: =IF('Assiette par secteur'!B186="","",'Assiette par secteur'!B186) ->  | C184: =IF('Assiette par secteur'!E186="","",'Assiette par secteur'!E186) -> 
A185: 179 | B185: =IF('Assiette par secteur'!B187="","",'Assiette par secteur'!B187) ->  | C185: =IF('Assiette par secteur'!E187="","",'Assiette par secteur'!E187) -> 
A186: 180 | B186: =IF('Assiette par secteur'!B188="","",'Assiette par secteur'!B188) ->  | C186: =IF('Assiette par secteur'!E188="","",'Assiette par secteur'!E188) -> 
A187: 181 | B187: =IF('Assiette par secteur'!B189="","",'Assiette par secteur'!B189) ->  | C187: =IF('Assiette par secteur'!E189="","",'Assiette par secteur'!E189) -> 
A188: 182 | B188: =IF('Assiette par secteur'!B190="","",'Assiette par secteur'!B190) ->  | C188: =IF('Assiette par secteur'!E190="","",'Assiette par secteur'!E190) -> 
A189: 183 | B189: =IF('Assiette par secteur'!B191="","",'Assiette par secteur'!B191) ->  | C189: =IF('Assiette par secteur'!E191="","",'Assiette par secteur'!E191) -> 
A190: 184 | B190: =IF('Assiette par secteur'!B192="","",'Assiette par secteur'!B192) ->  | C190: =IF('Assiette par secteur'!E192="","",'Assiette par secteur'!E192) -> 
A191: 185 | B191: =IF('Assiette par secteur'!B193="","",'Assiette par secteur'!B193) ->  | C191: =IF('Assiette par secteur'!E193="","",'Assiette par secteur'!E193) -> 
A192: 186 | B192: =IF('Assiette par secteur'!B194="","",'Assiette par secteur'!B194) ->  | C192: =IF('Assiette par secteur'!E194="","",'Assiette par secteur'!E194) -> 
A193: 187 | B193: =IF('Assiette par secteur'!B195="","",'Assiette par secteur'!B195) ->  | C193: =IF('Assiette par secteur'!E195="","",'Assiette par secteur'!E195) -> 
A194: 188 | B194: =IF('Assiette par secteur'!B196="","",'Assiette par secteur'!B196) ->  | C194: =IF('Assiette par secteur'!E196="","",'Assiette par secteur'!E196) -> 
A195: 189 | B195: =IF('Assiette par secteur'!B197="","",'Assiette par secteur'!B197) ->  | C195: =IF('Assiette par secteur'!E197="","",'Assiette par secteur'!E197) -> 
A196: 190 | B196: =IF('Assiette par secteur'!B198="","",'Assiette par secteur'!B198) ->  | C196: =IF('Assiette par secteur'!E198="","",'Assiette par secteur'!E198) -> 
A197: 191 | B197: =IF('Assiette par secteur'!B199="","",'Assiette par secteur'!B199) ->  | C197: =IF('Assiette par secteur'!E199="","",'Assiette par secteur'!E199) -> 
A198: 192 | B198: =IF('Assiette par secteur'!B200="","",'Assiette par secteur'!B200) ->  | C198: =IF('Assiette par secteur'!E200="","",'Assiette par secteur'!E200) -> 
A199: 193 | B199: =IF('Assiette par secteur'!B201="","",'Assiette par secteur'!B201) ->  | C199: =IF('Assiette par secteur'!E201="","",'Assiette par secteur'!E201) ->  | E199: =IF(D199>0,C199,"") ->  | F199: =IF(C199="","",IF(D199>0,D199*C199/$E$2007,0)) -> 
A200: 194 | B200: =IF('Assiette par secteur'!B202="","",'Assiette par secteur'!B202) ->  | C200: =IF('Assiette par secteur'!E202="","",'Assiette par secteur'!E202) -> 
A201: =A200+1 -> 195 | B201: =IF('Assiette par secteur'!B203="","",'Assiette par secteur'!B203) ->  | C201: =IF('Assiette par secteur'!E203="","",'Assiette par secteur'!E203) -> 
A202: 196 | B202: =IF('Assiette par secteur'!B204="","",'Assiette par secteur'!B204) ->  | C202: =IF('Assiette par secteur'!E204="","",'Assiette par secteur'!E204) -> 
A203: 197 | B203: =IF('Assiette par secteur'!B205="","",'Assiette par secteur'!B205) ->  | C203: =IF('Assiette par secteur'!E205="","",'Assiette par secteur'!E205) -> 
A204: 198 | B204: =IF('Assiette par secteur'!B206="","",'Assiette par secteur'!B206) ->  | C204: =IF('Assiette par secteur'!E206="","",'Assiette par secteur'!E206) -> 
... 1803 more rows

Sheet Taxes sp-Act de fonctionnement
B4: Taxes spéciales – Activités de fonctionnement | D4: =IF(D7=0,"Remplir cette colonne","") -> Remplir cette colonne
B5: Secteur | C5: Assiette d'application ($) | D5: Taux sectoriel ou taux de base sectoriel ($/100 $ d'évaluation)
A7: 1 | B7: =IF('Assiette par secteur'!B9="","",'Assiette par secteur'!B9) ->  | C7: =IF('Assiette par secteur'!E9="","",'Assiette par secteur'!E9) ->  | E7: =IF(D7>0,C7,"") ->  | F7: =IF(C7="","",IF(D7>0,D7*C7/$E$2007,0)) -> 
A8: =A7+1 -> 2 | B8: =IF('Assiette par secteur'!B10="","",'Assiette par secteur'!B10) ->  | C8: =IF('Assiette par secteur'!E10="","",'Assiette par secteur'!E10) -> 
A9: =A8+1 -> 3 | B9: =IF('Assiette par secteur'!B11="","",'Assiette par secteur'!B11) ->  | C9: =IF('Assiette par secteur'!E11="","",'Assiette par secteur'!E11) -> 
A10: 4 | B10: =IF('Assiette par secteur'!B12="","",'Assiette par secteur'!B12) ->  | C10: =IF('Assiette par secteur'!E12="","",'Assiette par secteur'!E12) -> 
A11: 5 | B11: =IF('Assiette par secteur'!B13="","",'Assiette par secteur'!B13) ->  | C11: =IF('Assiette par secteur'!E13="","",'Assiette par secteur'!E13) -> 
A12: 6 | B12: =IF('Assiette par secteur'!B14="","",'Assiette par secteur'!B14) ->  | C12: =IF('Assiette par secteur'!E14="","",'Assiette par secteur'!E14) -> 
A13: 7 | B13: =IF('Assiette par secteur'!B15="","",'Assiette par secteur'!B15) ->  | C13: =IF('Assiette par secteur'!E15="","",'Assiette par secteur'!E15) -> 
A14: 8 | B14: =IF('Assiette par secteur'!B16="","",'Assiette par secteur'!B16) ->  | C14: =IF('Assiette par secteur'!E16="","",'Assiette par secteur'!E16) -> 
A15: 9 | B15: =IF('Assiette par secteur'!B17="","",'Assiette par secteur'!B17) ->  | C15: =IF('Assiette par secteur'!E17="","",'Assiette par secteur'!E17) -> 
A16: 10 | B16: =IF('Assiette par secteur'!B18="","",'Assiette par secteur'!B18) ->  | C16: =IF('Assiette par secteur'!E18="","",'Assiette par secteur'!E18) -> 
A17: 11 | B17: =IF('Assiette par secteur'!B19="","",'Assiette par secteur'!B19) ->  | C17: =IF('Assiette par secteur'!E19="","",'Assiette par secteur'!E19) -> 
A18: 12 | B18: =IF('Assiette par secteur'!B20="","",'Assiette par secteur'!B20) ->  | C18: =IF('Assiette par secteur'!E20="","",'Assiette par secteur'!E20) -> 
A19: 13 | B19: =IF('Assiette par secteur'!B21="","",'Assiette par secteur'!B21) ->  | C19: =IF('Assiette par secteur'!E21="","",'Assiette par secteur'!E21) -> 
A20: 14 | B20: =IF('Assiette par secteur'!B22="","",'Assiette par secteur'!B22) ->  | C20: =IF('Assiette par secteur'!E22="","",'Assiette par secteur'!E22) -> 
A21: 15 | B21: =IF('Assiette par secteur'!B23="","",'Assiette par secteur'!B23) ->  | C21: =IF('Assiette par secteur'!E23="","",'Assiette par secteur'!E23) -> 
A22: 16 | B22: =IF('Assiette par secteur'!B24="","",'Assiette par secteur'!B24) ->  | C22: =IF('Assiette par secteur'!E24="","",'Assiette par secteur'!E24) -> 
A23: 17 | B23: =IF('Assiette par secteur'!B25="","",'Assiette par secteur'!B25) ->  | C23: =IF('Assiette par secteur'!E25="","",'Assiette par secteur'!E25) -> 
A24: 18 | B24: =IF('Assiette par secteur'!B26="","",'Assiette par secteur'!B26) ->  | C24: =IF('Assiette par secteur'!E26="","",'Assiette par secteur'!E26) -> 
A25: 19 | B25: =IF('Assiette par secteur'!B27="","",'Assiette par secteur'!B27) ->  | C25: =IF('Assiette par secteur'!E27="","",'Assiette par secteur'!E27) -> 
A26: 20 | B26: =IF('Assiette par secteur'!B28="","",'Assiette par secteur'!B28) ->  | C26: =IF('Assiette par secteur'!E28="","",'Assiette par secteur'!E28) -> 
A27: 21 | B27: =IF('Assiette par secteur'!B29="","",'Assiette par secteur'!B29) ->  | C27: =IF('Assiette par secteur'!E29="","",'Assiette par secteur'!E29) -> 
A28: 22 | B28: =IF('Assiette par secteur'!B30="","",'Assiette par secteur'!B30) ->  | C28: =IF('Assiette par secteur'!E30="","",'Assiette par secteur'!E30) -> 
A29: 23 | B29: =IF('Assiette par secteur'!B31="","",'Assiette par secteur'!B31) ->  | C29: =IF('Assiette par secteur'!E31="","",'Assiette par secteur'!E31) -> 
A30: 24 | B30: =IF('Assiette par secteur'!B32="","",'Assiette par secteur'!B32) ->  | C30: =IF('Assiette par secteur'!E32="","",'Assiette par secteur'!E32) -> 
A31: 25 | B31: =IF('Assiette par secteur'!B33="","",'Assiette par secteur'!B33) ->  | C31: =IF('Assiette par secteur'!E33="","",'Assiette par secteur'!E33) -> 
A32: 26 | B32: =IF('Assiette par secteur'!B34="","",'Assiette par secteur'!B34) ->  | C32: =IF('Assiette par secteur'!E34="","",'Assiette par secteur'!E34) -> 
A33: 27 | B33: =IF('Assiette par secteur'!B35="","",'Assiette par secteur'!B35) ->  | C33: =IF('Assiette par secteur'!E35="","",'Assiette par secteur'!E35) -> 
A34: 28 | B34: =IF('Assiette par secteur'!B36="","",'Assiette par secteur'!B36) ->  | C34: =IF('Assiette par secteur'!E36="","",'Assiette par secteur'!E36) -> 
A35: 29 | B35: =IF('Assiette par secteur'!B37="","",'Assiette par secteur'!B37) ->  | C35: =IF('Assiette par secteur'!E37="","",'Assiette par secteur'!E37) -> 
A36: 30 | B36: =IF('Assiette par secteur'!B38="","",'Assiette par secteur'!B38) ->  | C36: =IF('Assiette par secteur'!E38="","",'Assiette par secteur'!E38) -> 
A37: 31 | B37: =IF('Assiette par secteur'!B39="","",'Assiette par secteur'!B39) ->  | C37: =IF('Assiette par secteur'!E39="","",'Assiette par secteur'!E39) -> 
A38: 32 | B38: =IF('Assiette par secteur'!B40="","",'Assiette par secteur'!B40) ->  | C38: =IF('Assiette par secteur'!E40="","",'Assiette par secteur'!E40) -> 
A39: 33 | B39: =IF('Assiette par secteur'!B41="","",'Assiette par secteur'!B41) ->  | C39: =IF('Assiette par secteur'!E41="","",'Assiette par secteur'!E41) -> 
A40: 34 | B40: =IF('Assiette par secteur'!B42="","",'Assiette par secteur'!B42) ->  | C40: =IF('Assiette par secteur'!E42="","",'Assiette par secteur'!E42) -> 
A41: 35 | B41: =IF('Assiette par secteur'!B43="","",'Assiette par secteur'!B43) ->  | C41: =IF('Assiette par secteur'!E43="","",'Assiette par secteur'!E43) -> 
A42: 36 | B42: =IF('Assiette par secteur'!B44="","",'Assiette par secteur'!B44) ->  | C42: =IF('Assiette par secteur'!E44="","",'Assiette par secteur'!E44) -> 
A43: 37 | B43: =IF('Assiette par secteur'!B45="","",'Assiette par secteur'!B45) ->  | C43: =IF('Assiette par secteur'!E45="","",'Assiette par secteur'!E45) -> 
A44: 38 | B44: =IF('Assiette par secteur'!B46="","",'Assiette par secteur'!B46) ->  | C44: =IF('Assiette par secteur'!E46="","",'Assiette par secteur'!E46) -> 
A45: 39 | B45: =IF('Assiette par secteur'!B47="","",'Assiette par secteur'!B47) ->  | C45: =IF('Assiette par secteur'!E47="","",'Assiette par secteur'!E47) -> 
A46: 40 | B46: =IF('Assiette par secteur'!B48="","",'Assiette par secteur'!B48) ->  | C46: =IF('Assiette par secteur'!E48="","",'Assiette par secteur'!E48) -> 
A47: 41 | B47: =IF('Assiette par secteur'!B49="","",'Assiette par secteur'!B49) ->  | C47: =IF('Assiette par secteur'!E49="","",'Assiette par secteur'!E49) -> 
A48: 42 | B48: =IF('Assiette par secteur'!B50="","",'Assiette par secteur'!B50) ->  | C48: =IF('Assiette par secteur'!E50="","",'Assiette par secteur'!E50) -> 
A49: 43 | B49: =IF('Assiette par secteur'!B51="","",'Assiette par secteur'!B51) ->  | C49: =IF('Assiette par secteur'!E51="","",'Assiette par secteur'!E51) -> 
A50: 44 | B50: =IF('Assiette par secteur'!B52="","",'Assiette par secteur'!B52) ->  | C50: =IF('Assiette par secteur'!E52="","",'Assiette par secteur'!E52) -> 
A51: 45 | B51: =IF('Assiette par secteur'!B53="","",'Assiette par secteur'!B53) ->  | C51: =IF('Assiette par secteur'!E53="","",'Assiette par secteur'!E53) -> 
A52: 46 | B52: =IF('Assiette par secteur'!B54="","",'Assiette par secteur'!B54) ->  | C52: =IF('Assiette par secteur'!E54="","",'Assiette par secteur'!E54) -> 
A53: 47 | B53: =IF('Assiette par secteur'!B55="","",'Assiette par secteur'!B55) ->  | C53: =IF('Assiette par secteur'!E55="","",'Assiette par secteur'!E55) -> 
A54: 48 | B54: =IF('Assiette par secteur'!B56="","",'Assiette par secteur'!B56) ->  | C54: =IF('Assiette par secteur'!E56="","",'Assiette par secteur'!E56) -> 
A55: 49 | B55: =IF('Assiette par secteur'!B57="","",'Assiette par secteur'!B57) ->  | C55: =IF('Assiette par secteur'!E57="","",'Assiette par secteur'!E57) -> 
A56: 50 | B56: =IF('Assiette par secteur'!B58="","",'Assiette par secteur'!B58) ->  | C56: =IF('Assiette par secteur'!E58="","",'Assiette par secteur'!E58) -> 
A57: 51 | B57: =IF('Assiette par secteur'!B59="","",'Assiette par secteur'!B59) ->  | C57: =IF('Assiette par secteur'!E59="","",'Assiette par secteur'!E59) -> 
A58: 52 | B58: =IF('Assiette par secteur'!B60="","",'Assiette par secteur'!B60) ->  | C58: =IF('Assiette par secteur'!E60="","",'Assiette par secteur'!E60) -> 
A59: 53 | B59: =IF('Assiette par secteur'!B61="","",'Assiette par secteur'!B61) ->  | C59: =IF('Assiette par secteur'!E61="","",'Assiette par secteur'!E61) -> 
A60: 54 | B60: =IF('Assiette par secteur'!B62="","",'Assiette par secteur'!B62) ->  | C60: =IF('Assiette par secteur'!E62="","",'Assiette par secteur'!E62) -> 
A61: 55 | B61: =IF('Assiette par secteur'!B63="","",'Assiette par secteur'!B63) ->  | C61: =IF('Assiette par secteur'!E63="","",'Assiette par secteur'!E63) -> 
A62: 56 | B62: =IF('Assiette par secteur'!B64="","",'Assiette par secteur'!B64) ->  | C62: =IF('Assiette par secteur'!E64="","",'Assiette par secteur'!E64) -> 
A63: 57 | B63: =IF('Assiette par secteur'!B65="","",'Assiette par secteur'!B65) ->  | C63: =IF('Assiette par secteur'!E65="","",'Assiette par secteur'!E65) -> 
A64: 58 | B64: =IF('Assiette par secteur'!B66="","",'Assiette par secteur'!B66) ->  | C64: =IF('Assiette par secteur'!E66="","",'Assiette par secteur'!E66) -> 
A65: 59 | B65: =IF('Assiette par secteur'!B67="","",'Assiette par secteur'!B67) ->  | C65: =IF('Assiette par secteur'!E67="","",'Assiette par secteur'!E67) -> 
A66: 60 | B66: =IF('Assiette par secteur'!B68="","",'Assiette par secteur'!B68) ->  | C66: =IF('Assiette par secteur'!E68="","",'Assiette par secteur'!E68) -> 
A67: 61 | B67: =IF('Assiette par secteur'!B69="","",'Assiette par secteur'!B69) ->  | C67: =IF('Assiette par secteur'!E69="","",'Assiette par secteur'!E69) -> 
A68: 62 | B68: =IF('Assiette par secteur'!B70="","",'Assiette par secteur'!B70) ->  | C68: =IF('Assiette par secteur'!E70="","",'Assiette par secteur'!E70) -> 
A69: 63 | B69: =IF('Assiette par secteur'!B71="","",'Assiette par secteur'!B71) ->  | C69: =IF('Assiette par secteur'!E71="","",'Assiette par secteur'!E71) -> 
A70: 64 | B70: =IF('Assiette par secteur'!B72="","",'Assiette par secteur'!B72) ->  | C70: =IF('Assiette par secteur'!E72="","",'Assiette par secteur'!E72) -> 
A71: 65 | B71: =IF('Assiette par secteur'!B73="","",'Assiette par secteur'!B73) ->  | C71: =IF('Assiette par secteur'!E73="","",'Assiette par secteur'!E73) ->  | E71: =IF(D71>0,C71,"") ->  | F71: =IF(C71="","",IF(D71>0,D71*C71/$E$2007,0)) -> 
A72: 66 | B72: =IF('Assiette par secteur'!B74="","",'Assiette par secteur'!B74) ->  | C72: =IF('Assiette par secteur'!E74="","",'Assiette par secteur'!E74) -> 
A73: =A72+1 -> 67 | B73: =IF('Assiette par secteur'!B75="","",'Assiette par secteur'!B75) ->  | C73: =IF('Assiette par secteur'!E75="","",'Assiette par secteur'!E75) -> 
A74: 68 | B74: =IF('Assiette par secteur'!B76="","",'Assiette par secteur'!B76) ->  | C74: =IF('Assiette par secteur'!E76="","",'Assiette par secteur'!E76) -> 
A75: 69 | B75: =IF('Assiette par secteur'!B77="","",'Assiette par secteur'!B77) ->  | C75: =IF('Assiette par secteur'!E77="","",'Assiette par secteur'!E77) -> 
A76: 70 | B76: =IF('Assiette par secteur'!B78="","",'Assiette par secteur'!B78) ->  | C76: =IF('Assiette par secteur'!E78="","",'Assiette par secteur'!E78) -> 
A77: 71 | B77: =IF('Assiette par secteur'!B79="","",'Assiette par secteur'!B79) ->  | C77: =IF('Assiette par secteur'!E79="","",'Assiette par secteur'!E79) -> 
A78: 72 | B78: =IF('Assiette par secteur'!B80="","",'Assiette par secteur'!B80) ->  | C78: =IF('Assiette par secteur'!E80="","",'Assiette par secteur'!E80) -> 
A79: 73 | B79: =IF('Assiette par secteur'!B81="","",'Assiette par secteur'!B81) ->  | C79: =IF('Assiette par secteur'!E81="","",'Assiette par secteur'!E81) -> 
A80: 74 | B80: =IF('Assiette par secteur'!B82="","",'Assiette par secteur'!B82) ->  | C80: =IF('Assiette par secteur'!E82="","",'Assiette par secteur'!E82) -> 
A81: 75 | B81: =IF('Assiette par secteur'!B83="","",'Assiette par secteur'!B83) ->  | C81: =IF('Assiette par secteur'!E83="","",'Assiette par secteur'!E83) -> 
A82: 76 | B82: =IF('Assiette par secteur'!B84="","",'Assiette par secteur'!B84) ->  | C82: =IF('Assiette par secteur'!E84="","",'Assiette par secteur'!E84) -> 
A83: 77 | B83: =IF('Assiette par secteur'!B85="","",'Assiette par secteur'!B85) ->  | C83: =IF('Assiette par secteur'!E85="","",'Assiette par secteur'!E85) -> 
A84: 78 | B84: =IF('Assiette par secteur'!B86="","",'Assiette par secteur'!B86) ->  | C84: =IF('Assiette par secteur'!E86="","",'Assiette par secteur'!E86) -> 
A85: 79 | B85: =IF('Assiette par secteur'!B87="","",'Assiette par secteur'!B87) ->  | C85: =IF('Assiette par secteur'!E87="","",'Assiette par secteur'!E87) -> 
A86: 80 | B86: =IF('Assiette par secteur'!B88="","",'Assiette par secteur'!B88) ->  | C86: =IF('Assiette par secteur'!E88="","",'Assiette par secteur'!E88) -> 
A87: 81 | B87: =IF('Assiette par secteur'!B89="","",'Assiette par secteur'!B89) ->  | C87: =IF('Assiette par secteur'!E89="","",'Assiette par secteur'!E89) -> 
A88: 82 | B88: =IF('Assiette par secteur'!B90="","",'Assiette par secteur'!B90) ->  | C88: =IF('Assiette par secteur'!E90="","",'Assiette par secteur'!E90) -> 
A89: 83 | B89: =IF('Assiette par secteur'!B91="","",'Assiette par secteur'!B91) ->  | C89: =IF('Assiette par secteur'!E91="","",'Assiette par secteur'!E91) -> 
A90: 84 | B90: =IF('Assiette par secteur'!B92="","",'Assiette par secteur'!B92) ->  | C90: =IF('Assiette par secteur'!E92="","",'Assiette par secteur'!E92) -> 
A91: 85 | B91: =IF('Assiette par secteur'!B93="","",'Assiette par secteur'!B93) ->  | C91: =IF('Assiette par secteur'!E93="","",'Assiette par secteur'!E93) -> 
A92: 86 | B92: =IF('Assiette par secteur'!B94="","",'Assiette par secteur'!B94) ->  | C92: =IF('Assiette par secteur'!E94="","",'Assiette par secteur'!E94) -> 
A93: 87 | B93: =IF('Assiette par secteur'!B95="","",'Assiette par secteur'!B95) ->  | C93: =IF('Assiette par secteur'!E95="","",'Assiette par secteur'!E95) -> 
A94: 88 | B94: =IF('Assiette par secteur'!B96="","",'Assiette par secteur'!B96) ->  | C94: =IF('Assiette par secteur'!E96="","",'Assiette par secteur'!E96) -> 
A95: 89 | B95: =IF('Assiette par secteur'!B97="","",'Assiette par secteur'!B97) ->  | C95: =IF('Assiette par secteur'!E97="","",'Assiette par secteur'!E97) -> 
A96: 90 | B96: =IF('Assiette par secteur'!B98="","",'Assiette par secteur'!B98) ->  | C96: =IF('Assiette par secteur'!E98="","",'Assiette par secteur'!E98) -> 
A97: 91 | B97: =IF('Assiette par secteur'!B99="","",'Assiette par secteur'!B99) ->  | C97: =IF('Assiette par secteur'!E99="","",'Assiette par secteur'!E99) -> 
A98: 92 | B98: =IF('Assiette par secteur'!B100="","",'Assiette par secteur'!B100) ->  | C98: =IF('Assiette par secteur'!E100="","",'Assiette par secteur'!E100) -> 
A99: 93 | B99: =IF('Assiette par secteur'!B101="","",'Assiette par secteur'!B101) ->  | C99: =IF('Assiette par secteur'!E101="","",'Assiette par secteur'!E101) -> 
A100: 94 | B100: =IF('Assiette par secteur'!B102="","",'Assiette par secteur'!B102) ->  | C100: =IF('Assiette par secteur'!E102="","",'Assiette par secteur'!E102) -> 
A101: 95 | B101: =IF('Assiette par secteur'!B103="","",'Assiette par secteur'!B103) ->  | C101: =IF('Assiette par secteur'!E103="","",'Assiette par secteur'!E103) -> 
A102: 96 | B102: =IF('Assiette par secteur'!B104="","",'Assiette par secteur'!B104) ->  | C102: =IF('Assiette par secteur'!E104="","",'Assiette par secteur'!E104) -> 
A103: 97 | B103: =IF('Assiette par secteur'!B105="","",'Assiette par secteur'!B105) ->  | C103: =IF('Assiette par secteur'!E105="","",'Assiette par secteur'!E105) -> 
A104: 98 | B104: =IF('Assiette par secteur'!B106="","",'Assiette par secteur'!B106) ->  | C104: =IF('Assiette par secteur'!E106="","",'Assiette par secteur'!E106) -> 
A105: 99 | B105: =IF('Assiette par secteur'!B107="","",'Assiette par secteur'!B107) ->  | C105: =IF('Assiette par secteur'!E107="","",'Assiette par secteur'!E107) -> 
A106: 100 | B106: =IF('Assiette par secteur'!B108="","",'Assiette par secteur'!B108) ->  | C106: =IF('Assiette par secteur'!E108="","",'Assiette par secteur'!E108) -> 
A107: 101 | B107: =IF('Assiette par secteur'!B109="","",'Assiette par secteur'!B109) ->  | C107: =IF('Assiette par secteur'!E109="","",'Assiette par secteur'!E109) -> 
A108: 102 | B108: =IF('Assiette par secteur'!B110="","",'Assiette par secteur'!B110) ->  | C108: =IF('Assiette par secteur'!E110="","",'Assiette par secteur'!E110) -> 
A109: 103 | B109: =IF('Assiette par secteur'!B111="","",'Assiette par secteur'!B111) ->  | C109: =IF('Assiette par secteur'!E111="","",'Assiette par secteur'!E111) -> 
A110: 104 | B110: =IF('Assiette par secteur'!B112="","",'Assiette par secteur'!B112) ->  | C110: =IF('Assiette par secteur'!E112="","",'Assiette par secteur'!E112) -> 
A111: 105 | B111: =IF('Assiette par secteur'!B113="","",'Assiette par secteur'!B113) ->  | C111: =IF('Assiette par secteur'!E113="","",'Assiette par secteur'!E113) -> 
A112: 106 | B112: =IF('Assiette par secteur'!B114="","",'Assiette par secteur'!B114) ->  | C112: =IF('Assiette par secteur'!E114="","",'Assiette par secteur'!E114) -> 
A113: 107 | B113: =IF('Assiette par secteur'!B115="","",'Assiette par secteur'!B115) ->  | C113: =IF('Assiette par secteur'!E115="","",'Assiette par secteur'!E115) -> 
A114: 108 | B114: =IF('Assiette par secteur'!B116="","",'Assiette par secteur'!B116) ->  | C114: =IF('Assiette par secteur'!E116="","",'Assiette par secteur'!E116) -> 
A115: 109 | B115: =IF('Assiette par secteur'!B117="","",'Assiette par secteur'!B117) ->  | C115: =IF('Assiette par secteur'!E117="","",'Assiette par secteur'!E117) -> 
A116: 110 | B116: =IF('Assiette par secteur'!B118="","",'Assiette par secteur'!B118) ->  | C116: =IF('Assiette par secteur'!E118="","",'Assiette par secteur'!E118) -> 
A117: 111 | B117: =IF('Assiette par secteur'!B119="","",'Assiette par secteur'!B119) ->  | C117: =IF('Assiette par secteur'!E119="","",'Assiette par secteur'!E119) -> 
A118: 112 | B118: =IF('Assiette par secteur'!B120="","",'Assiette par secteur'!B120) ->  | C118: =IF('Assiette par secteur'!E120="","",'Assiette par secteur'!E120) -> 
A119: 113 | B119: =IF('Assiette par secteur'!B121="","",'Assiette par secteur'!B121) ->  | C119: =IF('Assiette par secteur'!E121="","",'Assiette par secteur'!E121) -> 
A120: 114 | B120: =IF('Assiette par secteur'!B122="","",'Assiette par secteur'!B122) ->  | C120: =IF('Assiette par secteur'!E122="","",'Assiette par secteur'!E122) -> 
A121: 115 | B121: =IF('Assiette par secteur'!B123="","",'Assiette par secteur'!B123) ->  | C121: =IF('Assiette par secteur'!E123="","",'Assiette par secteur'!E123) -> 
A122: 116 | B122: =IF('Assiette par secteur'!B124="","",'Assiette par secteur'!B124) ->  | C122: =IF('Assiette par secteur'!E124="","",'Assiette par secteur'!E124) -> 
A123: 117 | B123: =IF('Assiette par secteur'!B125="","",'Assiette par secteur'!B125) ->  | C123: =IF('Assiette par secteur'!E125="","",'Assiette par secteur'!E125) -> 
A124: 118 | B124: =IF('Assiette par secteur'!B126="","",'Assiette par secteur'!B126) ->  | C124: =IF('Assiette par secteur'!E126="","",'Assiette par secteur'!E126) -> 
A125: 119 | B125: =IF('Assiette par secteur'!B127="","",'Assiette par secteur'!B127) ->  | C125: =IF('Assiette par secteur'!E127="","",'Assiette par secteur'!E127) -> 
A126: 120 | B126: =IF('Assiette par secteur'!B128="","",'Assiette par secteur'!B128) ->  | C126: =IF('Assiette par secteur'!E128="","",'Assiette par secteur'!E128) -> 
A127: 121 | B127: =IF('Assiette par secteur'!B129="","",'Assiette par secteur'!B129) ->  | C127: =IF('Assiette par secteur'!E129="","",'Assiette par secteur'!E129) -> 
A128: 122 | B128: =IF('Assiette par secteur'!B130="","",'Assiette par secteur'!B130) ->  | C128: =IF('Assiette par secteur'!E130="","",'Assiette par secteur'!E130) -> 
A129: 123 | B129: =IF('Assiette par secteur'!B131="","",'Assiette par secteur'!B131) ->  | C129: =IF('Assiette par secteur'!E131="","",'Assiette par secteur'!E131) -> 
A130: 124 | B130: =IF('Assiette par secteur'!B132="","",'Assiette par secteur'!B132) ->  | C130: =IF('Assiette par secteur'!E132="","",'Assiette par secteur'!E132) -> 
A131: 125 | B131: =IF('Assiette par secteur'!B133="","",'Assiette par secteur'!B133) ->  | C131: =IF('Assiette par secteur'!E133="","",'Assiette par secteur'!E133) -> 
A132: 126 | B132: =IF('Assiette par secteur'!B134="","",'Assiette par secteur'!B134) ->  | C132: =IF('Assiette par secteur'!E134="","",'Assiette par secteur'!E134) -> 
A133: 127 | B133: =IF('Assiette par secteur'!B135="","",'Assiette par secteur'!B135) ->  | C133: =IF('Assiette par secteur'!E135="","",'Assiette par secteur'!E135) -> 
A134: 128 | B134: =IF('Assiette par secteur'!B136="","",'Assiette par secteur'!B136) ->  | C134: =IF('Assiette par secteur'!E136="","",'Assiette par secteur'!E136) -> 
A135: 129 | B135: =IF('Assiette par secteur'!B137="","",'Assiette par secteur'!B137) ->  | C135: =IF('Assiette par secteur'!E137="","",'Assiette par secteur'!E137) ->  | E135: =IF(D135>0,C135,"") ->  | F135: =IF(C135="","",IF(D135>0,D135*C135/$E$2007,0)) -> 
A136: 130 | B136: =IF('Assiette par secteur'!B138="","",'Assiette par secteur'!B138) ->  | C136: =IF('Assiette par secteur'!E138="","",'Assiette par secteur'!E138) -> 
A137: =A136+1 -> 131 | B137: =IF('Assiette par secteur'!B139="","",'Assiette par secteur'!B139) ->  | C137: =IF('Assiette par secteur'!E139="","",'Assiette par secteur'!E139) -> 
A138: 132 | B138: =IF('Assiette par secteur'!B140="","",'Assiette par secteur'!B140) ->  | C138: =IF('Assiette par secteur'!E140="","",'Assiette par secteur'!E140) -> 
A139: 133 | B139: =IF('Assiette par secteur'!B141="","",'Assiette par secteur'!B141) ->  | C139: =IF('Assiette par secteur'!E141="","",'Assiette par secteur'!E141) -> 
A140: 134 | B140: =IF('Assiette par secteur'!B142="","",'Assiette par secteur'!B142) ->  | C140: =IF('Assiette par secteur'!E142="","",'Assiette par secteur'!E142) -> 
A141: 135 | B141: =IF('Assiette par secteur'!B143="","",'Assiette par secteur'!B143) ->  | C141: =IF('Assiette par secteur'!E143="","",'Assiette par secteur'!E143) -> 
A142: 136 | B142: =IF('Assiette par secteur'!B144="","",'Assiette par secteur'!B144) ->  | C142: =IF('Assiette par secteur'!E144="","",'Assiette par secteur'!E144) -> 
A143: 137 | B143: =IF('Assiette par secteur'!B145="","",'Assiette par secteur'!B145) ->  | C143: =IF('Assiette par secteur'!E145="","",'Assiette par secteur'!E145) -> 
A144: 138 | B144: =IF('Assiette par secteur'!B146="","",'Assiette par secteur'!B146) ->  | C144: =IF('Assiette par secteur'!E146="","",'Assiette par secteur'!E146) -> 
A145: 139 | B145: =IF('Assiette par secteur'!B147="","",'Assiette par secteur'!B147) ->  | C145: =IF('Assiette par secteur'!E147="","",'Assiette par secteur'!E147) -> 
A146: 140 | B146: =IF('Assiette par secteur'!B148="","",'Assiette par secteur'!B148) ->  | C146: =IF('Assiette par secteur'!E148="","",'Assiette par secteur'!E148) -> 
A147: 141 | B147: =IF('Assiette par secteur'!B149="","",'Assiette par secteur'!B149) ->  | C147: =IF('Assiette par secteur'!E149="","",'Assiette par secteur'!E149) -> 
A148: 142 | B148: =IF('Assiette par secteur'!B150="","",'Assiette par secteur'!B150) ->  | C148: =IF('Assiette par secteur'!E150="","",'Assiette par secteur'!E150) -> 
A149: 143 | B149: =IF('Assiette par secteur'!B151="","",'Assiette par secteur'!B151) ->  | C149: =IF('Assiette par secteur'!E151="","",'Assiette par secteur'!E151) -> 
A150: 144 | B150: =IF('Assiette par secteur'!B152="","",'Assiette par secteur'!B152) ->  | C150: =IF('Assiette par secteur'!E152="","",'Assiette par secteur'!E152) -> 
A151: 145 | B151: =IF('Assiette par secteur'!B153="","",'Assiette par secteur'!B153) ->  | C151: =IF('Assiette par secteur'!E153="","",'Assiette par secteur'!E153) -> 
A152: 146 | B152: =IF('Assiette par secteur'!B154="","",'Assiette par secteur'!B154) ->  | C152: =IF('Assiette par secteur'!E154="","",'Assiette par secteur'!E154) -> 
A153: 147 | B153: =IF('Assiette par secteur'!B155="","",'Assiette par secteur'!B155) ->  | C153: =IF('Assiette par secteur'!E155="","",'Assiette par secteur'!E155) -> 
A154: 148 | B154: =IF('Assiette par secteur'!B156="","",'Assiette par secteur'!B156) ->  | C154: =IF('Assiette par secteur'!E156="","",'Assiette par secteur'!E156) -> 
A155: 149 | B155: =IF('Assiette par secteur'!B157="","",'Assiette par secteur'!B157) ->  | C155: =IF('Assiette par secteur'!E157="","",'Assiette par secteur'!E157) -> 
A156: 150 | B156: =IF('Assiette par secteur'!B158="","",'Assiette par secteur'!B158) ->  | C156: =IF('Assiette par secteur'!E158="","",'Assiette par secteur'!E158) -> 
A157: 151 | B157: =IF('Assiette par secteur'!B159="","",'Assiette par secteur'!B159) ->  | C157: =IF('Assiette par secteur'!E159="","",'Assiette par secteur'!E159) -> 
A158: 152 | B158: =IF('Assiette par secteur'!B160="","",'Assiette par secteur'!B160) ->  | C158: =IF('Assiette par secteur'!E160="","",'Assiette par secteur'!E160) -> 
A159: 153 | B159: =IF('Assiette par secteur'!B161="","",'Assiette par secteur'!B161) ->  | C159: =IF('Assiette par secteur'!E161="","",'Assiette par secteur'!E161) -> 
A160: 154 | B160: =IF('Assiette par secteur'!B162="","",'Assiette par secteur'!B162) ->  | C160: =IF('Assiette par secteur'!E162="","",'Assiette par secteur'!E162) -> 
A161: 155 | B161: =IF('Assiette par secteur'!B163="","",'Assiette par secteur'!B163) ->  | C161: =IF('Assiette par secteur'!E163="","",'Assiette par secteur'!E163) -> 
A162: 156 | B162: =IF('Assiette par secteur'!B164="","",'Assiette par secteur'!B164) ->  | C162: =IF('Assiette par secteur'!E164="","",'Assiette par secteur'!E164) -> 
A163: 157 | B163: =IF('Assiette par secteur'!B165="","",'Assiette par secteur'!B165) ->  | C163: =IF('Assiette par secteur'!E165="","",'Assiette par secteur'!E165) -> 
A164: 158 | B164: =IF('Assiette par secteur'!B166="","",'Assiette par secteur'!B166) ->  | C164: =IF('Assiette par secteur'!E166="","",'Assiette par secteur'!E166) -> 
A165: 159 | B165: =IF('Assiette par secteur'!B167="","",'Assiette par secteur'!B167) ->  | C165: =IF('Assiette par secteur'!E167="","",'Assiette par secteur'!E167) -> 
A166: 160 | B166: =IF('Assiette par secteur'!B168="","",'Assiette par secteur'!B168) ->  | C166: =IF('Assiette par secteur'!E168="","",'Assiette par secteur'!E168) -> 
A167: 161 | B167: =IF('Assiette par secteur'!B169="","",'Assiette par secteur'!B169) ->  | C167: =IF('Assiette par secteur'!E169="","",'Assiette par secteur'!E169) -> 
A168: 162 | B168: =IF('Assiette par secteur'!B170="","",'Assiette par secteur'!B170) ->  | C168: =IF('Assiette par secteur'!E170="","",'Assiette par secteur'!E170) -> 
A169: 163 | B169: =IF('Assiette par secteur'!B171="","",'Assiette par secteur'!B171) ->  | C169: =IF('Assiette par secteur'!E171="","",'Assiette par secteur'!E171) -> 
A170: 164 | B170: =IF('Assiette par secteur'!B172="","",'Assiette par secteur'!B172) ->  | C170: =IF('Assiette par secteur'!E172="","",'Assiette par secteur'!E172) -> 
A171: 165 | B171: =IF('Assiette par secteur'!B173="","",'Assiette par secteur'!B173) ->  | C171: =IF('Assiette par secteur'!E173="","",'Assiette par secteur'!E173) -> 
A172: 166 | B172: =IF('Assiette par secteur'!B174="","",'Assiette par secteur'!B174) ->  | C172: =IF('Assiette par secteur'!E174="","",'Assiette par secteur'!E174) -> 
A173: 167 | B173: =IF('Assiette par secteur'!B175="","",'Assiette par secteur'!B175) ->  | C173: =IF('Assiette par secteur'!E175="","",'Assiette par secteur'!E175) -> 
A174: 168 | B174: =IF('Assiette par secteur'!B176="","",'Assiette par secteur'!B176) ->  | C174: =IF('Assiette par secteur'!E176="","",'Assiette par secteur'!E176) -> 
A175: 169 | B175: =IF('Assiette par secteur'!B177="","",'Assiette par secteur'!B177) ->  | C175: =IF('Assiette par secteur'!E177="","",'Assiette par secteur'!E177) -> 
A176: 170 | B176: =IF('Assiette par secteur'!B178="","",'Assiette par secteur'!B178) ->  | C176: =IF('Assiette par secteur'!E178="","",'Assiette par secteur'!E178) -> 
A177: 171 | B177: =IF('Assiette par secteur'!B179="","",'Assiette par secteur'!B179) ->  | C177: =IF('Assiette par secteur'!E179="","",'Assiette par secteur'!E179) -> 
A178: 172 | B178: =IF('Assiette par secteur'!B180="","",'Assiette par secteur'!B180) ->  | C178: =IF('Assiette par secteur'!E180="","",'Assiette par secteur'!E180) -> 
A179: 173 | B179: =IF('Assiette par secteur'!B181="","",'Assiette par secteur'!B181) ->  | C179: =IF('Assiette par secteur'!E181="","",'Assiette par secteur'!E181) -> 
A180: 174 | B180: =IF('Assiette par secteur'!B182="","",'Assiette par secteur'!B182) ->  | C180: =IF('Assiette par secteur'!E182="","",'Assiette par secteur'!E182) -> 
A181: 175 | B181: =IF('Assiette par secteur'!B183="","",'Assiette par secteur'!B183) ->  | C181: =IF('Assiette par secteur'!E183="","",'Assiette par secteur'!E183) -> 
A182: 176 | B182: =IF('Assiette par secteur'!B184="","",'Assiette par secteur'!B184) ->  | C182: =IF('Assiette par secteur'!E184="","",'Assiette par secteur'!E184) -> 
A183: 177 | B183: =IF('Assiette par secteur'!B185="","",'Assiette par secteur'!B185) ->  | C183: =IF('Assiette par secteur'!E185="","",'Assiette par secteur'!E185) -> 
A184: 178 | B184: =IF('Assiette par secteur'!B186="","",'Assiette par secteur'!B186) ->  | C184: =IF('Assiette par secteur'!E186="","",'Assiette par secteur'!E186) -> 
A185: 179 | B185: =IF('Assiette par secteur'!B187="","",'Assiette par secteur'!B187) ->  | C185: =IF('Assiette par secteur'!E187="","",'Assiette par secteur'!E187) -> 
A186: 180 | B186: =IF('Assiette par secteur'!B188="","",'Assiette par secteur'!B188) ->  | C186: =IF('Assiette par secteur'!E188="","",'Assiette par secteur'!E188) -> 
A187: 181 | B187: =IF('Assiette par secteur'!B189="","",'Assiette par secteur'!B189) ->  | C187: =IF('Assiette par secteur'!E189="","",'Assiette par secteur'!E189) -> 
A188: 182 | B188: =IF('Assiette par secteur'!B190="","",'Assiette par secteur'!B190) ->  | C188: =IF('Assiette par secteur'!E190="","",'Assiette par secteur'!E190) -> 
A189: 183 | B189: =IF('Assiette par secteur'!B191="","",'Assiette par secteur'!B191) ->  | C189: =IF('Assiette par secteur'!E191="","",'Assiette par secteur'!E191) -> 
A190: 184 | B190: =IF('Assiette par secteur'!B192="","",'Assiette par secteur'!B192) ->  | C190: =IF('Assiette par secteur'!E192="","",'Assiette par secteur'!E192) -> 
A191: 185 | B191: =IF('Assiette par secteur'!B193="","",'Assiette par secteur'!B193) ->  | C191: =IF('Assiette par secteur'!E193="","",'Assiette par secteur'!E193) -> 
A192: 186 | B192: =IF('Assiette par secteur'!B194="","",'Assiette par secteur'!B194) ->  | C192: =IF('Assiette par secteur'!E194="","",'Assiette par secteur'!E194) -> 
A193: 187 | B193: =IF('Assiette par secteur'!B195="","",'Assiette par secteur'!B195) ->  | C193: =IF('Assiette par secteur'!E195="","",'Assiette par secteur'!E195) -> 
A194: 188 | B194: =IF('Assiette par secteur'!B196="","",'Assiette par secteur'!B196) ->  | C194: =IF('Assiette par secteur'!E196="","",'Assiette par secteur'!E196) -> 
A195: 189 | B195: =IF('Assiette par secteur'!B197="","",'Assiette par secteur'!B197) ->  | C195: =IF('Assiette par secteur'!E197="","",'Assiette par secteur'!E197) -> 
A196: 190 | B196: =IF('Assiette par secteur'!B198="","",'Assiette par secteur'!B198) ->  | C196: =IF('Assiette par secteur'!E198="","",'Assiette par secteur'!E198) -> 
A197: 191 | B197: =IF('Assiette par secteur'!B199="","",'Assiette par secteur'!B199) ->  | C197: =IF('Assiette par secteur'!E199="","",'Assiette par secteur'!E199) -> 
A198: 192 | B198: =IF('Assiette par secteur'!B200="","",'Assiette par secteur'!B200) ->  | C198: =IF('Assiette par secteur'!E200="","",'Assiette par secteur'!E200) -> 
A199: 193 | B199: =IF('Assiette par secteur'!B201="","",'Assiette par secteur'!B201) ->  | C199: =IF('Assiette par secteur'!E201="","",'Assiette par secteur'!E201) ->  | E199: =IF(D199>0,C199,"") ->  | F199: =IF(C199="","",IF(D199>0,D199*C199/$E$2007,0)) -> 
A200: 194 | B200: =IF('Assiette par secteur'!B202="","",'Assiette par secteur'!B202) ->  | C200: =IF('Assiette par secteur'!E202="","",'Assiette par secteur'!E202) -> 
A201: =A200+1 -> 195 | B201: =IF('Assiette par secteur'!B203="","",'Assiette par secteur'!B203) ->  | C201: =IF('Assiette par secteur'!E203="","",'Assiette par secteur'!E203) -> 
A202: 196 | B202: =IF('Assiette par secteur'!B204="","",'Assiette par secteur'!B204) ->  | C202: =IF('Assiette par secteur'!E204="","",'Assiette par secteur'!E204) -> 
A203: 197 | B203: =IF('Assiette par secteur'!B205="","",'Assiette par secteur'!B205) ->  | C203: =IF('Assiette par secteur'!E205="","",'Assiette par secteur'!E205) -> 
A204: 198 | B204: =IF('Assiette par secteur'!B206="","",'Assiette par secteur'!B206) ->  | C204: =IF('Assiette par secteur'!E206="","",'Assiette par secteur'!E206) -> 
... 1803 more rows

Sheet Taxes sp-Act d'investissement
B4: Taxes spéciales – Activités d'investissement | D4: =IF(D7=0,"Remplir cette colonne","") -> Remplir cette colonne
B5: Secteur | C5: Assiette d'application ($) | D5: Taux sectoriel ou taux de base sectoriel ($/100 $ d'évaluation)
A7: 1 | B7: =IF('Assiette par secteur'!B9="","",'Assiette par secteur'!B9) ->  | C7: =IF('Assiette par secteur'!E9="","",'Assiette par secteur'!E9) ->  | E7: =IF(D7>0,C7,"") ->  | F7: =IF(C7="","",IF(D7>0,D7*C7/$E$2007,0)) -> 
A8: =A7+1 -> 2 | B8: =IF('Assiette par secteur'!B10="","",'Assiette par secteur'!B10) ->  | C8: =IF('Assiette par secteur'!E10="","",'Assiette par secteur'!E10) ->  | F8: =IF(C8="","",IF(D8>0,D8*C8/$E$2007,0)) -> 
A9: =A8+1 -> 3 | B9: =IF('Assiette par secteur'!B11="","",'Assiette par secteur'!B11) ->  | C9: =IF('Assiette par secteur'!E11="","",'Assiette par secteur'!E11) -> 
A10: 4 | B10: =IF('Assiette par secteur'!B12="","",'Assiette par secteur'!B12) ->  | C10: =IF('Assiette par secteur'!E12="","",'Assiette par secteur'!E12) -> 
A11: 5 | B11: =IF('Assiette par secteur'!B13="","",'Assiette par secteur'!B13) ->  | C11: =IF('Assiette par secteur'!E13="","",'Assiette par secteur'!E13) -> 
A12: 6 | B12: =IF('Assiette par secteur'!B14="","",'Assiette par secteur'!B14) ->  | C12: =IF('Assiette par secteur'!E14="","",'Assiette par secteur'!E14) -> 
A13: 7 | B13: =IF('Assiette par secteur'!B15="","",'Assiette par secteur'!B15) ->  | C13: =IF('Assiette par secteur'!E15="","",'Assiette par secteur'!E15) -> 
A14: 8 | B14: =IF('Assiette par secteur'!B16="","",'Assiette par secteur'!B16) ->  | C14: =IF('Assiette par secteur'!E16="","",'Assiette par secteur'!E16) -> 
A15: 9 | B15: =IF('Assiette par secteur'!B17="","",'Assiette par secteur'!B17) ->  | C15: =IF('Assiette par secteur'!E17="","",'Assiette par secteur'!E17) -> 
A16: 10 | B16: =IF('Assiette par secteur'!B18="","",'Assiette par secteur'!B18) ->  | C16: =IF('Assiette par secteur'!E18="","",'Assiette par secteur'!E18) -> 
A17: 11 | B17: =IF('Assiette par secteur'!B19="","",'Assiette par secteur'!B19) ->  | C17: =IF('Assiette par secteur'!E19="","",'Assiette par secteur'!E19) -> 
A18: 12 | B18: =IF('Assiette par secteur'!B20="","",'Assiette par secteur'!B20) ->  | C18: =IF('Assiette par secteur'!E20="","",'Assiette par secteur'!E20) -> 
A19: 13 | B19: =IF('Assiette par secteur'!B21="","",'Assiette par secteur'!B21) ->  | C19: =IF('Assiette par secteur'!E21="","",'Assiette par secteur'!E21) -> 
A20: 14 | B20: =IF('Assiette par secteur'!B22="","",'Assiette par secteur'!B22) ->  | C20: =IF('Assiette par secteur'!E22="","",'Assiette par secteur'!E22) -> 
A21: 15 | B21: =IF('Assiette par secteur'!B23="","",'Assiette par secteur'!B23) ->  | C21: =IF('Assiette par secteur'!E23="","",'Assiette par secteur'!E23) -> 
A22: 16 | B22: =IF('Assiette par secteur'!B24="","",'Assiette par secteur'!B24) ->  | C22: =IF('Assiette par secteur'!E24="","",'Assiette par secteur'!E24) -> 
A23: 17 | B23: =IF('Assiette par secteur'!B25="","",'Assiette par secteur'!B25) ->  | C23: =IF('Assiette par secteur'!E25="","",'Assiette par secteur'!E25) -> 
A24: 18 | B24: =IF('Assiette par secteur'!B26="","",'Assiette par secteur'!B26) ->  | C24: =IF('Assiette par secteur'!E26="","",'Assiette par secteur'!E26) -> 
A25: 19 | B25: =IF('Assiette par secteur'!B27="","",'Assiette par secteur'!B27) ->  | C25: =IF('Assiette par secteur'!E27="","",'Assiette par secteur'!E27) -> 
A26: 20 | B26: =IF('Assiette par secteur'!B28="","",'Assiette par secteur'!B28) ->  | C26: =IF('Assiette par secteur'!E28="","",'Assiette par secteur'!E28) -> 
A27: 21 | B27: =IF('Assiette par secteur'!B29="","",'Assiette par secteur'!B29) ->  | C27: =IF('Assiette par secteur'!E29="","",'Assiette par secteur'!E29) -> 
A28: 22 | B28: =IF('Assiette par secteur'!B30="","",'Assiette par secteur'!B30) ->  | C28: =IF('Assiette par secteur'!E30="","",'Assiette par secteur'!E30) -> 
A29: 23 | B29: =IF('Assiette par secteur'!B31="","",'Assiette par secteur'!B31) ->  | C29: =IF('Assiette par secteur'!E31="","",'Assiette par secteur'!E31) -> 
A30: 24 | B30: =IF('Assiette par secteur'!B32="","",'Assiette par secteur'!B32) ->  | C30: =IF('Assiette par secteur'!E32="","",'Assiette par secteur'!E32) -> 
A31: 25 | B31: =IF('Assiette par secteur'!B33="","",'Assiette par secteur'!B33) ->  | C31: =IF('Assiette par secteur'!E33="","",'Assiette par secteur'!E33) -> 
A32: 26 | B32: =IF('Assiette par secteur'!B34="","",'Assiette par secteur'!B34) ->  | C32: =IF('Assiette par secteur'!E34="","",'Assiette par secteur'!E34) -> 
A33: 27 | B33: =IF('Assiette par secteur'!B35="","",'Assiette par secteur'!B35) ->  | C33: =IF('Assiette par secteur'!E35="","",'Assiette par secteur'!E35) -> 
A34: 28 | B34: =IF('Assiette par secteur'!B36="","",'Assiette par secteur'!B36) ->  | C34: =IF('Assiette par secteur'!E36="","",'Assiette par secteur'!E36) -> 
A35: 29 | B35: =IF('Assiette par secteur'!B37="","",'Assiette par secteur'!B37) ->  | C35: =IF('Assiette par secteur'!E37="","",'Assiette par secteur'!E37) -> 
A36: 30 | B36: =IF('Assiette par secteur'!B38="","",'Assiette par secteur'!B38) ->  | C36: =IF('Assiette par secteur'!E38="","",'Assiette par secteur'!E38) -> 
A37: 31 | B37: =IF('Assiette par secteur'!B39="","",'Assiette par secteur'!B39) ->  | C37: =IF('Assiette par secteur'!E39="","",'Assiette par secteur'!E39) -> 
A38: 32 | B38: =IF('Assiette par secteur'!B40="","",'Assiette par secteur'!B40) ->  | C38: =IF('Assiette par secteur'!E40="","",'Assiette par secteur'!E40) -> 
A39: 33 | B39: =IF('Assiette par secteur'!B41="","",'Assiette par secteur'!B41) ->  | C39: =IF('Assiette par secteur'!E41="","",'Assiette par secteur'!E41) -> 
A40: 34 | B40: =IF('Assiette par secteur'!B42="","",'Assiette par secteur'!B42) ->  | C40: =IF('Assiette par secteur'!E42="","",'Assiette par secteur'!E42) -> 
A41: 35 | B41: =IF('Assiette par secteur'!B43="","",'Assiette par secteur'!B43) ->  | C41: =IF('Assiette par secteur'!E43="","",'Assiette par secteur'!E43) -> 
A42: 36 | B42: =IF('Assiette par secteur'!B44="","",'Assiette par secteur'!B44) ->  | C42: =IF('Assiette par secteur'!E44="","",'Assiette par secteur'!E44) -> 
A43: 37 | B43: =IF('Assiette par secteur'!B45="","",'Assiette par secteur'!B45) ->  | C43: =IF('Assiette par secteur'!E45="","",'Assiette par secteur'!E45) -> 
A44: 38 | B44: =IF('Assiette par secteur'!B46="","",'Assiette par secteur'!B46) ->  | C44: =IF('Assiette par secteur'!E46="","",'Assiette par secteur'!E46) -> 
A45: 39 | B45: =IF('Assiette par secteur'!B47="","",'Assiette par secteur'!B47) ->  | C45: =IF('Assiette par secteur'!E47="","",'Assiette par secteur'!E47) -> 
A46: 40 | B46: =IF('Assiette par secteur'!B48="","",'Assiette par secteur'!B48) ->  | C46: =IF('Assiette par secteur'!E48="","",'Assiette par secteur'!E48) -> 
A47: 41 | B47: =IF('Assiette par secteur'!B49="","",'Assiette par secteur'!B49) ->  | C47: =IF('Assiette par secteur'!E49="","",'Assiette par secteur'!E49) -> 
A48: 42 | B48: =IF('Assiette par secteur'!B50="","",'Assiette par secteur'!B50) ->  | C48: =IF('Assiette par secteur'!E50="","",'Assiette par secteur'!E50) -> 
A49: 43 | B49: =IF('Assiette par secteur'!B51="","",'Assiette par secteur'!B51) ->  | C49: =IF('Assiette par secteur'!E51="","",'Assiette par secteur'!E51) -> 
A50: 44 | B50: =IF('Assiette par secteur'!B52="","",'Assiette par secteur'!B52) ->  | C50: =IF('Assiette par secteur'!E52="","",'Assiette par secteur'!E52) -> 
A51: 45 | B51: =IF('Assiette par secteur'!B53="","",'Assiette par secteur'!B53) ->  | C51: =IF('Assiette par secteur'!E53="","",'Assiette par secteur'!E53) -> 
A52: 46 | B52: =IF('Assiette par secteur'!B54="","",'Assiette par secteur'!B54) ->  | C52: =IF('Assiette par secteur'!E54="","",'Assiette par secteur'!E54) -> 
A53: 47 | B53: =IF('Assiette par secteur'!B55="","",'Assiette par secteur'!B55) ->  | C53: =IF('Assiette par secteur'!E55="","",'Assiette par secteur'!E55) -> 
A54: 48 | B54: =IF('Assiette par secteur'!B56="","",'Assiette par secteur'!B56) ->  | C54: =IF('Assiette par secteur'!E56="","",'Assiette par secteur'!E56) -> 
A55: 49 | B55: =IF('Assiette par secteur'!B57="","",'Assiette par secteur'!B57) ->  | C55: =IF('Assiette par secteur'!E57="","",'Assiette par secteur'!E57) -> 
A56: 50 | B56: =IF('Assiette par secteur'!B58="","",'Assiette par secteur'!B58) ->  | C56: =IF('Assiette par secteur'!E58="","",'Assiette par secteur'!E58) -> 
A57: 51 | B57: =IF('Assiette par secteur'!B59="","",'Assiette par secteur'!B59) ->  | C57: =IF('Assiette par secteur'!E59="","",'Assiette par secteur'!E59) -> 
A58: 52 | B58: =IF('Assiette par secteur'!B60="","",'Assiette par secteur'!B60) ->  | C58: =IF('Assiette par secteur'!E60="","",'Assiette par secteur'!E60) -> 
A59: 53 | B59: =IF('Assiette par secteur'!B61="","",'Assiette par secteur'!B61) ->  | C59: =IF('Assiette par secteur'!E61="","",'Assiette par secteur'!E61) -> 
A60: 54 | B60: =IF('Assiette par secteur'!B62="","",'Assiette par secteur'!B62) ->  | C60: =IF('Assiette par secteur'!E62="","",'Assiette par secteur'!E62) -> 
A61: 55 | B61: =IF('Assiette par secteur'!B63="","",'Assiette par secteur'!B63) ->  | C61: =IF('Assiette par secteur'!E63="","",'Assiette par secteur'!E63) -> 
A62: 56 | B62: =IF('Assiette par secteur'!B64="","",'Assiette par secteur'!B64) ->  | C62: =IF('Assiette par secteur'!E64="","",'Assiette par secteur'!E64) -> 
A63: 57 | B63: =IF('Assiette par secteur'!B65="","",'Assiette par secteur'!B65) ->  | C63: =IF('Assiette par secteur'!E65="","",'Assiette par secteur'!E65) -> 
A64: 58 | B64: =IF('Assiette par secteur'!B66="","",'Assiette par secteur'!B66) ->  | C64: =IF('Assiette par secteur'!E66="","",'Assiette par secteur'!E66) -> 
A65: 59 | B65: =IF('Assiette par secteur'!B67="","",'Assiette par secteur'!B67) ->  | C65: =IF('Assiette par secteur'!E67="","",'Assiette par secteur'!E67) -> 
A66: 60 | B66: =IF('Assiette par secteur'!B68="","",'Assiette par secteur'!B68) ->  | C66: =IF('Assiette par secteur'!E68="","",'Assiette par secteur'!E68) -> 
A67: 61 | B67: =IF('Assiette par secteur'!B69="","",'Assiette par secteur'!B69) ->  | C67: =IF('Assiette par secteur'!E69="","",'Assiette par secteur'!E69) -> 
A68: 62 | B68: =IF('Assiette par secteur'!B70="","",'Assiette par secteur'!B70) ->  | C68: =IF('Assiette par secteur'!E70="","",'Assiette par secteur'!E70) -> 
A69: 63 | B69: =IF('Assiette par secteur'!B71="","",'Assiette par secteur'!B71) ->  | C69: =IF('Assiette par secteur'!E71="","",'Assiette par secteur'!E71) -> 
A70: 64 | B70: =IF('Assiette par secteur'!B72="","",'Assiette par secteur'!B72) ->  | C70: =IF('Assiette par secteur'!E72="","",'Assiette par secteur'!E72) -> 
A71: 65 | B71: =IF('Assiette par secteur'!B73="","",'Assiette par secteur'!B73) ->  | C71: =IF('Assiette par secteur'!E73="","",'Assiette par secteur'!E73) ->  | E71: =IF(D71>0,C71,"") -> 
A72: 66 | B72: =IF('Assiette par secteur'!B74="","",'Assiette par secteur'!B74) ->  | C72: =IF('Assiette par secteur'!E74="","",'Assiette par secteur'!E74) ->  | F72: =IF(C72="","",IF(D72>0,D72*C72/$E$2007,0)) -> 
A73: =A72+1 -> 67 | B73: =IF('Assiette par secteur'!B75="","",'Assiette par secteur'!B75) ->  | C73: =IF('Assiette par secteur'!E75="","",'Assiette par secteur'!E75) -> 
A74: 68 | B74: =IF('Assiette par secteur'!B76="","",'Assiette par secteur'!B76) ->  | C74: =IF('Assiette par secteur'!E76="","",'Assiette par secteur'!E76) -> 
A75: 69 | B75: =IF('Assiette par secteur'!B77="","",'Assiette par secteur'!B77) ->  | C75: =IF('Assiette par secteur'!E77="","",'Assiette par secteur'!E77) -> 
A76: 70 | B76: =IF('Assiette par secteur'!B78="","",'Assiette par secteur'!B78) ->  | C76: =IF('Assiette par secteur'!E78="","",'Assiette par secteur'!E78) -> 
A77: 71 | B77: =IF('Assiette par secteur'!B79="","",'Assiette par secteur'!B79) ->  | C77: =IF('Assiette par secteur'!E79="","",'Assiette par secteur'!E79) -> 
A78: 72 | B78: =IF('Assiette par secteur'!B80="","",'Assiette par secteur'!B80) ->  | C78: =IF('Assiette par secteur'!E80="","",'Assiette par secteur'!E80) -> 
A79: 73 | B79: =IF('Assiette par secteur'!B81="","",'Assiette par secteur'!B81) ->  | C79: =IF('Assiette par secteur'!E81="","",'Assiette par secteur'!E81) -> 
A80: 74 | B80: =IF('Assiette par secteur'!B82="","",'Assiette par secteur'!B82) ->  | C80: =IF('Assiette par secteur'!E82="","",'Assiette par secteur'!E82) -> 
A81: 75 | B81: =IF('Assiette par secteur'!B83="","",'Assiette par secteur'!B83) ->  | C81: =IF('Assiette par secteur'!E83="","",'Assiette par secteur'!E83) -> 
A82: 76 | B82: =IF('Assiette par secteur'!B84="","",'Assiette par secteur'!B84) ->  | C82: =IF('Assiette par secteur'!E84="","",'Assiette par secteur'!E84) -> 
A83: 77 | B83: =IF('Assiette par secteur'!B85="","",'Assiette par secteur'!B85) ->  | C83: =IF('Assiette par secteur'!E85="","",'Assiette par secteur'!E85) -> 
A84: 78 | B84: =IF('Assiette par secteur'!B86="","",'Assiette par secteur'!B86) ->  | C84: =IF('Assiette par secteur'!E86="","",'Assiette par secteur'!E86) -> 
A85: 79 | B85: =IF('Assiette par secteur'!B87="","",'Assiette par secteur'!B87) ->  | C85: =IF('Assiette par secteur'!E87="","",'Assiette par secteur'!E87) -> 
A86: 80 | B86: =IF('Assiette par secteur'!B88="","",'Assiette par secteur'!B88) ->  | C86: =IF('Assiette par secteur'!E88="","",'Assiette par secteur'!E88) -> 
A87: 81 | B87: =IF('Assiette par secteur'!B89="","",'Assiette par secteur'!B89) ->  | C87: =IF('Assiette par secteur'!E89="","",'Assiette par secteur'!E89) -> 
A88: 82 | B88: =IF('Assiette par secteur'!B90="","",'Assiette par secteur'!B90) ->  | C88: =IF('Assiette par secteur'!E90="","",'Assiette par secteur'!E90) -> 
A89: 83 | B89: =IF('Assiette par secteur'!B91="","",'Assiette par secteur'!B91) ->  | C89: =IF('Assiette par secteur'!E91="","",'Assiette par secteur'!E91) -> 
A90: 84 | B90: =IF('Assiette par secteur'!B92="","",'Assiette par secteur'!B92) ->  | C90: =IF('Assiette par secteur'!E92="","",'Assiette par secteur'!E92) -> 
A91: 85 | B91: =IF('Assiette par secteur'!B93="","",'Assiette par secteur'!B93) ->  | C91: =IF('Assiette par secteur'!E93="","",'Assiette par secteur'!E93) -> 
A92: 86 | B92: =IF('Assiette par secteur'!B94="","",'Assiette par secteur'!B94) ->  | C92: =IF('Assiette par secteur'!E94="","",'Assiette par secteur'!E94) -> 
A93: 87 | B93: =IF('Assiette par secteur'!B95="","",'Assiette par secteur'!B95) ->  | C93: =IF('Assiette par secteur'!E95="","",'Assiette par secteur'!E95) -> 
A94: 88 | B94: =IF('Assiette par secteur'!B96="","",'Assiette par secteur'!B96) ->  | C94: =IF('Assiette par secteur'!E96="","",'Assiette par secteur'!E96) -> 
A95: 89 | B95: =IF('Assiette par secteur'!B97="","",'Assiette par secteur'!B97) ->  | C95: =IF('Assiette par secteur'!E97="","",'Assiette par secteur'!E97) -> 
A96: 90 | B96: =IF('Assiette par secteur'!B98="","",'Assiette par secteur'!B98) ->  | C96: =IF('Assiette par secteur'!E98="","",'Assiette par secteur'!E98) -> 
A97: 91 | B97: =IF('Assiette par secteur'!B99="","",'Assiette par secteur'!B99) ->  | C97: =IF('Assiette par secteur'!E99="","",'Assiette par secteur'!E99) -> 
A98: 92 | B98: =IF('Assiette par secteur'!B100="","",'Assiette par secteur'!B100) ->  | C98: =IF('Assiette par secteur'!E100="","",'Assiette par secteur'!E100) -> 
A99: 93 | B99: =IF('Assiette par secteur'!B101="","",'Assiette par secteur'!B101) ->  | C99: =IF('Assiette par secteur'!E101="","",'Assiette par secteur'!E101) -> 
A100: 94 | B100: =IF('Assiette par secteur'!B102="","",'Assiette par secteur'!B102) ->  | C100: =IF('Assiette par secteur'!E102="","",'Assiette par secteur'!E102) -> 
A101: 95 | B101: =IF('Assiette par secteur'!B103="","",'Assiette par secteur'!B103) ->  | C101: =IF('Assiette par secteur'!E103="","",'Assiette par secteur'!E103) -> 
A102: 96 | B102: =IF('Assiette par secteur'!B104="","",'Assiette par secteur'!B104) ->  | C102: =IF('Assiette par secteur'!E104="","",'Assiette par secteur'!E104) -> 
A103: 97 | B103: =IF('Assiette par secteur'!B105="","",'Assiette par secteur'!B105) ->  | C103: =IF('Assiette par secteur'!E105="","",'Assiette par secteur'!E105) -> 
A104: 98 | B104: =IF('Assiette par secteur'!B106="","",'Assiette par secteur'!B106) ->  | C104: =IF('Assiette par secteur'!E106="","",'Assiette par secteur'!E106) -> 
A105: 99 | B105: =IF('Assiette par secteur'!B107="","",'Assiette par secteur'!B107) ->  | C105: =IF('Assiette par secteur'!E107="","",'Assiette par secteur'!E107) -> 
A106: 100 | B106: =IF('Assiette par secteur'!B108="","",'Assiette par secteur'!B108) ->  | C106: =IF('Assiette par secteur'!E108="","",'Assiette par secteur'!E108) -> 
A107: 101 | B107: =IF('Assiette par secteur'!B109="","",'Assiette par secteur'!B109) ->  | C107: =IF('Assiette par secteur'!E109="","",'Assiette par secteur'!E109) -> 
A108: 102 | B108: =IF('Assiette par secteur'!B110="","",'Assiette par secteur'!B110) ->  | C108: =IF('Assiette par secteur'!E110="","",'Assiette par secteur'!E110) -> 
A109: 103 | B109: =IF('Assiette par secteur'!B111="","",'Assiette par secteur'!B111) ->  | C109: =IF('Assiette par secteur'!E111="","",'Assiette par secteur'!E111) -> 
A110: 104 | B110: =IF('Assiette par secteur'!B112="","",'Assiette par secteur'!B112) ->  | C110: =IF('Assiette par secteur'!E112="","",'Assiette par secteur'!E112) -> 
A111: 105 | B111: =IF('Assiette par secteur'!B113="","",'Assiette par secteur'!B113) ->  | C111: =IF('Assiette par secteur'!E113="","",'Assiette par secteur'!E113) -> 
A112: 106 | B112: =IF('Assiette par secteur'!B114="","",'Assiette par secteur'!B114) ->  | C112: =IF('Assiette par secteur'!E114="","",'Assiette par secteur'!E114) -> 
A113: 107 | B113: =IF('Assiette par secteur'!B115="","",'Assiette par secteur'!B115) ->  | C113: =IF('Assiette par secteur'!E115="","",'Assiette par secteur'!E115) -> 
A114: 108 | B114: =IF('Assiette par secteur'!B116="","",'Assiette par secteur'!B116) ->  | C114: =IF('Assiette par secteur'!E116="","",'Assiette par secteur'!E116) -> 
A115: 109 | B115: =IF('Assiette par secteur'!B117="","",'Assiette par secteur'!B117) ->  | C115: =IF('Assiette par secteur'!E117="","",'Assiette par secteur'!E117) -> 
A116: 110 | B116: =IF('Assiette par secteur'!B118="","",'Assiette par secteur'!B118) ->  | C116: =IF('Assiette par secteur'!E118="","",'Assiette par secteur'!E118) -> 
A117: 111 | B117: =IF('Assiette par secteur'!B119="","",'Assiette par secteur'!B119) ->  | C117: =IF('Assiette par secteur'!E119="","",'Assiette par secteur'!E119) -> 
A118: 112 | B118: =IF('Assiette par secteur'!B120="","",'Assiette par secteur'!B120) ->  | C118: =IF('Assiette par secteur'!E120="","",'Assiette par secteur'!E120) -> 
A119: 113 | B119: =IF('Assiette par secteur'!B121="","",'Assiette par secteur'!B121) ->  | C119: =IF('Assiette par secteur'!E121="","",'Assiette par secteur'!E121) -> 
A120: 114 | B120: =IF('Assiette par secteur'!B122="","",'Assiette par secteur'!B122) ->  | C120: =IF('Assiette par secteur'!E122="","",'Assiette par secteur'!E122) -> 
A121: 115 | B121: =IF('Assiette par secteur'!B123="","",'Assiette par secteur'!B123) ->  | C121: =IF('Assiette par secteur'!E123="","",'Assiette par secteur'!E123) -> 
A122: 116 | B122: =IF('Assiette par secteur'!B124="","",'Assiette par secteur'!B124) ->  | C122: =IF('Assiette par secteur'!E124="","",'Assiette par secteur'!E124) -> 
A123: 117 | B123: =IF('Assiette par secteur'!B125="","",'Assiette par secteur'!B125) ->  | C123: =IF('Assiette par secteur'!E125="","",'Assiette par secteur'!E125) -> 
A124: 118 | B124: =IF('Assiette par secteur'!B126="","",'Assiette par secteur'!B126) ->  | C124: =IF('Assiette par secteur'!E126="","",'Assiette par secteur'!E126) -> 
A125: 119 | B125: =IF('Assiette par secteur'!B127="","",'Assiette par secteur'!B127) ->  | C125: =IF('Assiette par secteur'!E127="","",'Assiette par secteur'!E127) -> 
A126: 120 | B126: =IF('Assiette par secteur'!B128="","",'Assiette par secteur'!B128) ->  | C126: =IF('Assiette par secteur'!E128="","",'Assiette par secteur'!E128) -> 
A127: 121 | B127: =IF('Assiette par secteur'!B129="","",'Assiette par secteur'!B129) ->  | C127: =IF('Assiette par secteur'!E129="","",'Assiette par secteur'!E129) -> 
A128: 122 | B128: =IF('Assiette par secteur'!B130="","",'Assiette par secteur'!B130) ->  | C128: =IF('Assiette par secteur'!E130="","",'Assiette par secteur'!E130) -> 
A129: 123 | B129: =IF('Assiette par secteur'!B131="","",'Assiette par secteur'!B131) ->  | C129: =IF('Assiette par secteur'!E131="","",'Assiette par secteur'!E131) -> 
A130: 124 | B130: =IF('Assiette par secteur'!B132="","",'Assiette par secteur'!B132) ->  | C130: =IF('Assiette par secteur'!E132="","",'Assiette par secteur'!E132) -> 
A131: 125 | B131: =IF('Assiette par secteur'!B133="","",'Assiette par secteur'!B133) ->  | C131: =IF('Assiette par secteur'!E133="","",'Assiette par secteur'!E133) -> 
A132: 126 | B132: =IF('Assiette par secteur'!B134="","",'Assiette par secteur'!B134) ->  | C132: =IF('Assiette par secteur'!E134="","",'Assiette par secteur'!E134) -> 
A133: 127 | B133: =IF('Assiette par secteur'!B135="","",'Assiette par secteur'!B135) ->  | C133: =IF('Assiette par secteur'!E135="","",'Assiette par secteur'!E135) -> 
A134: 128 | B134: =IF('Assiette par secteur'!B136="","",'Assiette par secteur'!B136) ->  | C134: =IF('Assiette par secteur'!E136="","",'Assiette par secteur'!E136) -> 
A135: 129 | B135: =IF('Assiette par secteur'!B137="","",'Assiette par secteur'!B137) ->  | C135: =IF('Assiette par secteur'!E137="","",'Assiette par secteur'!E137) ->  | E135: =IF(D135>0,C135,"") -> 
A136: 130 | B136: =IF('Assiette par secteur'!B138="","",'Assiette par secteur'!B138) ->  | C136: =IF('Assiette par secteur'!E138="","",'Assiette par secteur'!E138) ->  | F136: =IF(C136="","",IF(D136>0,D136*C136/$E$2007,0)) -> 
A137: =A136+1 -> 131 | B137: =IF('Assiette par secteur'!B139="","",'Assiette par secteur'!B139) ->  | C137: =IF('Assiette par secteur'!E139="","",'Assiette par secteur'!E139) -> 
A138: 132 | B138: =IF('Assiette par secteur'!B140="","",'Assiette par secteur'!B140) ->  | C138: =IF('Assiette par secteur'!E140="","",'Assiette par secteur'!E140) -> 
A139: 133 | B139: =IF('Assiette par secteur'!B141="","",'Assiette par secteur'!B141) ->  | C139: =IF('Assiette par secteur'!E141="","",'Assiette par secteur'!E141) -> 
A140: 134 | B140: =IF('Assiette par secteur'!B142="","",'Assiette par secteur'!B142) ->  | C140: =IF('Assiette par secteur'!E142="","",'Assiette par secteur'!E142) -> 
A141: 135 | B141: =IF('Assiette par secteur'!B143="","",'Assiette par secteur'!B143) ->  | C141: =IF('Assiette par secteur'!E143="","",'Assiette par secteur'!E143) -> 
A142: 136 | B142: =IF('Assiette par secteur'!B144="","",'Assiette par secteur'!B144) ->  | C142: =IF('Assiette par secteur'!E144="","",'Assiette par secteur'!E144) -> 
A143: 137 | B143: =IF('Assiette par secteur'!B145="","",'Assiette par secteur'!B145) ->  | C143: =IF('Assiette par secteur'!E145="","",'Assiette par secteur'!E145) -> 
A144: 138 | B144: =IF('Assiette par secteur'!B146="","",'Assiette par secteur'!B146) ->  | C144: =IF('Assiette par secteur'!E146="","",'Assiette par secteur'!E146) -> 
A145: 139 | B145: =IF('Assiette par secteur'!B147="","",'Assiette par secteur'!B147) ->  | C145: =IF('Assiette par secteur'!E147="","",'Assiette par secteur'!E147) -> 
A146: 140 | B146: =IF('Assiette par secteur'!B148="","",'Assiette par secteur'!B148) ->  | C146: =IF('Assiette par secteur'!E148="","",'Assiette par secteur'!E148) -> 
A147: 141 | B147: =IF('Assiette par secteur'!B149="","",'Assiette par secteur'!B149) ->  | C147: =IF('Assiette par secteur'!E149="","",'Assiette par secteur'!E149) -> 
A148: 142 | B148: =IF('Assiette par secteur'!B150="","",'Assiette par secteur'!B150) ->  | C148: =IF('Assiette par secteur'!E150="","",'Assiette par secteur'!E150) -> 
A149: 143 | B149: =IF('Assiette par secteur'!B151="","",'Assiette par secteur'!B151) ->  | C149: =IF('Assiette par secteur'!E151="","",'Assiette par secteur'!E151) -> 
A150: 144 | B150: =IF('Assiette par secteur'!B152="","",'Assiette par secteur'!B152) ->  | C150: =IF('Assiette par secteur'!E152="","",'Assiette par secteur'!E152) -> 
A151: 145 | B151: =IF('Assiette par secteur'!B153="","",'Assiette par secteur'!B153) ->  | C151: =IF('Assiette par secteur'!E153="","",'Assiette par secteur'!E153) -> 
A152: 146 | B152: =IF('Assiette par secteur'!B154="","",'Assiette par secteur'!B154) ->  | C152: =IF('Assiette par secteur'!E154="","",'Assiette par secteur'!E154) -> 
A153: 147 | B153: =IF('Assiette par secteur'!B155="","",'Assiette par secteur'!B155) ->  | C153: =IF('Assiette par secteur'!E155="","",'Assiette par secteur'!E155) -> 
A154: 148 | B154: =IF('Assiette par secteur'!B156="","",'Assiette par secteur'!B156) ->  | C154: =IF('Assiette par secteur'!E156="","",'Assiette par secteur'!E156) -> 
A155: 149 | B155: =IF('Assiette par secteur'!B157="","",'Assiette par secteur'!B157) ->  | C155: =IF('Assiette par secteur'!E157="","",'Assiette par secteur'!E157) -> 
A156: 150 | B156: =IF('Assiette par secteur'!B158="","",'Assiette par secteur'!B158) ->  | C156: =IF('Assiette par secteur'!E158="","",'Assiette par secteur'!E158) -> 
A157: 151 | B157: =IF('Assiette par secteur'!B159="","",'Assiette par secteur'!B159) ->  | C157: =IF('Assiette par secteur'!E159="","",'Assiette par secteur'!E159) -> 
A158: 152 | B158: =IF('Assiette par secteur'!B160="","",'Assiette par secteur'!B160) ->  | C158: =IF('Assiette par secteur'!E160="","",'Assiette par secteur'!E160) -> 
A159: 153 | B159: =IF('Assiette par secteur'!B161="","",'Assiette par secteur'!B161) ->  | C159: =IF('Assiette par secteur'!E161="","",'Assiette par secteur'!E161) -> 
A160: 154 | B160: =IF('Assiette par secteur'!B162="","",'Assiette par secteur'!B162) ->  | C160: =IF('Assiette par secteur'!E162="","",'Assiette par secteur'!E162) -> 
A161: 155 | B161: =IF('Assiette par secteur'!B163="","",'Assiette par secteur'!B163) ->  | C161: =IF('Assiette par secteur'!E163="","",'Assiette par secteur'!E163) -> 
A162: 156 | B162: =IF('Assiette par secteur'!B164="","",'Assiette par secteur'!B164) ->  | C162: =IF('Assiette par secteur'!E164="","",'Assiette par secteur'!E164) -> 
A163: 157 | B163: =IF('Assiette par secteur'!B165="","",'Assiette par secteur'!B165) ->  | C163: =IF('Assiette par secteur'!E165="","",'Assiette par secteur'!E165) -> 
A164: 158 | B164: =IF('Assiette par secteur'!B166="","",'Assiette par secteur'!B166) ->  | C164: =IF('Assiette par secteur'!E166="","",'Assiette par secteur'!E166) -> 
A165: 159 | B165: =IF('Assiette par secteur'!B167="","",'Assiette par secteur'!B167) ->  | C165: =IF('Assiette par secteur'!E167="","",'Assiette par secteur'!E167) -> 
A166: 160 | B166: =IF('Assiette par secteur'!B168="","",'Assiette par secteur'!B168) ->  | C166: =IF('Assiette par secteur'!E168="","",'Assiette par secteur'!E168) -> 
A167: 161 | B167: =IF('Assiette par secteur'!B169="","",'Assiette par secteur'!B169) ->  | C167: =IF('Assiette par secteur'!E169="","",'Assiette par secteur'!E169) -> 
A168: 162 | B168: =IF('Assiette par secteur'!B170="","",'Assiette par secteur'!B170) ->  | C168: =IF('Assiette par secteur'!E170="","",'Assiette par secteur'!E170) -> 
A169: 163 | B169: =IF('Assiette par secteur'!B171="","",'Assiette par secteur'!B171) ->  | C169: =IF('Assiette par secteur'!E171="","",'Assiette par secteur'!E171) -> 
A170: 164 | B170: =IF('Assiette par secteur'!B172="","",'Assiette par secteur'!B172) ->  | C170: =IF('Assiette par secteur'!E172="","",'Assiette par secteur'!E172) -> 
A171: 165 | B171: =IF('Assiette par secteur'!B173="","",'Assiette par secteur'!B173) ->  | C171: =IF('Assiette par secteur'!E173="","",'Assiette par secteur'!E173) -> 
A172: 166 | B172: =IF('Assiette par secteur'!B174="","",'Assiette par secteur'!B174) ->  | C172: =IF('Assiette par secteur'!E174="","",'Assiette par secteur'!E174) -> 
A173: 167 | B173: =IF('Assiette par secteur'!B175="","",'Assiette par secteur'!B175) ->  | C173: =IF('Assiette par secteur'!E175="","",'Assiette par secteur'!E175) -> 
A174: 168 | B174: =IF('Assiette par secteur'!B176="","",'Assiette par secteur'!B176) ->  | C174: =IF('Assiette par secteur'!E176="","",'Assiette par secteur'!E176) -> 
A175: 169 | B175: =IF('Assiette par secteur'!B177="","",'Assiette par secteur'!B177) ->  | C175: =IF('Assiette par secteur'!E177="","",'Assiette par secteur'!E177) -> 
A176: 170 | B176: =IF('Assiette par secteur'!B178="","",'Assiette par secteur'!B178) ->  | C176: =IF('Assiette par secteur'!E178="","",'Assiette par secteur'!E178) -> 
A177: 171 | B177: =IF('Assiette par secteur'!B179="","",'Assiette par secteur'!B179) ->  | C177: =IF('Assiette par secteur'!E179="","",'Assiette par secteur'!E179) -> 
A178: 172 | B178: =IF('Assiette par secteur'!B180="","",'Assiette par secteur'!B180) ->  | C178: =IF('Assiette par secteur'!E180="","",'Assiette par secteur'!E180) -> 
A179: 173 | B179: =IF('Assiette par secteur'!B181="","",'Assiette par secteur'!B181) ->  | C179: =IF('Assiette par secteur'!E181="","",'Assiette par secteur'!E181) -> 
A180: 174 | B180: =IF('Assiette par secteur'!B182="","",'Assiette par secteur'!B182) ->  | C180: =IF('Assiette par secteur'!E182="","",'Assiette par secteur'!E182) -> 
A181: 175 | B181: =IF('Assiette par secteur'!B183="","",'Assiette par secteur'!B183) ->  | C181: =IF('Assiette par secteur'!E183="","",'Assiette par secteur'!E183) -> 
A182: 176 | B182: =IF('Assiette par secteur'!B184="","",'Assiette par secteur'!B184) ->  | C182: =IF('Assiette par secteur'!E184="","",'Assiette par secteur'!E184) -> 
A183: 177 | B183: =IF('Assiette par secteur'!B185="","",'Assiette par secteur'!B185) ->  | C183: =IF('Assiette par secteur'!E185="","",'Assiette par secteur'!E185) -> 
A184: 178 | B184: =IF('Assiette par secteur'!B186="","",'Assiette par secteur'!B186) ->  | C184: =IF('Assiette par secteur'!E186="","",'Assiette par secteur'!E186) -> 
A185: 179 | B185: =IF('Assiette par secteur'!B187="","",'Assiette par secteur'!B187) ->  | C185: =IF('Assiette par secteur'!E187="","",'Assiette par secteur'!E187) -> 
A186: 180 | B186: =IF('Assiette par secteur'!B188="","",'Assiette par secteur'!B188) ->  | C186: =IF('Assiette par secteur'!E188="","",'Assiette par secteur'!E188) -> 
A187: 181 | B187: =IF('Assiette par secteur'!B189="","",'Assiette par secteur'!B189) ->  | C187: =IF('Assiette par secteur'!E189="","",'Assiette par secteur'!E189) -> 
A188: 182 | B188: =IF('Assiette par secteur'!B190="","",'Assiette par secteur'!B190) ->  | C188: =IF('Assiette par secteur'!E190="","",'Assiette par secteur'!E190) -> 
A189: 183 | B189: =IF('Assiette par secteur'!B191="","",'Assiette par secteur'!B191) ->  | C189: =IF('Assiette par secteur'!E191="","",'Assiette par secteur'!E191) -> 
A190: 184 | B190: =IF('Assiette par secteur'!B192="","",'Assiette par secteur'!B192) ->  | C190: =IF('Assiette par secteur'!E192="","",'Assiette par secteur'!E192) -> 
A191: 185 | B191: =IF('Assiette par secteur'!B193="","",'Assiette par secteur'!B193) ->  | C191: =IF('Assiette par secteur'!E193="","",'Assiette par secteur'!E193) -> 
A192: 186 | B192: =IF('Assiette par secteur'!B194="","",'Assiette par secteur'!B194) ->  | C192: =IF('Assiette par secteur'!E194="","",'Assiette par secteur'!E194) -> 
A193: 187 | B193: =IF('Assiette par secteur'!B195="","",'Assiette par secteur'!B195) ->  | C193: =IF('Assiette par secteur'!E195="","",'Assiette par secteur'!E195) -> 
A194: 188 | B194: =IF('Assiette par secteur'!B196="","",'Assiette par secteur'!B196) ->  | C194: =IF('Assiette par secteur'!E196="","",'Assiette par secteur'!E196) -> 
A195: 189 | B195: =IF('Assiette par secteur'!B197="","",'Assiette par secteur'!B197) ->  | C195: =IF('Assiette par secteur'!E197="","",'Assiette par secteur'!E197) -> 
A196: 190 | B196: =IF('Assiette par secteur'!B198="","",'Assiette par secteur'!B198) ->  | C196: =IF('Assiette par secteur'!E198="","",'Assiette par secteur'!E198) -> 
A197: 191 | B197: =IF('Assiette par secteur'!B199="","",'Assiette par secteur'!B199) ->  | C197: =IF('Assiette par secteur'!E199="","",'Assiette par secteur'!E199) -> 
A198: 192 | B198: =IF('Assiette par secteur'!B200="","",'Assiette par secteur'!B200) ->  | C198: =IF('Assiette par secteur'!E200="","",'Assiette par secteur'!E200) -> 
A199: 193 | B199: =IF('Assiette par secteur'!B201="","",'Assiette par secteur'!B201) ->  | C199: =IF('Assiette par secteur'!E201="","",'Assiette par secteur'!E201) ->  | E199: =IF(D199>0,C199,"") -> 
A200: 194 | B200: =IF('Assiette par secteur'!B202="","",'Assiette par secteur'!B202) ->  | C200: =IF('Assiette par secteur'!E202="","",'Assiette par secteur'!E202) ->  | F200: =IF(C200="","",IF(D200>0,D200*C200/$E$2007,0)) -> 
A201: =A200+1 -> 195 | B201: =IF('Assiette par secteur'!B203="","",'Assiette par secteur'!B203) ->  | C201: =IF('Assiette par secteur'!E203="","",'Assiette par secteur'!E203) -> 
A202: 196 | B202: =IF('Assiette par secteur'!B204="","",'Assiette par secteur'!B204) ->  | C202: =IF('Assiette par secteur'!E204="","",'Assiette par secteur'!E204) -> 
A203: 197 | B203: =IF('Assiette par secteur'!B205="","",'Assiette par secteur'!B205) ->  | C203: =IF('Assiette par secteur'!E205="","",'Assiette par secteur'!E205) -> 
A204: 198 | B204: =IF('Assiette par secteur'!B206="","",'Assiette par secteur'!B206) ->  | C204: =IF('Assiette par secteur'!E206="","",'Assiette par secteur'!E206) -> 
... 1803 more rows

Sheet Type taux (hidden)
A2: Taux sectoriel uniformisé
A3: Taux de base uniformisé

Sheet Taux uniformisé
D1: =IF(D4="","Choisir Taux sectoriel (taux unique) ou taux de base sectoriel (régime d'impôt à taux variés) pour la taxe foncière générale et les taxes spéciales","-") -> Choisir Taux sectoriel (taux unique) ou taux de base sectoriel (régime d'impôt à taux variés) pour la taxe foncière générale et les taxes spéciales
B2: Taux sectoriel uniformisé ou taux de base uniformisé
C3: Taux uniformisé | D3: Type de taux (Taux sectoriel uniformisé ou taux de base uniformisé)
B4: Taxe foncière générale | C4: ='Taxe foncière générale'!I2007 -> 0 | E4: ='Taxe foncière générale'!F2 -> - | F4: =IF(E4="-","-","taux ne respectent pas les balises") -> -
E5: ='Assiette par secteur'!D3 ->  | F5: =IF('Assiette par secteur'!D3="","-"," ne sont pas dans un secteur, par conséquent le taux uniformisé") -> -
B6: Taxe spéciale | F6: =IF(E6="","","secteur(s) sans taux") -> 
B7: Service de la dette | C7: ='Taxes sp-Service de dette '!F2007 -> 0 | E7: =IF(AND(D$4="Taux sectoriel",D7="Taux de base sectoriel"), "Il faut utiliser le régime d'impôt à taux variés pour la taxe foncière générale pour pouvoir l'utiliser avec les taxes spéciales.","-") -> -
B8: Activités de fonctionnement | C8: ='Taxes sp-Act de fonctionnement'!F2007 -> 0 | E8: =IF(AND(D$4="Taux sectoriel",D8="Taux de base sectoriel"), "Il faut utiliser le régime d'impôt à taux variés pour la taxe foncière générale pour pouvoir l'utiliser avec les taxes spéciales.","-") -> -
B9: Activités d'investissement | C9: ='Taxes sp-Act d''investissement'!F2007 -> 0 | E9: -

Sheet S65
F1: Nom légal de l'organisme | Code géographique |
A4: DONNÉES PRÉVISIONNELLES
A5: QUESTIONNAIRE
A6: EXERCICE SE TERMINANT LE 31 DÉCEMBRE 2025
G9: COMPÉTENCES DE NATURE LOCALE
G11: Non audité | DH11: OUI | DT11: NON
A14: 1. | G14: La municipalité applique-t-elle, pour l'exercice se terminant le 31 décembre 2025, les mesures
G16: fiscales suivantes?
G20: a) | K20: Régime d'impôt foncier à taux variés en vertu de l'article 244.29 LFM
K24: ▪ | M24: Pour la taxe foncière générale | DC24: 1
K27: ▪ | M27: Pour une ou des taxes spéciales en vertu des articles 979.1 et 979.2 du CM ou des
M29: articles 487.1 et 487.2 de la LCV | DC29: 2
G32: b) | K32: Une ou des sous-catégories d'immeubles résidentiels dans la catégorie résiduelle
K33: en vertu des articles 244.64.8.1 à 244.64.8.10 LFM | DC33: 3
K35: ▪ | M35: Pour chaque sous-catégorie, décrire son assiette d'application imposable et son
M36: taux adopté.
G40: c) | K40: Une ou des sous-catégories d'immeubles dans la catégorie des immeubles non
K42: résidentiels en vertu des articles 244.64.1 à 244.64.8 LFM | DC42: 4
K47: ▪ | M47: Pour chaque sous-catégorie, décrire son assiette d'application imposable et son
M49: taux adopté.
G53: d) | K53: Des taux de taxes foncières distincts aux immeubles non résidentiels et / ou aux
K55: immeubles industriels en fonction de l'évaluation foncière en vertu de l'article
K57: 244.64.9 LFM | DC57: 5
K62: ▪ | M62: Pour chaque catégorie et sous-catégorie, décrire chaque tranche d'imposition
M64: distincte avec son assiette d'application imposable et son taux adopté.
G68: e) | K68: Division du territoire en secteurs aux fins de l'imposition de la taxe foncière
K69: générale en vertu des articles 244.64.10 à 244.65.26 LFM | DC69: 6 | DH69: X
K71: ▪ | M71: Pour chaque secteur, décrire son assiette d'application imposable et son
M72: taux adopté.
G75: f) | K75: Étalement de la variation de valeur des unités admissibles en vertu des articles
K77: 253.27 à 253.35 LFM
K81: ▪ | M81: Pour l'ensemble des immeubles imposables et compensables | DC81: 7
K84: ▪ | M84: Pour les immeubles non résidentiels imposables et compensables seulement
M86: (incluant les immeubles industriels) | DC86: 8
K88: ▪ | M88: Pour les immeubles imposables et compensables autres que non résidentiels
M90: et industriels | DC90: 9
K92: ▪ | M92: Indiquer le total des valeurs imposables étalées, au dépôt du rôle de perception
M94: de 2025 : | DC94: 10 | DZ94: $
K96: ▪ | M96: Indiquer le total des valeurs imposables sans étalement, au dépôt du rôle de
M98: perception de 2025 : | DC98: 11 | DZ98: $
G101: g) | K101: Octroi d'un dégrèvement ou application d'une majoration en vertu des articles
K102: 253.36 à 253.53 LFM | DC102: 12
G104: h) | K104: Imposition d'une taxe supplémentaire sur les terrains vagues non desservis dans
K105: tout périmètre d'urbanisation en vertu des articles 244.65 à 244.67 LFM | DC105: 13
K107: Si oui, indiquer le montant total prévu en 2025 | DC107: 14 | DZ107: $
K109: ▪ | M109: Pour chaque taxe imposée, décrire son assiette d'application et son
M110: taux adopté.
A114: 2. | G114: Données requises aux fins du calcul du taux global de taxation
G116: Taux unique ou taux sectoriel uniformisé
I117: Taxe foncière générale | DC117: 15 | DH117: =IF('Taux uniformisé'!D4="Taux sectoriel uniformisé",'Taux uniformisé'!C4,"") -> 
I118: Taxes spéciales
K119: Service de la dette | DC119: 16 | DH119: =IF('Taux uniformisé'!D7="Taux sectoriel uniformisé",'Taux uniformisé'!C7,"") -> 
K120: Activités de fonctionnement | DC120: 17 | DH120: =IF('Taux uniformisé'!D8="Taux sectoriel uniformisé",'Taux uniformisé'!C8,"") -> 
K121: Activités d'investissement | DC121: 18 | DH121: =IF('Taux uniformisé'!D9="Taux sectoriel uniformisé",'Taux uniformisé'!C9,"") -> 
G122: Taux de la catégorie/sous-catégorie résiduelle ou taux de base uniformisé
I123: Taxe foncière générale | DC123: 19 | DH123: =IF('Taux uniformisé'!D4="Taux de base uniformisé",'Taux uniformisé'!C4,"") -> 
I124: Taxes spéciales
K125: Service de la dette | DC125: 20 | DH125: =IF('Taux uniformisé'!D7="Taux de base uniformisé",'Taux uniformisé'!C7,"") -> 
K126: Activités de fonctionnement | DC126: 21 | DH126: =IF('Taux uniformisé'!D8="Taux de base uniformisé",'Taux uniformisé'!C8,"") -> 
K127: Activités d'investissement | DC127: 22 | DH127: =IF('Taux uniformisé'!D9="Taux de base uniformisé",'Taux uniformisé'!C9,"") -> 
A129: 3. | G129: La municipalité applique-t-elle, pour l'exercice se terminant le 31 décembre 2025, la mesure
G131: de diversification transitoire des taux de certaines taxes foncières (art. 253.54 à 253.62 LFM)? | DC131: 23
A136: 4. | G136: La municipalité impose-t-elle, pour l'exercice se terminant le 31 décembre 2025 :
G140: a) | K140: une taxe d'affaires en vertu de l'article 232 LFM | DC140: 24
G145: b) | K145: une taxe en vertu de l'article 569.11 LCV ou 1094.11 CM | DC145: 25
K149: ▪ | M149: Si oui, pour chaque taxe imposée, décrire sa catégorie, son assiette d'application
M150: et son taux adopté.
A154: 5. | G154: La municipalité recevra-t-elle du MAPAQ des remboursements de taxes de 2025 pour des
G156: exploitations agricoles enregistrées? | DC156: 26
G161: Si oui, indiquer le montant. | DC161: 27 | DZ161: $
A173: Données prévisionnelles non auditées 2025 | S65 | | DT173: | 9 |
